Workbook

Sheet Instructions
A1: Instructions for Federal projects
A3: Step 1: MANDATORY
A4: Click on Rates worksheet
B5: Change the budget period dates to coincide with your project period
B6: Change the BUDGET INITIATION DATE to coincide with the date you started your budget (today's date). This is needed in order to calculate salary increases correctly
A9: Click on the worksheet that agrees with the number years you are requesting the sponsor to fund
B10: Go to the "Indirect Data" section at the bottom of the worksheet and enter the indirect data relative to your project
C11: Change the letters/numbers in blue as appropriate
B12: Return to Row 4
B13: Click on the word name next to Sponsoring Agency and enter your sponsor's name
B14: Click on the word name next to Title and enter the title of your project
B15: Click on the word name next to Principal Investigator (PI) and the PI's name
B17: Your project start and end date should appear in red.
C18: They come from the dates you entered on the Rates Worksheet
B20: Click on the first "-" under salary and enter the current base salary per UCFlex. The spreadsheet will calculate the appropriate base for the start date of the award based on inflation factors
C21: The appropriate salary increases for the same % of effort in subsequent years are automatically calculated in the spreadsheet.
C22: The recess base salary will be calculated automatically
B24: Click on the 0% under effort and enter the percentage of time you will spend on the project during the academic period.
C25: The amount will automatically calculate and be entered in the year 1 column
B27: Click on the second 0% under effort and enter the percentage of time you will spend on the project during the recess year.
B29: Determine if the CoPI(s) are on a 32 week (aka 9 month or academic year) or 12 month appointment (most College of Medicine faculty are on a 12 month appointment). Use the appropriate line(s) in Senior Personnel section for their type of Appointment.
B33: Enter the name of the Co-PI
B34: Enter the percentage of time the Co PI will spend on the project during the academic period.
C35: The amount will automatically calculate and be entered in the year 1 column
K36: ='RATES-Non Fed'!Q69 -> 0
B38: If the Co-PI is on a 32 week appointment and eligible for Extra Compensation enter the percentage of time the CoPI will spend on the project during the recess period.
B41: Add additional Co-PIs as appropriate
B43: Proceed to enter budget dollars for remainder of personnel
B45: Fringes will calculate automatically for you.
B47: Proceed to enter budget dollars for remainder of cost categories.
B49: If you are using a multi year budget you will notice in years 2 and beyond
B50: some of the fields are calculating automatically (4% increase)
B52: You may override any of those dollars by entering any number in the field.
B53: Do not override any fringe or indirect cost entries
K71: ='RATES-Non Fed'!Q69 -> 0

Sheet 1 Year
A1: Grants / Contracts | C1: 7
A2: 1 Year Budget
A4: Sponsoring Agency : | D4: name | I4: name | J4: Titled : | K4: name
A5: Principal Investigator : | D5: name
B6: Period : | D6: ='RATES-Non Fed'!E2 -> 2022-07-01 | E6: thru | G6: ='RATES-Non Fed'!G2 -> 2026-06-30
E7: 0.186
B8: Salaries (Use these sections for UC personnel, UNLESS they are working directly for UCRI as Consultants. If working as consultants, use the blue section below for their costs | J8: Year 1 | M8: CUMULATIVE
A9: A. | B9: AAUP Faculty | J9: Sal | K9: FB | L9: Total
D10: App't Type | E10: % Effort | F10: PM | G10: Salary | M10: =IF(SUM(J10:L10)=0,"",SUM(J10:L10)) -> 
B11: PI | D11: ACAD | E11: 0 | F11: =IF(D11="CAL",(52*E11/4.3333),(IF(D11="ACAD",(36.35*E11/4.33333),IF(D11="SUMR",(15.65*E11/4.33333),IF(D11="PT",(0),0))))) -> 0 | G11: 0 | J11: 0 | K11: =IF(D11="CAL",ROUND(J11*'RATES-Non Fed'!$E$38,0),IF(D11="ACAD",J11*'RATES-Non Fed'!$E$44,J11*'RATES-Non Fed'!$E$45)) -> 0 | L11: =ROUND(K11+J11,0) -> 0 | M11: =SUM(L11) -> 0
B12: 44743 | D12: SUMR | E12: 0 | F12: 0 | G12: =IF(D11="ACAD",+G11*0.437,0) -> 0 | K12: =IF(D12="CAL",ROUND(J12*'RATES-Non Fed'!$E$38,0),IF(D12="ACAD",J12*'RATES-Non Fed'!$E$44,J12*'RATES-Non Fed'!$E$45)) -> 0 | L12: 0 | M12: 0
B13: 46203 | D13: ACAD | E13: 0 | F13: 0 | G13: 0 | J13: =IF($D13="CAL",ROUND(($G13*(1+'Salary Inflation'!$B$30))*$E13,0),IF($D13="ACAD",($G13/0.9965)*(1+'Salary Inflation'!$B$31)*$E13,IF($D13="SUMR",($G13)*(1+'Salary Inflation'!$B$32)*$E13,"NA"))) -> 0 | K13: =IF(D13="CAL",ROUND(J13*'RATES-Non Fed'!$E$38,0),IF(D13="ACAD",J13*'RATES-Non Fed'!$E$44,J13*'RATES-Non Fed'!$E$45)) -> 0 | L13: 0 | M13: 0
D14: =IF(D13="ACAD",("SUMR"),"") -> SUMR | E14: 0 | F14: 0 | G14: =IF(D13="ACAD",+G13*0.437,0) -> 0 | J14: =IF($D14="CAL",ROUND(($G14*(1+'Salary Inflation'!$B$30))*$E14,0),IF($D14="ACAD",($G14/0.9965)*(1+'Salary Inflation'!$B$31)*$E14,IF($D14="SUMR",($G14)*(1+'Salary Inflation'!$B$32)*$E14,"NA"))) -> 0 | K14: =IF(D14="CAL",ROUND(J14*'RATES-Non Fed'!$E$38,0),IF(D14="ACAD",J14*'RATES-Non Fed'!$E$44,J14*'RATES-Non Fed'!$E$45)) -> 0 | L14: 0 | M14: 0
B15: Co | D15: ACAD | E15: 0 | F15: 0 | G15: 0 | J15: =IF($D15="CAL",ROUND(($G15*(1+'Salary Inflation'!$B$30))*$E15,0),IF($D15="ACAD",($G15/0.9965)*(1+'Salary Inflation'!$B$31)*$E15,IF($D15="SUMR",($G15)*(1+'Salary Inflation'!$B$32)*$E15,"NA"))) -> 0 | K15: =IF(D15="CAL",ROUND(J15*'RATES-Non Fed'!$E$38,0),IF(D15="ACAD",J15*'RATES-Non Fed'!$E$44,J15*'RATES-Non Fed'!$E$45)) -> 0 | L15: 0 | M15: 0
B16: Co | D16: SUMR | E16: 0 | F16: 0 | G16: =IF(D15="ACAD",+G15*0.437,0) -> 0 | J16: =IF($D16="CAL",ROUND(($G16*(1+'Salary Inflation'!$B$30))*$E16,0),IF($D16="ACAD",($G16/0.9965)*(1+'Salary Inflation'!$B$31)*$E16,IF($D16="SUMR",($G16)*(1+'Salary Inflation'!$B$32)*$E16,"NA"))) -> 0 | K16: =IF(D16="CAL",ROUND(J16*'RATES-Non Fed'!$E$38,0),IF(D16="ACAD",J16*'RATES-Non Fed'!$E$44,J16*'RATES-Non Fed'!$E$45)) -> 0 | L16: 0 | M16: 0
B17: Co | D17: CAL | E17: 0 | F17: 0 | G17: 0 | J17: =IF($D17="CAL",ROUND(($G17*(1+'Salary Inflation'!$B$30))*$E17,0),IF($D17="ACAD",($G17/0.9965)*(1+'Salary Inflation'!$B$31)*$E17,IF($D17="SUMR",($G17)*(1+'Salary Inflation'!$B$32)*$E17,"NA"))) -> 0 | K17: =IF(D17="CAL",ROUND(J17*'RATES-Non Fed'!$E$38,0),IF(D17="ACAD",J17*'RATES-Non Fed'!$E$44,J17*'RATES-Non Fed'!$E$45)) -> 0 | L17: 0 | M17: 0
B18: Co | D18: CAL | E18: 0 | F18: 0 | G18: 0 | J18: =IF($D18="CAL",ROUND(($G18*(1+'Salary Inflation'!$B$30))*$E18,0),IF($D18="ACAD",($G18/0.9965)*(1+'Salary Inflation'!$B$31)*$E18,IF($D18="SUMR",($G18)*(1+'Salary Inflation'!$B$32)*$E18,"NA"))) -> 0 | K18: =IF(D18="CAL",ROUND(J18*'RATES-Non Fed'!$E$38,0),IF(D18="ACAD",J18*'RATES-Non Fed'!$E$44,J18*'RATES-Non Fed'!$E$45)) -> 0 | L18: 0 | M18: 0
D19: AAUP Faculty Subtotal : | J19: =SUM(J11:J18) -> 0 | K19: =SUM(K11:K18) -> 0 | L19: =SUM(L11:L18) -> 0 | M19: =SUM(M11:M18) -> 0
A20: B | B20: 2
B21: PI | D21: CAL | E21: 0 | F21: =IF(D21="CAL",(52*E21/4.3333),(IF(D21="ACAD",(32*E21/4.33333),IF(D21="SUMR",(14*E21/4.33333),IF(D21="PT",(0),0))))) -> 0 | G21: 0 | J21: =ROUND(($G21*(1+'Salary Inflation'!$B$34))*$E21,0) -> 0 | K21: =ROUND(J21*'RATES-Non Fed'!E40,0) -> 0 | L21: =ROUND(K21+J21,0) -> 0 | M21: =SUM(L21) -> 0
B22: Co | D22: CAL | E22: 0 | F22: =IF(D22="CAL",(52*E22/4.3333),(IF(D22="ACAD",(32*E22/4.33333),IF(D22="SUMR",(14*E22/4.33333),IF(D22="PT",(0),0))))) -> 0 | G22: 0 | J22: =ROUND(($G22*(1+'Salary Inflation'!$B$34))*$E22,0) -> 0 | K22: =ROUND(J22*'RATES-Non Fed'!E40,0) -> 0 | L22: =ROUND(K22+J22,0) -> 0 | M22: =SUM(L22) -> 0
B23: Co | D23: CAL | E23: 0 | F23: =IF(D23="CAL",(52*E23/4.3333),(IF(D23="ACAD",(32*E23/4.33333),IF(D23="SUMR",(14*E23/4.33333),IF(D23="PT",(0),0))))) -> 0 | G23: 0 | J23: =ROUND(($G23*(1+'Salary Inflation'!$B$34))*$E23,0) -> 0 | K23: =ROUND(J23*'RATES-Non Fed'!E40,0) -> 0 | L23: =ROUND(K23+J23,0) -> 0 | M23: =SUM(L23) -> 0
B24: Co | D24: CAL | E24: 0 | F24: =IF(D24="CAL",(52*E24/4.3333),(IF(D24="ACAD",(32*E24/4.33333),IF(D24="SUMR",(14*E24/4.33333),IF(D24="PT",(0),0))))) -> 0 | G24: 0 | J24: =ROUND(($G24*(1+'Salary Inflation'!$B$34))*$E24,0) -> 0 | K24: =ROUND(J24*'RATES-Non Fed'!E40,0) -> 0 | L24: =ROUND(K24+J24,0) -> 0 | M24: =SUM(L24) -> 0
D25: Dual Comp Faculty Subtotal : | J25: =SUM(J21:J24) -> 0 | K25: =SUM(K21:K24) -> 0 | L25: =SUM(L21:L24) -> 0 | M25: =SUM(M21:M24) -> 0
A27: C. | B27: Other Personnel
C28: Exempt Staff (Monthly) | D28: Name
E29: 0.3 | F29: =SUM(52*E29/4.3333) -> 3.600027693 | G29: 0 | J29: =ROUND(($G29*(1+'Salary Inflation'!$B$33))*$E29,0) -> 0 | K29: =ROUND(J29*'RATES-Non Fed'!E39,0) -> 0 | L29: =SUM(J29:K29) -> 0 | M29: =SUM(L29) -> 0
E30: 0 | F30: =SUM(52*E30/4.3333) -> 0 | G30: 0 | J30: =ROUND(($G30*(1+'Salary Inflation'!$B$33))*$E30,0) -> 0 | K30: =ROUND(J30*'RATES-Non Fed'!E40,0) -> 0 | L30: =SUM(J30:K30) -> 0 | M30: =SUM(L30) -> 0
E31: 0 | F31: 0 | G31: 0 | J31: =ROUND(($G31*(1+'Salary Inflation'!$B$33))*$E31,0) -> 0 | K31: =ROUND(J31*'RATES-Non Fed'!E41,0) -> 0 | L31: 0 | M31: 0
E32: 0 | F32: 0 | G32: 0 | J32: =ROUND(($G32*(1+'Salary Inflation'!$B$33))*$E32,0) -> 0 | K32: =ROUND(J32*'RATES-Non Fed'!E42,0) -> 0 | L32: 0 | M32: 0
E33: 0 | F33: 0 | G33: 0 | J33: =ROUND(($G33*(1+'Salary Inflation'!$B$33))*$E33,0) -> 0 | K33: =ROUND(J33*'RATES-Non Fed'!E43,0) -> 0 | L33: 0 | M33: 0
E34: 0 | F34: 0 | G34: 0 | J34: =ROUND(($G34*(1+'Salary Inflation'!$B$33))*$E34,0) -> 0 | K34: =ROUND(J34*'RATES-Non Fed'!E44,0) -> 0 | L34: 0 | M34: 0
E35: 0 | F35: 0 | G35: 0 | J35: =ROUND(($G35*(1+'Salary Inflation'!$B$33))*$E35,0) -> 0 | K35: =ROUND(J35*'RATES-Non Fed'!E45,0) -> 0 | L35: 0 | M35: 0
E36: 0 | F36: 0 | G36: 0 | J36: =ROUND(($G36*(1+'Salary Inflation'!$B$33))*$E36,0) -> 0 | K36: =ROUND(J36*'RATES-Non Fed'!E46,0) -> 0 | L36: 0 | M36: 0
E37: 0 | F37: 0 | G37: 0 | J37: =ROUND(($G37*(1+'Salary Inflation'!$B$33))*$E37,0) -> 0 | K37: =ROUND(J37*'RATES-Non Fed'!E47,0) -> 0 | L37: 0 | M37: 0
E38: 0 | F38: =SUM(52*E38/4.3333) -> 0 | G38: 0 | J38: =ROUND(($G38*(1+'Salary Inflation'!$B$33))*$E38,0) -> 0 | K38: =ROUND(J38*'RATES-Non Fed'!E39,0) -> 0 | L38: =SUM(J38:K38) -> 0 | M38: =SUM(L38) -> 0
E39: 0 | F39: =SUM(52*E39/4.3333) -> 0 | G39: 0 | J39: =ROUND(($G39*(1+'Salary Inflation'!$B$33))*$E39,0) -> 0 | K39: =ROUND(J39*'RATES-Non Fed'!E39,0) -> 0 | L39: =SUM(J39:K39) -> 0 | M39: =SUM(L39) -> 0
E40: 0 | F40: =SUM(52*E40/4.3333) -> 0 | G40: 0 | J40: =ROUND(($G40*(1+'Salary Inflation'!$B$33))*$E40,0) -> 0 | K40: =ROUND(J40*'RATES-Non Fed'!E39,0) -> 0 | L40: =SUM(J40:K40) -> 0 | M40: =SUM(L40) -> 0
D41: Total Exempt Staff | J41: =SUM(J29:J40) -> 0 | K41: =SUM(K29:K40) -> 0 | L41: =SUM(L29:L40) -> 0 | M41: =SUM(M29:M40) -> 0
C43: Post Doctoral Support | E43: 0 | F43: =SUM(52*E43/4.3333) -> 0 | G43: 0 | J43: =ROUND(($G43*(1+'Salary Inflation'!$B$33))*$E43,0) -> 0 | K43: =ROUND(J43*'RATES-Non Fed'!E43,0) -> 0 | L43: =SUM(J43:K43) -> 0 | M43: =SUM(L43) -> 0
C44: Graduate Students | E44: 0 | F44: =SUM(52*E44/4.3333) -> 0 | G44: 0 | J44: =ROUND(($G44*(1+'Salary Inflation'!$B$33))*$E44,0) -> 0 | K44: =ROUND(J44*'RATES-Non Fed'!E42,0) -> 0 | L44: =SUM(J44:K44) -> 0 | M44: =SUM(L44) -> 0
C45: Undergrad Students | E45: 0 | F45: =SUM(52*E45/4.3333) -> 0 | G45: 0 | J45: =ROUND(($G45*(1+'Salary Inflation'!$B$33))*$E45,0) -> 0 | K45: =ROUND(J45*'RATES-Non Fed'!E42,0) -> 0 | L45: =SUM(J45:K45) -> 0 | M45: =SUM(L45) -> 0
C46: Part-time Faculty/Staff | E46: 0 | F46: =SUM(52*E46/4.3333) -> 0 | G46: 0 | J46: =ROUND(($G46*(1+'Salary Inflation'!$B$33))*$E46,0) -> 0 | K46: =ROUND(J46*'RATES-Non Fed'!E43,0) -> 0 | L46: =SUM(J46:K46) -> 0 | M46: =SUM(L46) -> 0
C47: Non-Exempt Staff (Bi-Weekly) | E47: 0 | F47: =SUM(52*E47/4.3333) -> 0 | G47: 0 | J47: =ROUND(($G47*(1+'Salary Inflation'!$B$33))*$E47,0) -> 0 | K47: =ROUND(J47*'RATES-Non Fed'!E41,0) -> 0 | L47: =SUM(J47:K47) -> 0 | M47: =SUM(L47) -> 0
D48: Sub Totals | J48: =SUM(J19+J25+J41+J43+J44+J45+J46+J47) -> 0 | K48: =SUM(K19+K25+K41+K43+K44+K45+K46+K47) -> 0 | L48: =SUM(L43:L47) -> 0 | M48: =SUM(M43:M47) -> 0
A50: Total Salaries and Fringe Benefits : | J50: =SUM(J48+K48) -> 0 | M50: =SUM(J50) -> 0
A52: D. | B52: Equipment
C53: (list) | M53: =SUM(J53:L53) -> 0
C54: (list) | J54: 0 | M54: =SUM(J54:L54) -> 0
C55: Total Equipment : | J55: =SUM(J53:J54) -> 0 | M55: =SUM(J55:L55) -> 0
A57: E. | B57: Travel
C58: Domestic | D58: (list) | M58: =SUM(J58:L58) -> 0
C59: International | D59: (list) | J59: 0 | M59: =SUM(J59:L59) -> 0
C60: Total Travel : | J60: =SUM(J58:J59) -> 0 | M60: =SUM(J60:L60) -> 0
A62: G. | B62: Supplies and Other Direct Costs
C63: Materials & Supplies | J63: 0 | M63: =SUM(J63:L63) -> 0
C64: LAM | J64: 0 | M64: 0
C65: Consultant Services | J65: 0 | M65: 0
C66: Subject Incentives | J66: 0 | M66: 0
C67: UC Tuition for Trainees/Fellows | J67: 0 | M67: 0
C68: UC Tuition on Research Projects | J68: 0 | M68: 0
C69: Lab Expenses | J69: 0 | M69: 0
C70: Other (Analytical Services/Instrument Use) | J70: 0 | M70: 0
C71: Subcontracts 1) | M71: 0
C72: 2) | M72: 0
C73: 3) | M73: 0
C74: 4) | M74: 0
A75: Total Supplies and Other Direct Costs : | J75: =SUM(J63:J74) -> 0 | M75: 0
E77: TOTAL DIRECT COSTS: | J77: =ROUND(+J75+J60+J55+J50,0) -> 0 | M77: =SUM(J77:L77) -> 0
H79: Facilities and Administrative Cost Base: | J79: =J77 -> 0 | M79: =SUM(J79:L79) -> 0
A80: Facilities and Administrative Costs Calculation:
A81: F&A Cost (on MTDC): | D81: =IF(AND(($E$88)="R",($E$90)="C"),('RATES-Non Fed'!E48),IF(AND(($E$88)="R",($E$90)="O"),('RATES-Non Fed'!E53),IF(AND(($E$88)="I",($E$90)="C"),('RATES-Non Fed'!E49),IF(AND(($E$88)="I",($E$90)="O"),('RATES-Non Fed'!E54),IF(AND(($E$88)="P",($E$90)="C"),('RATES-Non Fed'!E50),IF(AND(($E$88)="P",($E$90)="O"),('RATES-Non Fed'!E55),($E$89))))))) -> 0.31 | J81: =+J79*D81 -> 0 | M81: =SUM(J81:L81) -> 0
A82: Total F&A Cost : | J82: =SUM(J81:J81) -> 0 | M82: =SUM(J82:L82) -> 0
C84: Total Cost | J84: =J82+J77 -> 0 | M84: =SUM(J84:L84) -> 0
C87: Facilities and Administrative Data
C88: Purpose of Grant / Contract : | E88: P | G88: (R = Research, I = Instruction, P = Public Service, S = Special Rate on Total Costs)
C89: Special F&A Rate : | E89: 0.1
C90: Campus Status : | E90: C | G90: (C = On Campus, O = Off Campus)
D92: Detailed F&A figures for prorated rates | H92: =IF(E88 = "R", 'RATES-Non Fed'!E31,IF(E88 = "I", 'RATES-Non Fed'!E32, IF(E88 = "P", 'RATES-Non Fed'!E33, ""))) -> 0.31 | J92: =J82/365*'RATES-Non Fed'!$C$48 -> 0
D93: *If both lines have the same rate, then just list as one line on forms. | H93: =IF(E88 = "R", 'RATES-Non Fed'!G31,IF(E88 = "I", 'RATES-Non Fed'!G32, IF(E88 = "P", 'RATES-Non Fed'!G33, ""))) -> 0.31 | J93: =J82/365*'RATES-Non Fed'!$D$48 -> 0
J94: =SUM(J92:J93) -> 0
B95: UCRI CONSULTANT COSTS
B96: If any faculty or staff will be working directly for UCRI as Consultants, please add those costs to the section below, rather than as UC Personnel above
J97: Year 1 | M97: Cumulative
B98: Consultant Name | C98: Rate ($) | D98: Basis (hourly, daily, etc) | J98: Units | K98: Cost
C99: 100 | D99: hourly | K99: =$C99*J99 -> 0 | M99: =K99 -> 0
J100: 0 | K100: 0 | M100: 0
J101: 0 | K101: 0 | M101: 0
J102: 0 | K102: 0 | M102: 0
J103: 0 | K103: 0 | M103: 0
J104: 0 | K104: 0 | M104: 0
B105: Total Consultant Cost (Remains with UCRI) | K105: =SUM(K99:K104) -> 0 | M105: 0
B106: F&A on Consultant Costs | K106: =K105*H92 -> 0 | M106: 0
B107: Total Costs Retained by UCRI | K107: =K105+K106 -> 0 | M107: 0
B108: All Direct Costs | J108: =K105+J77 -> 0 | M108: =J108 -> 0
B109: All F&A Costs | J109: =K106+J81 -> 0 | M109: =J109 -> 0
B110: Grand Total of All Costs - UC & UCRI | J110: =J108+J109 -> 0 | M110: =J110 -> 0

Sheet 2 Year
A1: Grants / Contracts
A2: 2 Year Budget
A4: Sponsoring Agency : | D4: name | J4: Titled : | K4: name
A5: Principal Investigator : | D5: name
B6: Period : | D6: ='RATES-Non Fed'!E2 -> 2022-07-01 | E6: thru | G6: ='RATES-Non Fed'!G2 -> 2026-06-30
E7: 0.186
B8: Salaries (Use these sections for UC personnel, UNLESS they are working directly for UCRI as Consultants. If working as consultants, use the blue section below for their costs | J8: Year 1 | M8: Year 2 | P8: CUMULATIVE
A9: A. | C9: AAUP Faculty | J9: Sal | K9: FB | L9: Total | M9: Sal | N9: FB | O9: Total
B10: Senior Personnel | D10: App't Type | E10: % Effort | F10: PM | G10: Salary | P10: =IF(SUM(J10:N10)=0,"",SUM(J10:N10)) -> 
B11: PI | D11: ACAD | E11: 0 | F11: =IF(D11="CAL",(52*E11/4.3333),(IF(D11="ACAD",(36.35*E11/4.33333),IF(D11="SUMR",(15.65*E11/4.33333),IF(D11="PT",(0),0))))) -> 0 | G11: 80000 | J11: =IF($D11="CAL",ROUND(($G11*(1+'Salary Inflation'!$B$30))*$E11,0),IF($D11="ACAD",($G11/0.9965)*(1+'Salary Inflation'!$B$31)*$E11,IF($D11="SUMR",($G11)*(1+'Salary Inflation'!$B$32)*$E11,"NA"))) -> 0 | K11: =IF($D11="CAL",ROUND(J11*'RATES-Non Fed'!$E$38,0),IF($D11="ACAD",J11*'RATES-Non Fed'!$E$44,J11*'RATES-Non Fed'!$E$45)) -> 0 | L11: =ROUND(K11+J11,0) -> 0 | M11: =IF($D11="CAL",ROUND((J11*(1+'Salary Inflation'!$C$30)),0),IF($D11="ACAD",(J11)*(1+'Salary Inflation'!$C$31),IF($D11="SUMR",(J11)*(1+'Salary Inflation'!$C$32),"NA"))) -> 0 | N11: =IF($D11="CAL",ROUND(M11*'RATES-Non Fed'!$G$38,0),IF($D11="ACAD",M11*'RATES-Non Fed'!$G$44,M11*'RATES-Non Fed'!$G$45)) -> 0 | O11: =ROUND(M11+N11,0) -> 0 | P11: =SUM(L11+O11) -> 0
D12: SUMR | E12: 0 | F12: 0 | G12: =IF(D11="ACAD",+G11*0.437,0) -> 34960 | J12: =IF($D12="CAL",ROUND(($G12*(1+'Salary Inflation'!$B$30))*$E12,0),IF($D12="ACAD",($G12/0.9965)*(1+'Salary Inflation'!$B$31)*$E12,IF($D12="SUMR",($G12)*(1+'Salary Inflation'!$B$32)*$E12,"NA"))) -> 0 | K12: =IF($D12="CAL",ROUND(J12*'RATES-Non Fed'!$E$38,0),IF($D12="ACAD",J12*'RATES-Non Fed'!$E$44,J12*'RATES-Non Fed'!$E$45)) -> 0 | L12: 0 | M12: =IF($D12="CAL",ROUND((J12*(1+'Salary Inflation'!$C$30)),0),IF($D12="ACAD",(J12)*(1+'Salary Inflation'!$C$31),IF($D12="SUMR",(J12)*(1+'Salary Inflation'!$C$32),"NA"))) -> 0 | N12: =IF($D12="CAL",ROUND(M12*'RATES-Non Fed'!$G$38,0),IF($D12="ACAD",M12*'RATES-Non Fed'!$G$44,M12*'RATES-Non Fed'!$G$45)) -> 0 | O12: 0 | P12: 0
D13: ACAD | E13: 0 | F13: 0 | G13: 0 | J13: =IF($D13="CAL",ROUND(($G13*(1+'Salary Inflation'!$B$30))*$E13,0),IF($D13="ACAD",($G13/0.9965)*(1+'Salary Inflation'!$B$31)*$E13,IF($D13="SUMR",($G13)*(1+'Salary Inflation'!$B$32)*$E13,"NA"))) -> 0 | K13: =IF($D13="CAL",ROUND(J13*'RATES-Non Fed'!$E$38,0),IF($D13="ACAD",J13*'RATES-Non Fed'!$E$44,J13*'RATES-Non Fed'!$E$45)) -> 0 | L13: 0 | M13: =IF($D13="CAL",ROUND((J13*(1+'Salary Inflation'!$C$30)),0),IF($D13="ACAD",(J13)*(1+'Salary Inflation'!$C$31),IF($D13="SUMR",(J13)*(1+'Salary Inflation'!$C$32),"NA"))) -> 0 | N13: =IF($D13="CAL",ROUND(M13*'RATES-Non Fed'!$G$38,0),IF($D13="ACAD",M13*'RATES-Non Fed'!$G$44,M13*'RATES-Non Fed'!$G$45)) -> 0 | O13: 0 | P13: 0
D14: =IF(D13="ACAD",("SUMR"),"") -> SUMR | E14: 0 | F14: 0 | G14: =IF(D13="ACAD",+G13*0.437,0) -> 0 | J14: =IF($D14="CAL",ROUND(($G14*(1+'Salary Inflation'!$B$30))*$E14,0),IF($D14="ACAD",($G14/0.9965)*(1+'Salary Inflation'!$B$31)*$E14,IF($D14="SUMR",($G14)*(1+'Salary Inflation'!$B$32)*$E14,"NA"))) -> 0 | K14: =IF($D14="CAL",ROUND(J14*'RATES-Non Fed'!$E$38,0),IF($D14="ACAD",J14*'RATES-Non Fed'!$E$44,J14*'RATES-Non Fed'!$E$45)) -> 0 | L14: 0 | M14: =IF($D14="CAL",ROUND((J14*(1+'Salary Inflation'!$C$30)),0),IF($D14="ACAD",(J14)*(1+'Salary Inflation'!$C$31),IF($D14="SUMR",(J14)*(1+'Salary Inflation'!$C$32),"NA"))) -> 0 | N14: =IF($D14="CAL",ROUND(M14*'RATES-Non Fed'!$G$38,0),IF($D14="ACAD",M14*'RATES-Non Fed'!$G$44,M14*'RATES-Non Fed'!$G$45)) -> 0 | O14: 0 | P14: 0
B15: Co | D15: ACAD | E15: 0 | F15: 0 | G15: 0 | J15: =IF($D15="CAL",ROUND(($G15*(1+'Salary Inflation'!$B$30))*$E15,0),IF($D15="ACAD",($G15/0.9965)*(1+'Salary Inflation'!$B$31)*$E15,IF($D15="SUMR",($G15)*(1+'Salary Inflation'!$B$32)*$E15,"NA"))) -> 0 | K15: =IF($D15="CAL",ROUND(J15*'RATES-Non Fed'!$E$38,0),IF($D15="ACAD",J15*'RATES-Non Fed'!$E$44,J15*'RATES-Non Fed'!$E$45)) -> 0 | L15: 0 | M15: =IF($D15="CAL",ROUND((J15*(1+'Salary Inflation'!$C$30)),0),IF($D15="ACAD",(J15)*(1+'Salary Inflation'!$C$31),IF($D15="SUMR",(J15)*(1+'Salary Inflation'!$C$32),"NA"))) -> 0 | N15: =IF($D15="CAL",ROUND(M15*'RATES-Non Fed'!$G$38,0),IF($D15="ACAD",M15*'RATES-Non Fed'!$G$44,M15*'RATES-Non Fed'!$G$45)) -> 0 | O15: 0 | P15: 0
D16: =IF(D15="ACAD",("SUMR"),"") -> SUMR | E16: 0 | F16: 0 | G16: =IF(D15="ACAD",+G15*0.428,0) -> 0 | J16: =IF($D16="CAL",ROUND(($G16*(1+'Salary Inflation'!$B$30))*$E16,0),IF($D16="ACAD",($G16/0.9965)*(1+'Salary Inflation'!$B$31)*$E16,IF($D16="SUMR",($G16)*(1+'Salary Inflation'!$B$32)*$E16,"NA"))) -> 0 | K16: =IF($D16="CAL",ROUND(J16*'RATES-Non Fed'!$E$38,0),IF($D16="ACAD",J16*'RATES-Non Fed'!$E$44,J16*'RATES-Non Fed'!$E$45)) -> 0 | L16: 0 | M16: =IF($D16="CAL",ROUND((J16*(1+'Salary Inflation'!$C$30)),0),IF($D16="ACAD",(J16)*(1+'Salary Inflation'!$C$31),IF($D16="SUMR",(J16)*(1+'Salary Inflation'!$C$32),"NA"))) -> 0 | N16: =IF($D16="CAL",ROUND(M16*'RATES-Non Fed'!$G$38,0),IF($D16="ACAD",M16*'RATES-Non Fed'!$G$44,M16*'RATES-Non Fed'!$G$45)) -> 0 | O16: 0 | P16: 0
B17: Co | D17: CAL | E17: 0 | F17: 0 | G17: 0 | J17: =IF($D17="CAL",ROUND(($G17*(1+'Salary Inflation'!$B$30))*$E17,0),IF($D17="ACAD",($G17/0.9965)*(1+'Salary Inflation'!$B$31)*$E17,IF($D17="SUMR",($G17)*(1+'Salary Inflation'!$B$32)*$E17,"NA"))) -> 0 | K17: =IF($D17="CAL",ROUND(J17*'RATES-Non Fed'!$E$38,0),IF($D17="ACAD",J17*'RATES-Non Fed'!$E$44,J17*'RATES-Non Fed'!$E$45)) -> 0 | L17: 0 | M17: =IF($D17="CAL",ROUND((J17*(1+'Salary Inflation'!$C$30)),0),IF($D17="ACAD",(J17)*(1+'Salary Inflation'!$C$31),IF($D17="SUMR",(J17)*(1+'Salary Inflation'!$C$32),"NA"))) -> 0 | N17: =IF($D17="CAL",ROUND(M17*'RATES-Non Fed'!$G$38,0),IF($D17="ACAD",M17*'RATES-Non Fed'!$G$44,M17*'RATES-Non Fed'!$G$45)) -> 0 | O17: 0 | P17: 0
B18: Co | D18: CAL | E18: 0 | F18: 0 | G18: 0 | J18: =IF($D18="CAL",ROUND(($G18*(1+'Salary Inflation'!$B$30))*$E18,0),IF($D18="ACAD",($G18/0.9965)*(1+'Salary Inflation'!$B$31)*$E18,IF($D18="SUMR",($G18)*(1+'Salary Inflation'!$B$32)*$E18,"NA"))) -> 0 | K18: =IF($D18="CAL",ROUND(J18*'RATES-Non Fed'!$E$38,0),IF($D18="ACAD",J18*'RATES-Non Fed'!$E$44,J18*'RATES-Non Fed'!$E$45)) -> 0 | L18: 0 | M18: =IF($D18="CAL",ROUND((J18*(1+'Salary Inflation'!$C$30)),0),IF($D18="ACAD",(J18)*(1+'Salary Inflation'!$C$31),IF($D18="SUMR",(J18)*(1+'Salary Inflation'!$C$32),"NA"))) -> 0 | N18: =IF($D18="CAL",ROUND(M18*'RATES-Non Fed'!$G$38,0),IF($D18="ACAD",M18*'RATES-Non Fed'!$G$44,M18*'RATES-Non Fed'!$G$45)) -> 0 | O18: 0 | P18: 0
D19: AAUP Faculty Subtotal : | J19: =SUM(J11:J18) -> 0 | K19: 0 | L19: 0 | M19: 0 | N19: 0 | O19: 0 | P19: 0
A20: B | B20: 2
B21: Co | D21: CAL | E21: 0 | F21: =IF(D21="CAL",(52*E21/4.3333),(IF(D21="ACAD",(32*E21/4.33333),IF(D21="SUMR",(14*E21/4.33333),IF(D21="PT",(0),0))))) -> 0 | G21: 0 | J21: =ROUND(($G21*(1+'Salary Inflation'!$B$34))*$E21,0) -> 0 | K21: =ROUND(J21*'RATES-Non Fed'!E40,0) -> 0 | L21: =ROUND(K21+J21,0) -> 0 | M21: =ROUND(J21*(1+'Salary Inflation'!$C$34),0) -> 0 | N21: =ROUND(M21*'RATES-Non Fed'!G40,0) -> 0 | O21: =ROUND(M21+N21,0) -> 0 | P21: =SUM(L21+O21) -> 0
B22: Co | D22: CAL | E22: 0 | F22: =IF(D22="CAL",(52*E22/4.3333),(IF(D22="ACAD",(32*E22/4.33333),IF(D22="SUMR",(14*E22/4.33333),IF(D22="PT",(0),0))))) -> 0 | G22: 0 | J22: =ROUND(($G22*(1+'Salary Inflation'!$B$34))*$E22,0) -> 0 | K22: =ROUND(J22*'RATES-Non Fed'!E40,0) -> 0 | L22: =ROUND(K22+J22,0) -> 0 | M22: =ROUND(J22*(1+'Salary Inflation'!$C$34),0) -> 0 | N22: =ROUND(M22*'RATES-Non Fed'!G40,0) -> 0 | O22: =ROUND(M22+N22,0) -> 0 | P22: =SUM(L22+O22) -> 0
B23: Co | D23: CAL | E23: 0 | F23: =IF(D23="CAL",(52*E23/4.3333),(IF(D23="ACAD",(32*E23/4.33333),IF(D23="SUMR",(14*E23/4.33333),IF(D23="PT",(0),0))))) -> 0 | G23: 0 | J23: =ROUND(($G23*(1+'Salary Inflation'!$B$34))*$E23,0) -> 0 | K23: =ROUND(J23*'RATES-Non Fed'!E40,0) -> 0 | L23: =ROUND(K23+J23,0) -> 0 | M23: =ROUND(J23*(1+'Salary Inflation'!$C$34),0) -> 0 | N23: =ROUND(M23*'RATES-Non Fed'!G40,0) -> 0 | O23: =ROUND(M23+N23,0) -> 0 | P23: =SUM(L23+O23) -> 0
B24: Co | D24: CAL | E24: 0 | F24: =IF(D24="CAL",(52*E24/4.3333),(IF(D24="ACAD",(32*E24/4.33333),IF(D24="SUMR",(14*E24/4.33333),IF(D24="PT",(0),0))))) -> 0 | G24: 0 | J24: =ROUND(($G24*(1+'Salary Inflation'!$B$34))*$E24,0) -> 0 | K24: =ROUND(J24*'RATES-Non Fed'!E40,0) -> 0 | L24: =ROUND(K24+J24,0) -> 0 | M24: =ROUND(J24*(1+'Salary Inflation'!$C$34),0) -> 0 | N24: =ROUND(M24*'RATES-Non Fed'!G40,0) -> 0 | O24: =ROUND(M24+N24,0) -> 0 | P24: =SUM(L24+O24) -> 0
D25: Dual Comp Faculty Subtotal : | J25: =SUM(J21:J24) -> 0 | K25: 0 | L25: 0 | M25: 0 | N25: 0 | O25: 0 | P25: 0
A27: C. | B27: Other Personnel
C28: Exempt Staff (Monthly) | D28: Name
E29: 0 | F29: =SUM(52*E29/4.3333) -> 0 | G29: 0 | J29: =ROUND(($G29*(1+'Salary Inflation'!$B$33))*$E29,0) -> 0 | K29: =ROUND(J29*'RATES-Non Fed'!E39,0) -> 0 | L29: =SUM(J29:K29) -> 0 | M29: =ROUND(J29*(1+'Salary Inflation'!$C$33),0) -> 0 | N29: =ROUND(M29*'RATES-Non Fed'!G39,0) -> 0 | O29: =SUM(M29:N29) -> 0 | P29: =SUM(L29+O29) -> 0
E30: 0 | F30: =SUM(52*E30/4.3333) -> 0 | G30: 0 | J30: =ROUND(($G30*(1+'Salary Inflation'!$B$33))*$E30,0) -> 0 | K30: =ROUND(J30*'RATES-Non Fed'!E40,0) -> 0 | L30: =SUM(J30:K30) -> 0 | M30: =ROUND(J30*(1+'Salary Inflation'!$C$33),0) -> 0 | N30: =ROUND(M30*'RATES-Non Fed'!G40,0) -> 0 | O30: =SUM(M30:N30) -> 0 | P30: =SUM(L30+O30) -> 0
E31: 0 | F31: 0 | G31: 0 | J31: =ROUND(($G31*(1+'Salary Inflation'!$B$33))*$E31,0) -> 0 | K31: =ROUND(J31*'RATES-Non Fed'!E41,0) -> 0 | L31: 0 | M31: =ROUND(J31*(1+'Salary Inflation'!$C$33),0) -> 0 | N31: =ROUND(M31*'RATES-Non Fed'!G41,0) -> 0 | O31: 0 | P31: 0
E32: 0 | F32: 0 | G32: 0 | J32: =ROUND(($G32*(1+'Salary Inflation'!$B$33))*$E32,0) -> 0 | K32: =ROUND(J32*'RATES-Non Fed'!E42,0) -> 0 | L32: 0 | M32: =ROUND(J32*(1+'Salary Inflation'!$C$33),0) -> 0 | N32: =ROUND(M32*'RATES-Non Fed'!G42,0) -> 0 | O32: 0 | P32: 0
E33: 0 | F33: 0 | G33: 0 | J33: =ROUND(($G33*(1+'Salary Inflation'!$B$33))*$E33,0) -> 0 | K33: =ROUND(J33*'RATES-Non Fed'!E43,0) -> 0 | L33: 0 | M33: =ROUND(J33*(1+'Salary Inflation'!$C$33),0) -> 0 | N33: =ROUND(M33*'RATES-Non Fed'!G43,0) -> 0 | O33: 0 | P33: 0
E34: 0 | F34: 0 | G34: 0 | J34: =ROUND(($G34*(1+'Salary Inflation'!$B$33))*$E34,0) -> 0 | K34: =ROUND(J34*'RATES-Non Fed'!E44,0) -> 0 | L34: 0 | M34: =ROUND(J34*(1+'Salary Inflation'!$C$33),0) -> 0 | N34: =ROUND(M34*'RATES-Non Fed'!G44,0) -> 0 | O34: 0 | P34: 0
E35: 0 | F35: 0 | G35: 0 | J35: =ROUND(($G35*(1+'Salary Inflation'!$B$33))*$E35,0) -> 0 | K35: =ROUND(J35*'RATES-Non Fed'!E45,0) -> 0 | L35: 0 | M35: =ROUND(J35*(1+'Salary Inflation'!$C$33),0) -> 0 | N35: =ROUND(M35*'RATES-Non Fed'!G45,0) -> 0 | O35: 0 | P35: 0
E36: 0 | F36: 0 | G36: 0 | J36: =ROUND(($G36*(1+'Salary Inflation'!$B$33))*$E36,0) -> 0 | K36: =ROUND(J36*'RATES-Non Fed'!E46,0) -> 0 | L36: 0 | M36: =ROUND(J36*(1+'Salary Inflation'!$C$33),0) -> 0 | N36: =ROUND(M36*'RATES-Non Fed'!G46,0) -> 0 | O36: 0 | P36: 0
E37: 0 | F37: 0 | G37: 0 | J37: =ROUND(($G37*(1+'Salary Inflation'!$B$33))*$E37,0) -> 0 | K37: =ROUND(J37*'RATES-Non Fed'!E47,0) -> 0 | L37: 0 | M37: =ROUND(J37*(1+'Salary Inflation'!$C$33),0) -> 0 | N37: =ROUND(M37*'RATES-Non Fed'!G47,0) -> 0 | O37: 0 | P37: 0
E38: 0 | F38: =SUM(52*E38/4.3333) -> 0 | G38: 0 | J38: =ROUND(($G38*(1+'Salary Inflation'!$B$33))*$E38,0) -> 0 | K38: =ROUND(J38*'RATES-Non Fed'!E39,0) -> 0 | L38: =SUM(J38:K38) -> 0 | M38: =ROUND(J38*(1+'Salary Inflation'!$C$33),0) -> 0 | N38: =ROUND(M38*'RATES-Non Fed'!G39,0) -> 0 | O38: =SUM(M38:N38) -> 0 | P38: =SUM(L38+O38) -> 0
E39: 0 | F39: =SUM(52*E39/4.3333) -> 0 | G39: 0 | J39: =ROUND(($G39*(1+'Salary Inflation'!$B$33))*$E39,0) -> 0 | K39: =ROUND(J39*'RATES-Non Fed'!E39,0) -> 0 | L39: =SUM(J39:K39) -> 0 | M39: =ROUND(J39*(1+'Salary Inflation'!$C$33),0) -> 0 | N39: =ROUND(M39*'RATES-Non Fed'!G39,0) -> 0 | O39: =SUM(M39:N39) -> 0 | P39: =SUM(L39+O39) -> 0
E40: 0 | F40: =SUM(52*E40/4.3333) -> 0 | G40: 0 | J40: =ROUND(($G40*(1+'Salary Inflation'!$B$33))*$E40,0) -> 0 | K40: =ROUND(J40*'RATES-Non Fed'!E39,0) -> 0 | L40: =SUM(J40:K40) -> 0 | M40: =ROUND(J40*(1+'Salary Inflation'!$C$33),0) -> 0 | N40: =ROUND(M40*'RATES-Non Fed'!G39,0) -> 0 | O40: =SUM(M40:N40) -> 0 | P40: =SUM(L40+O40) -> 0
D41: Total Exempt Staff | J41: =SUM(J29:J40) -> 0 | K41: 0 | L41: 0 | M41: 0 | N41: 0 | O41: 0 | P41: 0
C43: Post Doctoral Support | E43: 0 | F43: =SUM(52*E43/4.3333) -> 0 | G43: 0 | J43: =ROUND(($G43*(1+'Salary Inflation'!$B$33))*$E43,0) -> 0 | K43: =ROUND(J43*'RATES-Non Fed'!E43,0) -> 0 | L43: =SUM(J43:K43) -> 0 | M43: =ROUND(J43*(1+'Salary Inflation'!$C$33),0) -> 0 | N43: =ROUND(M43*'RATES-Non Fed'!G43,0) -> 0 | O43: =SUM(M43:N43) -> 0 | P43: =SUM(L43+O43) -> 0
C44: Graduate Students | E44: 0 | F44: =SUM(52*E44/4.3333) -> 0 | G44: 0 | J44: =ROUND(($G44*(1+'Salary Inflation'!$B$33))*$E44,0) -> 0 | K44: =ROUND(J44*'RATES-Non Fed'!E42,0) -> 0 | L44: =SUM(J44:K44) -> 0 | M44: =ROUND(J44*(1+'Salary Inflation'!$C$33),0) -> 0 | N44: =ROUND(M44*'RATES-Non Fed'!G42,0) -> 0 | O44: =SUM(M44:N44) -> 0 | P44: =SUM(L44+O44) -> 0
C45: Undergrad Students | E45: 0 | F45: =SUM(52*E45/4.3333) -> 0 | G45: 0 | J45: =ROUND(($G45*(1+'Salary Inflation'!$B$33))*$E45,0) -> 0 | K45: =ROUND(J45*'RATES-Non Fed'!E42,0) -> 0 | L45: =SUM(J45:K45) -> 0 | M45: =ROUND(J45*(1+'Salary Inflation'!$C$33),0) -> 0 | N45: =ROUND(M45*'RATES-Non Fed'!G42,0) -> 0 | O45: =SUM(M45:N45) -> 0 | P45: =SUM(L45+O45) -> 0
C46: Part-time Faculty/Staff | E46: 0 | F46: =SUM(52*E46/4.3333) -> 0 | G46: 0 | J46: =ROUND(($G46*(1+'Salary Inflation'!$B$33))*$E46,0) -> 0 | K46: =ROUND(J46*'RATES-Non Fed'!E43,0) -> 0 | L46: =SUM(J46:K46) -> 0 | M46: =ROUND(J46*(1+'Salary Inflation'!$C$33),0) -> 0 | N46: =ROUND(M46*'RATES-Non Fed'!G43,0) -> 0 | O46: =SUM(M46:N46) -> 0 | P46: =SUM(L46+O46) -> 0
C47: Non-Exempt Staff (Bi-Weekly) | E47: 0 | F47: =SUM(52*E47/4.3333) -> 0 | G47: 0 | J47: =ROUND(($G47*(1+'Salary Inflation'!$B$33))*$E47,0) -> 0 | K47: =ROUND(J47*'RATES-Non Fed'!E41,0) -> 0 | L47: =SUM(J47:K47) -> 0 | M47: =ROUND(J47*(1+'Salary Inflation'!$C$33),0) -> 0 | N47: =ROUND(M47*'RATES-Non Fed'!G41,0) -> 0 | O47: =SUM(M47:N47) -> 0 | P47: =SUM(L47+O47) -> 0
D48: Sub Totals | J48: =SUM(J19+J25+J41+J43+J44+J45+J46+J47) -> 0 | K48: 0 | L48: 0 | M48: 0 | N48: 0 | O48: 0 | P48: =SUM(P43:P47) -> 0
A50: Total Salaries and Fringe Benefits : | J50: =SUM(J48+K48) -> 0 | M50: =SUM(M48+N48) -> 0 | P50: =SUM(J50+M50) -> 0
A52: D. | B52: Equipment
C53: (list) | J53: 0 | M53: =ROUND((J53*1.02),0) -> 0 | P53: =SUM(J53:O53) -> 0
C54: (list) | J54: 0 | M54: =ROUND((J54*1.02),0) -> 0 | P54: =SUM(J54:O54) -> 0
C55: Total Equipment : | J55: =SUM(J53:J54) -> 0 | M55: =SUM(M53:M54) -> 0 | P55: =SUM(J55:O55) -> 0
A57: E. | B57: Travel
C58: Domestic | D58: (list) | M58: =ROUND((J58*1.02),0) -> 0 | P58: =SUM(J58:O58) -> 0
C59: International | D59: (list) | J59: 0 | M59: =ROUND((J59*1.02),0) -> 0 | P59: =SUM(J59:O59) -> 0
C60: Total Travel : | J60: =SUM(J58:J59) -> 0 | M60: =SUM(M58:M59) -> 0 | P60: =SUM(J60:O60) -> 0
A62: G. | B62: Supplies and Other Direct Costs
C63: Materials & Supplies | M63: =ROUND((J63*1.02),0) -> 0 | P63: =SUM(J63:O63) -> 0
C64: LAM | J64: 0 | M64: 0 | P64: 0
C65: Consultant Services | J65: 0 | M65: 0 | P65: 0
C66: Subject Incentives | J66: 0 | M66: 0 | P66: 0
C67: UC Tuition for Trainees/Fellows | J67: 0 | M67: 0 | P67: 0
C68: UC Tuition on Research Projects | J68: 0 | M68: 0 | P68: 0
C69: Lab Expenses | J69: 0 | M69: 0 | P69: 0
C70: Other (Analytical Services/Instrument Use) | J70: 0 | M70: 0 | P70: 0
C71: Subcontracts 1) | J71: 0 | M71: 0 | P71: 0
C72: 2) | J72: 0 | M72: 0 | P72: 0
C73: 3) | J73: 0 | M73: 0 | P73: 0
C74: 4) | J74: 0 | M74: 0 | P74: 0
A75: Total Supplies and Other Direct Costs : | J75: =SUM(J63:J74) -> 0 | M75: =SUM(M63:M74) -> 0 | P75: 0
E77: TOTAL DIRECT COSTS: | J77: =ROUND(+J75+J60+J55+J50,0) -> 0 | M77: =ROUND(+M75+M60+M55+M50,0) -> 0 | P77: =SUM(J77:O77) -> 0
H79: Facilities and Administrative Cost Base: | J79: =J77 -> 0 | M79: =M77 -> 0 | P79: =SUM(J79:O79) -> 0
A80: Facilities and Administrative Costs Calculation:
A81: F&A Cost (on MTDC): | D81: =IF(AND(($E$88)="R",($E$90)="C"),('RATES-Non Fed'!E48),IF(AND(($E$88)="R",($E$90)="O"),('RATES-Non Fed'!E53),IF(AND(($E$88)="I",($E$90)="C"),('RATES-Non Fed'!E49),IF(AND(($E$88)="I",($E$90)="O"),('RATES-Non Fed'!E54),IF(AND(($E$88)="P",($E$90)="C"),('RATES-Non Fed'!E50),IF(AND(($E$88)="P",($E$90)="O"),('RATES-Non Fed'!E55),($E$89))))))) -> 0.57 | E81: =IF(AND(($E$88)="R",($E$90)="C"),('RATES-Non Fed'!G48),IF(AND(($E$88)="R",($E$90)="O"),('RATES-Non Fed'!G53),IF(AND(($E$88)="I",($E$90)="C"),('RATES-Non Fed'!G49),IF(AND(($E$88)="I",($E$90)="O"),('RATES-Non Fed'!G54),IF(AND(($E$88)="P",($E$90)="C"),('RATES-Non Fed'!G50),IF(AND(($E$88)="P",($E$90)="O"),('RATES-Non Fed'!G55),($E$89))))))) -> 0.57 | J81: =+J79*D81 -> 0 | M81: =+M79*E81 -> 0 | P81: =SUM(J81:O81) -> 0
A82: Total F&A Cost : | J82: =SUM(J81:J81) -> 0 | M82: =SUM(M81:M81) -> 0 | P82: =SUM(J82:O82) -> 0
C84: Total Cost | J84: =J82+J77 -> 0 | M84: =M82+M77 -> 0 | P84: =SUM(J84:O84) -> 0
C87: Facilities and Administrative Data
C88: Purpose of Grant / Contract : | E88: I | G88: (R = Research, I = Instruction, P = Public Service, S = Special Rate on Total Costs)
C89: Special F&A Rate : | E89: 0
C90: Campus Status : | E90: C | G90: (C = On Campus, O = Off Campus)
D92: Detailed F&A figures for prorated rates | H92: =IF(E88 = "R", 'RATES-Non Fed'!E31,IF(E88 = "I", 'RATES-Non Fed'!E32, IF(E88 = "P", 'RATES-Non Fed'!E33, ""))) -> 0.57 | J92: =J82/365*'RATES-Non Fed'!$C$48 -> 0 | L92: =IF(E88 = "R", 'RATES-Non Fed'!G31,IF(E88 = "I", 'RATES-Non Fed'!G32, IF(E88 = "P", 'RATES-Non Fed'!G33, ""))) -> 0.57 | M92: =M82/365*'RATES-Non Fed'!$C$48 -> 0
D93: *If both lines have the same rate, then just list as one line on forms. | H93: =IF(E88 = "R", 'RATES-Non Fed'!G31,IF(E88 = "I", 'RATES-Non Fed'!G32, IF(E88 = "P", 'RATES-Non Fed'!G33, ""))) -> 0.57 | J93: =J82/365*'RATES-Non Fed'!$D$48 -> 0 | L93: =IF(E88 = "R", 'RATES-Non Fed'!I31,IF(E88 = "I", 'RATES-Non Fed'!I32, IF(E88 = "P", 'RATES-Non Fed'!I33, ""))) -> 0.57 | M93: =M82/365*'RATES-Non Fed'!$D$48 -> 0 | N93: ='RATES-Non Fed'!Q69 -> 0
J94: =SUM(J92:J93) -> 0 | M94: =SUM(M92:M93) -> 0
B95: UCRI CONSULTANT COSTS
B96: If any faculty or staff will be working directly for UCRI as Consultants, please add those costs to the section below, rather than as UC Personnel above
J97: Year 1 | M97: Year 2 | P97: Cumulative
B98: Consultant Name | C98: Rate ($) | D98: Basis (hourly, daily, etc) | J98: Units | K98: Cost | M98: Units | N98: Cost
D99: hourly | J99: 0 | K99: =$C99*J99 -> 0 | M99: 0 | N99: =$C99*M99 -> 0 | P99: =K99+N99 -> 0
J100: 0 | K100: 0 | M100: 0 | N100: 0 | P100: 0
J101: 0 | K101: 0 | M101: 0 | N101: 0 | P101: 0
J102: 0 | K102: 0 | M102: 0 | N102: 0 | P102: 0
J103: 0 | K103: 0 | M103: 0 | N103: 0 | P103: 0
J104: 0 | K104: 0 | M104: 0 | N104: 0 | P104: 0
B105: Total Consultant Cost (Remains with UCRI) | K105: =SUM(K99:K104) -> 0 | N105: =SUM(N99:N104) -> 0 | P105: 0
B106: F&A on Consultant Costs | K106: =K105*H92 -> 0 | N106: =N105*K92 -> 0 | P106: 0
B107: Total Costs Retained by UCRI | K107: =K105+K106 -> 0 | N107: =N105+N106 -> 0 | P107: 0
B108: All Direct Costs | J108: =K105+J77 -> 0 | M108: =N105+M77 -> 0 | P108: =J108+M108 -> 0
B109: All F&A Costs | J109: =K106+J81 -> 0 | M109: =N106+M81 -> 0 | P109: =J109+M109 -> 0
B110: Grand Total of All Costs - UC & UCRI | J110: =J108+J109 -> 0 | M110: =M108+M109 -> 0 | P110: =J110+M110 -> 0

Sheet 3 Year
A1: Grants / Contracts
A2: 3 Year Budget
A4: Sponsoring Agency : | D4: name | J4: Titled : | K4: name
A5: Principal Investigator : | D5: name
B6: Period : | D6: ='RATES-Non Fed'!E2 -> 2022-07-01 | E6: thru | G6: ='RATES-Non Fed'!G2 -> 2026-06-30
E7: 0.186
B8: Salaries (Use these sections for UC personnel, UNLESS they are working directly for UCRI as Consultants. If working as consultants, use the blue section below for their costs | J8: Year 1 | M8: Year 2 | P8: Year 3 | S8: CUMULATIVE
A9: A. | B9: Salaries | C9: AAUP Faculty | J9: Sal | K9: FB | L9: Total | M9: Sal | N9: FB | O9: Total | P9: Sal | Q9: FB | R9: Total
B10: Senior Personnel | D10: App't Type | E10: % Effort | F10: PM | G10: Salary | S10: =IF(SUM(J10:N10)=0,"",SUM(J10:N10)) -> 
B11: PI | D11: ACAD | E11: 0 | F11: =IF(D11="CAL",(52*E11/4.3333),(IF(D11="ACAD",(36.35*E11/4.33333),IF(D11="SUMR",(15.65*E11/4.33333),IF(D11="PT",(0),0))))) -> 0 | G11: 95000 | J11: =IF($D11="CAL",ROUND(($G11*(1+'Salary Inflation'!$B$30))*$E11,0),IF($D11="ACAD",($G11/0.9965)*(1+'Salary Inflation'!$B$31)*$E11,IF($D11="SUMR",($G11)*(1+'Salary Inflation'!$B$32)*$E11,"NA"))) -> 0 | K11: =IF(D11="CAL",ROUND(J11*'RATES-Non Fed'!$E$38,0),IF(D11="ACAD",J11*'RATES-Non Fed'!$E$44,J11*'RATES-Non Fed'!$E$45)) -> 0 | L11: =ROUND(K11+J11,0) -> 0 | M11: =IF($D11="CAL",ROUND((J11*(1+'Salary Inflation'!$C$30)),0),IF($D11="ACAD",(J11)*(1+'Salary Inflation'!$C$31),IF($D11="SUMR",(J11)*(1+'Salary Inflation'!$C$32),"NA"))) -> 0 | N11: =IF($D11="CAL",ROUND(M11*'RATES-Non Fed'!$G$38,0),IF($D11="ACAD",M11*'RATES-Non Fed'!$G$44,M11*'RATES-Non Fed'!$G$45)) -> 0 | O11: =ROUND(M11+N11,0) -> 0 | P11: =IF($D11="CAL",ROUND((M11*(1+'Salary Inflation'!$D$30)),0),IF($D11="ACAD",(M11)*(1+'Salary Inflation'!$D$31),IF($D11="SUMR",(M11)*(1+'Salary Inflation'!$D$32),"NA"))) -> 0 | Q11: =IF($D11="CAL",ROUND(P11*'RATES-Non Fed'!$I$38,0),IF($D11="ACAD",P11*'RATES-Non Fed'!$I$44,P11*'RATES-Non Fed'!$I$45)) -> 0 | R11: =SUM(P11:Q11) -> 0 | S11: =SUM(L11+O11+R11) -> 0
B12: 44743 | D12: SUMR | E12: 0 | F12: 0 | G12: =IF(D11="ACAD",+G11*0.437,0) -> 41515 | J12: =IF($D12="CAL",ROUND(($G12*(1+'Salary Inflation'!$B$30))*$E12,0),IF($D12="ACAD",($G12/0.9965)*(1+'Salary Inflation'!$B$31)*$E12,IF($D12="SUMR",($G12)*(1+'Salary Inflation'!$B$32)*$E12,"NA"))) -> 0 | K12: =IF(D12="CAL",ROUND(J12*'RATES-Non Fed'!$E$38,0),IF(D12="ACAD",J12*'RATES-Non Fed'!$E$44,J12*'RATES-Non Fed'!$E$45)) -> 0 | L12: 0 | M12: =IF($D12="CAL",ROUND((J12*(1+'Salary Inflation'!$C$30)),0),IF($D12="ACAD",(J12)*(1+'Salary Inflation'!$C$31),IF($D12="SUMR",(J12)*(1+'Salary Inflation'!$C$32),"NA"))) -> 0 | N12: =IF($D12="CAL",ROUND(M12*'RATES-Non Fed'!$G$38,0),IF($D12="ACAD",M12*'RATES-Non Fed'!$G$44,M12*'RATES-Non Fed'!$G$45)) -> 0 | O12: 0 | P12: =IF($D12="CAL",ROUND((M12*(1+'Salary Inflation'!$D$30)),0),IF($D12="ACAD",(M12)*(1+'Salary Inflation'!$D$31),IF($D12="SUMR",(M12)*(1+'Salary Inflation'!$D$32),"NA"))) -> 0 | Q12: =IF($D12="CAL",ROUND(P12*'RATES-Non Fed'!$I$38,0),IF($D12="ACAD",P12*'RATES-Non Fed'!$I$44,P12*'RATES-Non Fed'!$I$45)) -> 0 | R12: 0 | S12: 0
B13: 46203 | D13: ACAD | E13: 0 | F13: 0 | G13: 0 | J13: =IF($D13="CAL",ROUND(($G13*(1+'Salary Inflation'!$B$30))*$E13,0),IF($D13="ACAD",($G13/0.9965)*(1+'Salary Inflation'!$B$31)*$E13,IF($D13="SUMR",($G13)*(1+'Salary Inflation'!$B$32)*$E13,"NA"))) -> 0 | K13: =IF(D13="CAL",ROUND(J13*'RATES-Non Fed'!$E$38,0),IF(D13="ACAD",J13*'RATES-Non Fed'!$E$44,J13*'RATES-Non Fed'!$E$45)) -> 0 | L13: 0 | M13: =IF($D13="CAL",ROUND((J13*(1+'Salary Inflation'!$C$30)),0),IF($D13="ACAD",(J13)*(1+'Salary Inflation'!$C$31),IF($D13="SUMR",(J13)*(1+'Salary Inflation'!$C$32),"NA"))) -> 0 | N13: =IF($D13="CAL",ROUND(M13*'RATES-Non Fed'!$G$38,0),IF($D13="ACAD",M13*'RATES-Non Fed'!$G$44,M13*'RATES-Non Fed'!$G$45)) -> 0 | O13: 0 | P13: =IF($D13="CAL",ROUND((M13*(1+'Salary Inflation'!$D$30)),0),IF($D13="ACAD",(M13)*(1+'Salary Inflation'!$D$31),IF($D13="SUMR",(M13)*(1+'Salary Inflation'!$D$32),"NA"))) -> 0 | Q13: =IF($D13="CAL",ROUND(P13*'RATES-Non Fed'!$I$38,0),IF($D13="ACAD",P13*'RATES-Non Fed'!$I$44,P13*'RATES-Non Fed'!$I$45)) -> 0 | R13: 0 | S13: 0
D14: =IF(D13="ACAD",("SUMR"),"") -> SUMR | E14: 0 | F14: 0 | G14: =IF(D13="ACAD",+G13*0.437,0) -> 0 | J14: =IF($D14="CAL",ROUND(($G14*(1+'Salary Inflation'!$B$30))*$E14,0),IF($D14="ACAD",($G14/0.9965)*(1+'Salary Inflation'!$B$31)*$E14,IF($D14="SUMR",($G14)*(1+'Salary Inflation'!$B$32)*$E14,"NA"))) -> 0 | K14: =IF(D14="CAL",ROUND(J14*'RATES-Non Fed'!$E$38,0),IF(D14="ACAD",J14*'RATES-Non Fed'!$E$44,J14*'RATES-Non Fed'!$E$45)) -> 0 | L14: 0 | M14: =IF($D14="CAL",ROUND((J14*(1+'Salary Inflation'!$C$30)),0),IF($D14="ACAD",(J14)*(1+'Salary Inflation'!$C$31),IF($D14="SUMR",(J14)*(1+'Salary Inflation'!$C$32),"NA"))) -> 0 | N14: =IF($D14="CAL",ROUND(M14*'RATES-Non Fed'!$G$38,0),IF($D14="ACAD",M14*'RATES-Non Fed'!$G$44,M14*'RATES-Non Fed'!$G$45)) -> 0 | O14: 0 | P14: =IF($D14="CAL",ROUND((M14*(1+'Salary Inflation'!$D$30)),0),IF($D14="ACAD",(M14)*(1+'Salary Inflation'!$D$31),IF($D14="SUMR",(M14)*(1+'Salary Inflation'!$D$32),"NA"))) -> 0 | Q14: =IF($D14="CAL",ROUND(P14*'RATES-Non Fed'!$I$38,0),IF($D14="ACAD",P14*'RATES-Non Fed'!$I$44,P14*'RATES-Non Fed'!$I$45)) -> 0 | R14: 0 | S14: 0
B15: Co | D15: ACAD | E15: 0 | F15: 0 | G15: 0 | J15: =IF($D15="CAL",ROUND(($G15*(1+'Salary Inflation'!$B$30))*$E15,0),IF($D15="ACAD",($G15/0.9965)*(1+'Salary Inflation'!$B$31)*$E15,IF($D15="SUMR",($G15)*(1+'Salary Inflation'!$B$32)*$E15,"NA"))) -> 0 | K15: =IF(D15="CAL",ROUND(J15*'RATES-Non Fed'!$E$38,0),IF(D15="ACAD",J15*'RATES-Non Fed'!$E$44,J15*'RATES-Non Fed'!$E$45)) -> 0 | L15: 0 | M15: =IF($D15="CAL",ROUND((J15*(1+'Salary Inflation'!$C$30)),0),IF($D15="ACAD",(J15)*(1+'Salary Inflation'!$C$31),IF($D15="SUMR",(J15)*(1+'Salary Inflation'!$C$32),"NA"))) -> 0 | N15: =IF($D15="CAL",ROUND(M15*'RATES-Non Fed'!$G$38,0),IF($D15="ACAD",M15*'RATES-Non Fed'!$G$44,M15*'RATES-Non Fed'!$G$45)) -> 0 | O15: 0 | P15: =IF($D15="CAL",ROUND((M15*(1+'Salary Inflation'!$D$30)),0),IF($D15="ACAD",(M15)*(1+'Salary Inflation'!$D$31),IF($D15="SUMR",(M15)*(1+'Salary Inflation'!$D$32),"NA"))) -> 0 | Q15: =IF($D15="CAL",ROUND(P15*'RATES-Non Fed'!$I$38,0),IF($D15="ACAD",P15*'RATES-Non Fed'!$I$44,P15*'RATES-Non Fed'!$I$45)) -> 0 | R15: 0 | S15: 0
D16: =IF(D15="ACAD",("SUMR"),"") -> SUMR | E16: 0 | F16: 0 | G16: =IF(D15="ACAD",+G15*0.428,0) -> 0 | J16: =IF($D16="CAL",ROUND(($G16*(1+'Salary Inflation'!$B$30))*$E16,0),IF($D16="ACAD",($G16/0.9965)*(1+'Salary Inflation'!$B$31)*$E16,IF($D16="SUMR",($G16)*(1+'Salary Inflation'!$B$32)*$E16,"NA"))) -> 0 | K16: =IF(D16="CAL",ROUND(J16*'RATES-Non Fed'!$E$38,0),IF(D16="ACAD",J16*'RATES-Non Fed'!$E$44,J16*'RATES-Non Fed'!$E$45)) -> 0 | L16: 0 | M16: =IF($D16="CAL",ROUND((J16*(1+'Salary Inflation'!$C$30)),0),IF($D16="ACAD",(J16)*(1+'Salary Inflation'!$C$31),IF($D16="SUMR",(J16)*(1+'Salary Inflation'!$C$32),"NA"))) -> 0 | N16: =IF($D16="CAL",ROUND(M16*'RATES-Non Fed'!$G$38,0),IF($D16="ACAD",M16*'RATES-Non Fed'!$G$44,M16*'RATES-Non Fed'!$G$45)) -> 0 | O16: 0 | P16: =IF($D16="CAL",ROUND((M16*(1+'Salary Inflation'!$D$30)),0),IF($D16="ACAD",(M16)*(1+'Salary Inflation'!$D$31),IF($D16="SUMR",(M16)*(1+'Salary Inflation'!$D$32),"NA"))) -> 0 | Q16: =IF($D16="CAL",ROUND(P16*'RATES-Non Fed'!$I$38,0),IF($D16="ACAD",P16*'RATES-Non Fed'!$I$44,P16*'RATES-Non Fed'!$I$45)) -> 0 | R16: 0 | S16: 0
B17: Co | D17: CAL | E17: 0 | F17: 0 | G17: 0 | J17: =IF($D17="CAL",ROUND(($G17*(1+'Salary Inflation'!$B$30))*$E17,0),IF($D17="ACAD",($G17/0.9965)*(1+'Salary Inflation'!$B$31)*$E17,IF($D17="SUMR",($G17)*(1+'Salary Inflation'!$B$32)*$E17,"NA"))) -> 0 | K17: =IF(D17="CAL",ROUND(J17*'RATES-Non Fed'!$E$38,0),IF(D17="ACAD",J17*'RATES-Non Fed'!$E$44,J17*'RATES-Non Fed'!$E$45)) -> 0 | L17: 0 | M17: =IF($D17="CAL",ROUND((J17*(1+'Salary Inflation'!$C$30)),0),IF($D17="ACAD",(J17)*(1+'Salary Inflation'!$C$31),IF($D17="SUMR",(J17)*(1+'Salary Inflation'!$C$32),"NA"))) -> 0 | N17: =IF($D17="CAL",ROUND(M17*'RATES-Non Fed'!$G$38,0),IF($D17="ACAD",M17*'RATES-Non Fed'!$G$44,M17*'RATES-Non Fed'!$G$45)) -> 0 | O17: 0 | P17: =IF($D17="CAL",ROUND((M17*(1+'Salary Inflation'!$D$30)),0),IF($D17="ACAD",(M17)*(1+'Salary Inflation'!$D$31),IF($D17="SUMR",(M17)*(1+'Salary Inflation'!$D$32),"NA"))) -> 0 | Q17: =IF($D17="CAL",ROUND(P17*'RATES-Non Fed'!$I$38,0),IF($D17="ACAD",P17*'RATES-Non Fed'!$I$44,P17*'RATES-Non Fed'!$I$45)) -> 0 | R17: 0 | S17: 0
B18: Co | D18: CAL | E18: 0 | F18: 0 | G18: 0 | J18: =IF($D18="CAL",ROUND(($G18*(1+'Salary Inflation'!$B$30))*$E18,0),IF($D18="ACAD",($G18/0.9965)*(1+'Salary Inflation'!$B$31)*$E18,IF($D18="SUMR",($G18)*(1+'Salary Inflation'!$B$32)*$E18,"NA"))) -> 0 | K18: =IF(D18="CAL",ROUND(J18*'RATES-Non Fed'!$E$38,0),IF(D18="ACAD",J18*'RATES-Non Fed'!$E$44,J18*'RATES-Non Fed'!$E$45)) -> 0 | L18: 0 | M18: =IF($D18="CAL",ROUND((J18*(1+'Salary Inflation'!$C$30)),0),IF($D18="ACAD",(J18)*(1+'Salary Inflation'!$C$31),IF($D18="SUMR",(J18)*(1+'Salary Inflation'!$C$32),"NA"))) -> 0 | N18: =IF($D18="CAL",ROUND(M18*'RATES-Non Fed'!$G$38,0),IF($D18="ACAD",M18*'RATES-Non Fed'!$G$44,M18*'RATES-Non Fed'!$G$45)) -> 0 | O18: 0 | P18: =IF($D18="CAL",ROUND((M18*(1+'Salary Inflation'!$D$30)),0),IF($D18="ACAD",(M18)*(1+'Salary Inflation'!$D$31),IF($D18="SUMR",(M18)*(1+'Salary Inflation'!$D$32),"NA"))) -> 0 | Q18: =IF($D18="CAL",ROUND(P18*'RATES-Non Fed'!$I$38,0),IF($D18="ACAD",P18*'RATES-Non Fed'!$I$44,P18*'RATES-Non Fed'!$I$45)) -> 0 | R18: 0 | S18: 0
D19: AAUP Faculty Subtotal : | J19: =SUM(J11:J18) -> 0 | K19: 0 | L19: 0 | M19: 0 | N19: 0 | O19: 0 | P19: 0 | Q19: 0 | R19: 0 | S19: 0
A20: B | B20: 2
B21: Co | D21: CAL | E21: 0 | F21: =IF(D21="CAL",(52*E21/4.3333),(IF(D21="ACAD",(32*E21/4.33333),IF(D21="SUMR",(14*E21/4.33333),IF(D21="PT",(0),0))))) -> 0 | G21: 0 | J21: =ROUND(($G21*(1+'Salary Inflation'!$B$34))*$E21,0) -> 0 | K21: =ROUND(J21*'RATES-Non Fed'!E40,0) -> 0 | L21: =ROUND(K21+J21,0) -> 0 | M21: =ROUND(J21*(1+'Salary Inflation'!$C$34),0) -> 0 | N21: =ROUND(M21*'RATES-Non Fed'!G40,0) -> 0 | O21: =ROUND(M21+N21,0) -> 0 | P21: =ROUND(M21*(1+'Salary Inflation'!$C$34),0) -> 0 | Q21: =ROUND(P21*'RATES-Non Fed'!I40,0) -> 0 | R21: =ROUND(P21+Q21,0) -> 0 | S21: =SUM(L21+O21+R21) -> 0
B22: Co | D22: CAL | E22: 0 | F22: =IF(D22="CAL",(52*E22/4.3333),(IF(D22="ACAD",(32*E22/4.33333),IF(D22="SUMR",(14*E22/4.33333),IF(D22="PT",(0),0))))) -> 0 | G22: 0 | J22: =ROUND(($G22*(1+'Salary Inflation'!$B$34))*$E22,0) -> 0 | K22: =ROUND(J22*'RATES-Non Fed'!E40,0) -> 0 | L22: =ROUND(K22+J22,0) -> 0 | M22: =ROUND(J22*(1+'Salary Inflation'!$C$34),0) -> 0 | N22: =ROUND(M22*'RATES-Non Fed'!G40,0) -> 0 | O22: =ROUND(M22+N22,0) -> 0 | P22: =ROUND(M22*(1+'Salary Inflation'!$C$34),0) -> 0 | Q22: =ROUND(P22*'RATES-Non Fed'!I40,0) -> 0 | R22: =ROUND(P22+Q22,0) -> 0 | S22: =SUM(L22+O22+R22) -> 0
B23: Co | D23: CAL | E23: 0 | F23: =IF(D23="CAL",(52*E23/4.3333),(IF(D23="ACAD",(32*E23/4.33333),IF(D23="SUMR",(14*E23/4.33333),IF(D23="PT",(0),0))))) -> 0 | G23: 0 | J23: =ROUND(($G23*(1+'Salary Inflation'!$B$34))*$E23,0) -> 0 | K23: =ROUND(J23*'RATES-Non Fed'!E40,0) -> 0 | L23: =ROUND(K23+J23,0) -> 0 | M23: =ROUND(J23*(1+'Salary Inflation'!$C$34),0) -> 0 | N23: =ROUND(M23*'RATES-Non Fed'!G40,0) -> 0 | O23: =ROUND(M23+N23,0) -> 0 | P23: =ROUND(M23*(1+'Salary Inflation'!$C$34),0) -> 0 | Q23: =ROUND(P23*'RATES-Non Fed'!I40,0) -> 0 | R23: =ROUND(P23+Q23,0) -> 0 | S23: =SUM(L23+O23+R23) -> 0
B24: Co | D24: CAL | E24: 0 | F24: =IF(D24="CAL",(52*E24/4.3333),(IF(D24="ACAD",(32*E24/4.33333),IF(D24="SUMR",(14*E24/4.33333),IF(D24="PT",(0),0))))) -> 0 | G24: 0 | J24: =ROUND(($G24*(1+'Salary Inflation'!$B$34))*$E24,0) -> 0 | K24: =ROUND(J24*'RATES-Non Fed'!E40,0) -> 0 | L24: =ROUND(K24+J24,0) -> 0 | M24: =ROUND(J24*(1+'Salary Inflation'!$C$34),0) -> 0 | N24: =ROUND(M24*'RATES-Non Fed'!G40,0) -> 0 | O24: =ROUND(M24+N24,0) -> 0 | P24: =ROUND(M24*(1+'Salary Inflation'!$C$34),0) -> 0 | Q24: =ROUND(P24*'RATES-Non Fed'!I40,0) -> 0 | R24: =ROUND(P24+Q24,0) -> 0 | S24: =SUM(L24+O24+R24) -> 0
D25: Dual Comp Faculty Subtotal : | J25: =SUM(J21:J24) -> 0 | K25: 0 | L25: 0 | M25: 0 | N25: 0 | O25: 0 | P25: 0 | Q25: 0 | R25: 0 | S25: 0
A27: C. | B27: Other Personnel
C28: Exempt Staff (Monthly) | D28: Name
E29: 0 | F29: =SUM(52*E29/4.3333) -> 0 | G29: 0 | J29: =ROUND(($G29*(1+'Salary Inflation'!$B$33))*$E29,0) -> 0 | K29: =ROUND(J29*'RATES-Non Fed'!E39,0) -> 0 | L29: =SUM(J29:K29) -> 0 | M29: =ROUND(J29*(1+'Salary Inflation'!$C$33),0) -> 0 | N29: =ROUND(M29*'RATES-Non Fed'!G39,0) -> 0 | O29: =SUM(M29:N29) -> 0 | P29: =ROUND(M29*(1+'Salary Inflation'!$D$33),0) -> 0 | Q29: =ROUND(P29*'RATES-Non Fed'!I39,0) -> 0 | R29: =SUM(P29:Q29) -> 0 | S29: =SUM(L29+O29+R29) -> 0
E30: 0 | F30: =SUM(52*E30/4.3333) -> 0 | G30: 0 | J30: =ROUND(($G30*(1+'Salary Inflation'!$B$33))*$E30,0) -> 0 | K30: =ROUND(J30*'RATES-Non Fed'!E40,0) -> 0 | L30: =SUM(J30:K30) -> 0 | M30: =ROUND(J30*(1+'Salary Inflation'!$C$33),0) -> 0 | N30: =ROUND(M30*'RATES-Non Fed'!G40,0) -> 0 | O30: =SUM(M30:N30) -> 0 | P30: =ROUND(M30*(1+'Salary Inflation'!$D$33),0) -> 0 | Q30: =ROUND(P30*'RATES-Non Fed'!I40,0) -> 0 | R30: =SUM(P30:Q30) -> 0 | S30: =SUM(L30+O30+R30) -> 0
E31: 0 | F31: 0 | G31: 0 | J31: =ROUND(($G31*(1+'Salary Inflation'!$B$33))*$E31,0) -> 0 | K31: =ROUND(J31*'RATES-Non Fed'!E41,0) -> 0 | L31: 0 | M31: =ROUND(J31*(1+'Salary Inflation'!$C$33),0) -> 0 | N31: =ROUND(M31*'RATES-Non Fed'!G41,0) -> 0 | O31: 0 | P31: =ROUND(M31*(1+'Salary Inflation'!$D$33),0) -> 0 | Q31: =ROUND(P31*'RATES-Non Fed'!I41,0) -> 0 | R31: 0 | S31: 0
E32: 0 | F32: 0 | G32: 0 | J32: =ROUND(($G32*(1+'Salary Inflation'!$B$33))*$E32,0) -> 0 | K32: =ROUND(J32*'RATES-Non Fed'!E42,0) -> 0 | L32: 0 | M32: =ROUND(J32*(1+'Salary Inflation'!$C$33),0) -> 0 | N32: =ROUND(M32*'RATES-Non Fed'!G42,0) -> 0 | O32: 0 | P32: =ROUND(M32*(1+'Salary Inflation'!$D$33),0) -> 0 | Q32: =ROUND(P32*'RATES-Non Fed'!I42,0) -> 0 | R32: 0 | S32: 0
E33: 0 | F33: 0 | G33: 0 | J33: =ROUND(($G33*(1+'Salary Inflation'!$B$33))*$E33,0) -> 0 | K33: =ROUND(J33*'RATES-Non Fed'!E43,0) -> 0 | L33: 0 | M33: =ROUND(J33*(1+'Salary Inflation'!$C$33),0) -> 0 | N33: =ROUND(M33*'RATES-Non Fed'!G43,0) -> 0 | O33: 0 | P33: =ROUND(M33*(1+'Salary Inflation'!$D$33),0) -> 0 | Q33: =ROUND(P33*'RATES-Non Fed'!I43,0) -> 0 | R33: 0 | S33: 0
E34: 0 | F34: 0 | G34: 0 | J34: =ROUND(($G34*(1+'Salary Inflation'!$B$33))*$E34,0) -> 0 | K34: =ROUND(J34*'RATES-Non Fed'!E44,0) -> 0 | L34: 0 | M34: =ROUND(J34*(1+'Salary Inflation'!$C$33),0) -> 0 | N34: =ROUND(M34*'RATES-Non Fed'!G44,0) -> 0 | O34: 0 | P34: =ROUND(M34*(1+'Salary Inflation'!$D$33),0) -> 0 | Q34: =ROUND(P34*'RATES-Non Fed'!I44,0) -> 0 | R34: 0 | S34: 0
E35: 0 | F35: 0 | G35: 0 | J35: =ROUND(($G35*(1+'Salary Inflation'!$B$33))*$E35,0) -> 0 | K35: =ROUND(J35*'RATES-Non Fed'!E45,0) -> 0 | L35: 0 | M35: =ROUND(J35*(1+'Salary Inflation'!$C$33),0) -> 0 | N35: =ROUND(M35*'RATES-Non Fed'!G45,0) -> 0 | O35: 0 | P35: =ROUND(M35*(1+'Salary Inflation'!$D$33),0) -> 0 | Q35: =ROUND(P35*'RATES-Non Fed'!I45,0) -> 0 | R35: 0 | S35: 0
E36: 0 | F36: 0 | G36: 0 | J36: =ROUND(($G36*(1+'Salary Inflation'!$B$33))*$E36,0) -> 0 | K36: =ROUND(J36*'RATES-Non Fed'!E46,0) -> 0 | L36: 0 | M36: =ROUND(J36*(1+'Salary Inflation'!$C$33),0) -> 0 | N36: =ROUND(M36*'RATES-Non Fed'!G46,0) -> 0 | O36: 0 | P36: =ROUND(M36*(1+'Salary Inflation'!$D$33),0) -> 0 | Q36: =ROUND(P36*'RATES-Non Fed'!I46,0) -> 0 | R36: 0 | S36: 0
E37: 0 | F37: 0 | G37: 0 | J37: =ROUND(($G37*(1+'Salary Inflation'!$B$33))*$E37,0) -> 0 | K37: =ROUND(J37*'RATES-Non Fed'!E47,0) -> 0 | L37: 0 | M37: =ROUND(J37*(1+'Salary Inflation'!$C$33),0) -> 0 | N37: =ROUND(M37*'RATES-Non Fed'!G47,0) -> 0 | O37: 0 | P37: =ROUND(M37*(1+'Salary Inflation'!$D$33),0) -> 0 | Q37: =ROUND(P37*'RATES-Non Fed'!I47,0) -> 0 | R37: 0 | S37: 0
E38: 0 | F38: =SUM(52*E38/4.3333) -> 0 | G38: 0 | J38: =ROUND(($G38*(1+'Salary Inflation'!$B$33))*$E38,0) -> 0 | K38: =ROUND(J38*'RATES-Non Fed'!E39,0) -> 0 | L38: =SUM(J38:K38) -> 0 | M38: =ROUND(J38*(1+'Salary Inflation'!$C$33),0) -> 0 | N38: =ROUND(M38*'RATES-Non Fed'!G39,0) -> 0 | O38: =SUM(M38:N38) -> 0 | P38: =ROUND(M38*(1+'Salary Inflation'!$D$33),0) -> 0 | Q38: =ROUND(P38*'RATES-Non Fed'!I39,0) -> 0 | R38: =SUM(P38:Q38) -> 0 | S38: =SUM(L38+O38+R38) -> 0
E39: 0 | F39: =SUM(52*E39/4.3333) -> 0 | G39: 0 | J39: =ROUND(($G39*(1+'Salary Inflation'!$B$33))*$E39,0) -> 0 | K39: =ROUND(J39*'RATES-Non Fed'!E39,0) -> 0 | L39: =SUM(J39:K39) -> 0 | M39: =ROUND(J39*(1+'Salary Inflation'!$C$33),0) -> 0 | N39: =ROUND(M39*'RATES-Non Fed'!G39,0) -> 0 | O39: =SUM(M39:N39) -> 0 | P39: =ROUND(M39*(1+'Salary Inflation'!$D$33),0) -> 0 | Q39: =ROUND(P39*'RATES-Non Fed'!I39,0) -> 0 | R39: =SUM(P39:Q39) -> 0 | S39: =SUM(L39+O39+R39) -> 0
E40: 0 | F40: =SUM(52*E40/4.3333) -> 0 | G40: 0 | J40: =ROUND(($G40*(1+'Salary Inflation'!$B$33))*$E40,0) -> 0 | K40: =ROUND(J40*'RATES-Non Fed'!E39,0) -> 0 | L40: =SUM(J40:K40) -> 0 | M40: =ROUND(J40*(1+'Salary Inflation'!$C$33),0) -> 0 | N40: =ROUND(M40*'RATES-Non Fed'!G39,0) -> 0 | O40: =SUM(M40:N40) -> 0 | P40: =ROUND(M40*(1+'Salary Inflation'!$D$33),0) -> 0 | Q40: =ROUND(P40*'RATES-Non Fed'!I39,0) -> 0 | R40: =SUM(P40:Q40) -> 0 | S40: =SUM(L40+O40+R40) -> 0
D41: Total Exempt Staff | J41: =SUM(J29:J40) -> 0 | K41: 0 | L41: 0 | M41: 0 | N41: 0 | O41: 0 | P41: 0 | Q41: 0 | R41: 0 | S41: 0
C43: Post Doctoral Support | E43: 0 | F43: =SUM(52*E43/4.3333) -> 0 | G43: 0 | J43: =ROUND(($G43*(1+'Salary Inflation'!$B$33))*$E43,0) -> 0 | K43: =ROUND(J43*'RATES-Non Fed'!E43,0) -> 0 | L43: =SUM(J43:K43) -> 0 | M43: =ROUND(J43*(1+'Salary Inflation'!$C$33),0) -> 0 | N43: =ROUND(M43*'RATES-Non Fed'!G43,0) -> 0 | O43: =SUM(M43:N43) -> 0 | P43: =ROUND(M43*(1+'Salary Inflation'!$D$33),0) -> 0 | Q43: =ROUND(P43*'RATES-Non Fed'!I43,0) -> 0 | R43: =SUM(P43:Q43) -> 0 | S43: =SUM(L43+O43+R43) -> 0
C44: Graduate Students | E44: 0 | F44: =SUM(52*E44/4.3333) -> 0 | G44: 0 | J44: =ROUND(($G44*(1+'Salary Inflation'!$B$33))*$E44,0) -> 0 | K44: =ROUND(J44*'RATES-Non Fed'!E42,0) -> 0 | L44: =SUM(J44:K44) -> 0 | M44: =ROUND(J44*(1+'Salary Inflation'!$C$33),0) -> 0 | N44: =ROUND(M44*'RATES-Non Fed'!G42,0) -> 0 | O44: =SUM(M44:N44) -> 0 | P44: =ROUND(M44*(1+'Salary Inflation'!$D$33),0) -> 0 | Q44: =ROUND(P44*'RATES-Non Fed'!I42,0) -> 0 | R44: =SUM(P44:Q44) -> 0 | S44: =SUM(L44+O44+R44) -> 0
C45: Undergrad Students | E45: 0 | F45: =SUM(52*E45/4.3333) -> 0 | G45: 0 | J45: =ROUND(($G45*(1+'Salary Inflation'!$B$33))*$E45,0) -> 0 | K45: =ROUND(J45*'RATES-Non Fed'!E42,0) -> 0 | L45: =SUM(J45:K45) -> 0 | M45: =ROUND(J45*(1+'Salary Inflation'!$C$33),0) -> 0 | N45: =ROUND(M45*'RATES-Non Fed'!G42,0) -> 0 | O45: =SUM(M45:N45) -> 0 | P45: =ROUND(M45*(1+'Salary Inflation'!$D$33),0) -> 0 | Q45: =ROUND(P45*'RATES-Non Fed'!I42,0) -> 0 | R45: =SUM(P45:Q45) -> 0 | S45: =SUM(L45+O45+R45) -> 0
C46: Part-time Faculty/Staff | E46: 0 | F46: =SUM(52*E46/4.3333) -> 0 | G46: 0 | J46: =ROUND(($G46*(1+'Salary Inflation'!$B$33))*$E46,0) -> 0 | K46: =ROUND(J46*'RATES-Non Fed'!E43,0) -> 0 | L46: =SUM(J46:K46) -> 0 | M46: =ROUND(J46*(1+'Salary Inflation'!$C$33),0) -> 0 | N46: =ROUND(M46*'RATES-Non Fed'!G43,0) -> 0 | O46: =SUM(M46:N46) -> 0 | P46: =ROUND(M46*(1+'Salary Inflation'!$D$33),0) -> 0 | Q46: =ROUND(P46*'RATES-Non Fed'!I43,0) -> 0 | R46: =SUM(P46:Q46) -> 0 | S46: =SUM(L46+O46+R46) -> 0
C47: Non-Exempt Staff (Bi-Weekly) | E47: 0 | F47: =SUM(52*E47/4.3333) -> 0 | G47: 0 | J47: =ROUND(($G47*(1+'Salary Inflation'!$B$33))*$E47,0) -> 0 | K47: =ROUND(J47*'RATES-Non Fed'!E41,0) -> 0 | L47: =SUM(J47:K47) -> 0 | M47: =ROUND(J47*(1+'Salary Inflation'!$C$33),0) -> 0 | N47: =ROUND(M47*'RATES-Non Fed'!G41,0) -> 0 | O47: =SUM(M47:N47) -> 0 | P47: =ROUND(M47*(1+'Salary Inflation'!$D$33),0) -> 0 | Q47: =ROUND(P47*'RATES-Non Fed'!I41,0) -> 0 | R47: =SUM(P47:Q47) -> 0 | S47: =SUM(L47+O47+R47) -> 0
D48: Sub Totals | J48: =SUM(J19+J25+J41+J43+J44+J45+J46+J47) -> 0 | K48: 0 | L48: 0 | M48: 0 | N48: 0 | O48: 0 | P48: 0 | Q48: 0 | R48: 0 | S48: =SUM(S43:S47) -> 0
A50: Total Salaries and Fringe Benefits : | J50: =SUM(J48+K48) -> 0 | M50: =SUM(M48+N48) -> 0 | P50: =SUM(P48+Q48) -> 0 | S50: =SUM(J50+M50+P50) -> 0
A52: D. | B52: Equipment
C53: (list) | J53: 0 | M53: 0 | P53: 0 | S53: =SUM(J53:R53) -> 0
C54: (list) | J54: 0 | M54: 0 | P54: 0 | S54: =SUM(J54:R54) -> 0
C55: Total Equipment : | J55: =SUM(J53:J54) -> 0 | M55: =SUM(M53:M54) -> 0 | P55: =SUM(P53:P54) -> 0 | S55: =SUM(J55:R55) -> 0
A57: E. | B57: Travel
C58: Domestic | D58: (list) | M58: =ROUND((J58*1.02),0) -> 0 | P58: =ROUND((M58*1.02),0) -> 0 | S58: =SUM(J58:R58) -> 0
C59: International | D59: (list) | J59: 0 | M59: =ROUND((J59*1.02),0) -> 0 | P59: =ROUND((M59*1.02),0) -> 0 | S59: =SUM(J59:R59) -> 0
C60: Total Travel : | J60: =SUM(J58:J59) -> 0 | M60: =SUM(M58:M59) -> 0 | P60: =SUM(P58:P59) -> 0 | S60: =SUM(J60:R60) -> 0
A62: G. | B62: Supplies and Other Direct Costs
C63: Materials & Supplies | J63: 0 | M63: =ROUND((J63*1.02),0) -> 0 | P63: =ROUND((M63*1.02),0) -> 0 | S63: =SUM(J63:R63) -> 0
C64: LAM | J64: 0 | M64: 0 | P64: 0 | S64: 0
C65: Consultant Services | J65: 0 | M65: 0 | P65: 0 | S65: 0
C66: Subject Incentives | J66: 0 | M66: 0 | P66: 0 | S66: 0
C67: UC Tuition for Trainees/Fellows | J67: 0 | M67: 0 | P67: 0 | S67: 0
C68: UC Tuition on Research Projects | J68: 0 | M68: 0 | P68: 0 | S68: 0
C69: Lab Expenses | J69: 0 | M69: 0 | P69: 0 | S69: 0
C70: Other (Analytical Services/Instrument Use) | J70: 0 | M70: 0 | P70: 0 | S70: 0
C71: Subcontracts 1) | J71: 0 | M71: 0 | P71: 0 | S71: 0
C72: 2) | J72: 0 | M72: 0 | P72: 0 | S72: 0
C73: 3) | J73: 0 | M73: 0 | P73: 0 | S73: 0
C74: 4) | J74: 0 | M74: 0 | P74: 0 | S74: 0
A75: Total Supplies and Other Direct Costs : | J75: =SUM(J63:J74) -> 0 | M75: =SUM(M63:M74) -> 0 | P75: =SUM(P63:P74) -> 0 | S75: 0
E77: TOTAL DIRECT COSTS: | J77: =ROUND(+J75+J60+J55+J50,0) -> 0 | M77: =ROUND(+M75+M60+M55+M50,0) -> 0 | P77: =ROUND(+P75+P60+P55+P50,0) -> 0 | S77: =SUM(J77:R77) -> 0
H79: Facilities and Administrative Cost Base: | J79: =J77 -> 0 | M79: =M77 -> 0 | P79: =P77 -> 0 | S79: =SUM(J79:R79) -> 0
A80: Facilities and Administrative Costs Calculation:
A81: F&A Cost (on MTDC): | D81: =IF(AND(($E$88)="R",($E$90)="C"),('RATES-Non Fed'!E48),IF(AND(($E$88)="R",($E$90)="O"),('RATES-Non Fed'!E53),IF(AND(($E$88)="I",($E$90)="C"),('RATES-Non Fed'!E49),IF(AND(($E$88)="I",($E$90)="O"),('RATES-Non Fed'!E54),IF(AND(($E$88)="P",($E$90)="C"),('RATES-Non Fed'!E50),IF(AND(($E$88)="P",($E$90)="O"),('RATES-Non Fed'!E55),($E$89))))))) -> 0.31 | E81: =IF(AND(($E$88)="R",($E$90)="C"),('RATES-Non Fed'!G48),IF(AND(($E$88)="R",($E$90)="O"),('RATES-Non Fed'!G53),IF(AND(($E$88)="I",($E$90)="C"),('RATES-Non Fed'!G49),IF(AND(($E$88)="I",($E$90)="O"),('RATES-Non Fed'!G54),IF(AND(($E$88)="P",($E$90)="C"),('RATES-Non Fed'!G50),IF(AND(($E$88)="P",($E$90)="O"),('RATES-Non Fed'!G55),($E$89))))))) -> 0.31 | F81: =IF(AND(($E$88)="R",($E$90)="C"),('RATES-Non Fed'!I48),IF(AND(($E$88)="R",($E$90)="O"),('RATES-Non Fed'!I53),IF(AND(($E$88)="I",($E$90)="C"),('RATES-Non Fed'!I49),IF(AND(($E$88)="I",($E$90)="O"),('RATES-Non Fed'!I54),IF(AND(($E$88)="P",($E$90)="C"),('RATES-Non Fed'!I50),IF(AND(($E$88)="P",($E$90)="O"),('RATES-Non Fed'!I55),($E$89))))))) -> 0.31 | J81: =+J79*D81 -> 0 | M81: =+M79*E81 -> 0 | P81: =+P79*F81 -> 0 | S81: =SUM(J81:R81) -> 0
A82: Total F&A Cost : | J82: =SUM(J81:J81) -> 0 | M82: =SUM(M81:M81) -> 0 | P82: =SUM(P81:P81) -> 0 | S82: =SUM(J82:R82) -> 0
C84: Total Cost | J84: =J82+J77 -> 0 | M84: =M82+M77 -> 0 | P84: =P82+P77 -> 0 | S84: =SUM(J84:R84) -> 0
C87: Facilities and Administrative Data
C88: Purpose of Grant / Contract : | E88: P | G88: (R = Research, I = Instruction, P = Public Service, S = Special Rate on Total Costs)
C89: Special F&A Rate : | E89: 0.1
C90: Campus Status : | E90: C | G90: (C = On Campus, O = Off Campus)
D92: Detailed F&A figures for prorated rates | H92: =IF(E88 = "R", 'RATES-Non Fed'!E31,IF(E88 = "I", 'RATES-Non Fed'!E32, IF(E88 = "P", 'RATES-Non Fed'!E33, ""))) -> 0.31 | J92: =J82/365*'RATES-Non Fed'!$C$48 -> 0 | L92: =IF(E88 = "R", 'RATES-Non Fed'!G31,IF(E88 = "I", 'RATES-Non Fed'!G32, IF(E88 = "P", 'RATES-Non Fed'!G33, ""))) -> 0.31 | M92: =M82/365*'RATES-Non Fed'!$C$48 -> 0 | O92: =IF(E88 = "R", 'RATES-Non Fed'!I31,IF(E88 = "I", 'RATES-Non Fed'!I32, IF(E88 = "P", 'RATES-Non Fed'!I33, ""))) -> 0.31 | P92: =P82/365*'RATES-Non Fed'!$C$48 -> 0
D93: *If both lines have the same rate, then just list as one line on forms. | H93: =IF(E88 = "R", 'RATES-Non Fed'!G31,IF(E88 = "I", 'RATES-Non Fed'!G32, IF(E88 = "P", 'RATES-Non Fed'!G33, ""))) -> 0.31 | J93: =J82/365*'RATES-Non Fed'!$D$48 -> 0 | L93: =IF(E88 = "R", 'RATES-Non Fed'!I31,IF(E88 = "I", 'RATES-Non Fed'!I32, IF(E88 = "P", 'RATES-Non Fed'!I33, ""))) -> 0.31 | M93: =M82/365*'RATES-Non Fed'!$D$48 -> 0 | O93: =IF(E88 = "R", 'RATES-Non Fed'!K31,IF(E88 = "I", 'RATES-Non Fed'!K32, IF(E88 = "P", 'RATES-Non Fed'!K33, ""))) -> 0.31 | P93: =P82/365*'RATES-Non Fed'!$D$48 -> 0
J94: =SUM(J92:J93) -> 0 | M94: =SUM(M92:M93) -> 0 | P94: =SUM(P92:P93) -> 0 | Q94: ='RATES-Non Fed'!Q69 -> 0
B95: UCRI CONSULTANT COSTS
B96: If any faculty or staff will be working directly for UCRI as Consultants, please add those costs to the section below, rather than as UC Personnel above
J97: Year 1 | M97: Year 2 | P97: Year 3 | S97: Cumulative
B98: Consultant Name | C98: Rate ($) | D98: Basis (hourly, daily, etc) | J98: Units | K98: Cost | M98: Units | N98: Cost | P98: Units | Q98: Cost
D99: hourly | J99: 0 | K99: =$C99*J99 -> 0 | M99: 0 | N99: =$C99*M99 -> 0 | P99: 0 | Q99: =$C99*P99 -> 0 | S99: =K99+N99+Q99 -> 0
J100: 0 | K100: 0 | M100: 0 | N100: 0 | P100: 0 | Q100: 0 | S100: 0
J101: 0 | K101: 0 | M101: 0 | N101: 0 | P101: 0 | Q101: 0 | S101: 0
J102: 0 | K102: 0 | M102: 0 | N102: 0 | P102: 0 | Q102: 0 | S102: 0
J103: 0 | K103: 0 | M103: 0 | N103: 0 | P103: 0 | Q103: 0 | S103: 0
J104: 0 | K104: 0 | M104: 0 | N104: 0 | P104: 0 | Q104: 0 | S104: 0
B105: Total Consultant Cost (Remains with UCRI) | K105: =SUM(K99:K104) -> 0 | N105: =SUM(N99:N104) -> 0 | Q105: =SUM(Q99:Q104) -> 0 | S105: 0
B106: F&A on Consultant Costs | K106: =K105*H92 -> 0 | N106: =N105*K92 -> 0 | Q106: =Q105*N92 -> 0 | S106: 0
B107: Total Costs Retained by UCRI | K107: =K105+K106 -> 0 | N107: =N105+N106 -> 0 | Q107: =Q105+Q106 -> 0 | S107: 0
B108: All Direct Costs | J108: =K105+J77 -> 0 | M108: =N105+M77 -> 0 | P108: =Q105+P77 -> 0 | S108: =J108+M108+P108 -> 0
B109: All F&A Costs | J109: =K106+J81 -> 0 | M109: =N106+M81 -> 0 | P109: =Q106+P81 -> 0 | S109: =J109+M109+P109 -> 0
B110: Grand Total of All Costs - UC & UCRI | J110: =J108+J109 -> 0 | M110: =M108+M109 -> 0 | P110: =P108+P109 -> 0 | S110: =J110+M110+P110 -> 0

Sheet 4 Year
A1: Grants / Contracts
A2: 4 Year Budget
A4: Sponsoring Agency : | D4: name | J4: Titled : | K4: name
A5: Principal Investigator : | D5: name
B6: Period : | D6: ='RATES-Non Fed'!E2 -> 2022-07-01 | E6: thru | G6: ='RATES-Non Fed'!G2 -> 2026-06-30
B8: Salaries (Use these sections for UC personnel, UNLESS they are working directly for UCRI as Consultants. If working as consultants, use the blue section below for their costs | J8: Year 1 | M8: Year 2 | P8: Year 3 | S8: Year 4 | V8: CUMULATIVE
A9: A. | B9: Salaries | C9: AAUP Faculty | J9: Sal | K9: FB | L9: Total | M9: Sal | N9: FB | O9: Total | P9: Sal | Q9: FB | R9: Total | S9: Sal | T9: FB | U9: Total
B10: Senior Personnel | D10: App't Type | E10: % Effort | F10: PM | G10: Salary | V10: =IF(SUM(J10:N10)=0,"",SUM(J10:N10)) -> 
B11: PI | D11: ACAD | E11: 0 | F11: =IF(D11="CAL",(52*E11/4.3333),(IF(D11="ACAD",(36.35*E11/4.33333),IF(D11="SUMR",(15.65*E11/4.33333),IF(D11="PT",(0),0))))) -> 0 | G11: 0 | J11: =IF($D11="CAL",ROUND(($G11*(1+'Salary Inflation'!$B$30))*$E11,0),IF($D11="ACAD",($G11/0.9965)*(1+'Salary Inflation'!$B$31)*$E11,IF($D11="SUMR",($G11)*(1+'Salary Inflation'!$B$32)*$E11,"NA"))) -> 0 | K11: =IF(D11="CAL",ROUND(J11*'RATES-Non Fed'!$E$38,0),IF(D11="ACAD",J11*'RATES-Non Fed'!$E$44,J11*'RATES-Non Fed'!$E$45)) -> 0 | L11: =ROUND(K11+J11,0) -> 0 | M11: =IF($D11="CAL",ROUND((J11*(1+'Salary Inflation'!$C$30)),0),IF($D11="ACAD",(J11)*(1+'Salary Inflation'!$C$31),IF($D11="SUMR",(J11)*(1+'Salary Inflation'!$C$32),"NA"))) -> 0 | N11: =IF($D11="CAL",ROUND(M11*'RATES-Non Fed'!$G$38,0),IF($D11="ACAD",M11*'RATES-Non Fed'!$G$44,M11*'RATES-Non Fed'!$G$45)) -> 0 | O11: =ROUND(M11+N11,0) -> 0 | P11: =IF($D11="CAL",ROUND((M11*(1+'Salary Inflation'!$D$30)),0),IF($D11="ACAD",(M11)*(1+'Salary Inflation'!$D$31),IF($D11="SUMR",(M11)*(1+'Salary Inflation'!$D$32),"NA"))) -> 0 | Q11: =IF($D11="CAL",ROUND(P11*'RATES-Non Fed'!$I$38,0),IF($D11="ACAD",P11*'RATES-Non Fed'!$I$44,P11*'RATES-Non Fed'!$I$45)) -> 0 | R11: =SUM(P11:Q11) -> 0 | S11: =IF($D11="CAL",ROUND((P11*(1+'Salary Inflation'!$E$30)),0),IF($D11="ACAD",(P11)*(1+'Salary Inflation'!$E$31),IF($D11="SUMR",(P11)*(1+'Salary Inflation'!$E$32),"NA"))) -> 0 | T11: =IF($D11="CAL",ROUND(S11*'RATES-Non Fed'!$K$38,0),IF($D11="ACAD",S11*'RATES-Non Fed'!$K$44,S11*'RATES-Non Fed'!$K$45)) -> 0 | U11: =SUM(S11:T11) -> 0 | V11: =SUM(L11+O11+R11+U11) -> 0
B12: PI | D12: SUMR | E12: 0 | F12: 0 | G12: =IF(D11="ACAD",+G11*0.437,0) -> 0 | J12: =IF($D12="CAL",ROUND(($G12*(1+'Salary Inflation'!$B$30))*$E12,0),IF($D12="ACAD",($G12/0.9965)*(1+'Salary Inflation'!$B$31)*$E12,IF($D12="SUMR",($G12)*(1+'Salary Inflation'!$B$32)*$E12,"NA"))) -> 0 | K12: =IF(D12="CAL",ROUND(J12*'RATES-Non Fed'!$E$38,0),IF(D12="ACAD",J12*'RATES-Non Fed'!$E$44,J12*'RATES-Non Fed'!$E$45)) -> 0 | L12: 0 | M12: =IF($D12="CAL",ROUND((J12*(1+'Salary Inflation'!$C$30)),0),IF($D12="ACAD",(J12)*(1+'Salary Inflation'!$C$31),IF($D12="SUMR",(J12)*(1+'Salary Inflation'!$C$32),"NA"))) -> 0 | N12: =IF($D12="CAL",ROUND(M12*'RATES-Non Fed'!$G$38,0),IF($D12="ACAD",M12*'RATES-Non Fed'!$G$44,M12*'RATES-Non Fed'!$G$45)) -> 0 | O12: 0 | P12: =IF($D12="CAL",ROUND((M12*(1+'Salary Inflation'!$D$30)),0),IF($D12="ACAD",(M12)*(1+'Salary Inflation'!$D$31),IF($D12="SUMR",(M12)*(1+'Salary Inflation'!$D$32),"NA"))) -> 0 | Q12: =IF($D12="CAL",ROUND(P12*'RATES-Non Fed'!$I$38,0),IF($D12="ACAD",P12*'RATES-Non Fed'!$I$44,P12*'RATES-Non Fed'!$I$45)) -> 0 | R12: 0 | S12: =IF($D12="CAL",ROUND((P12*(1+'Salary Inflation'!$E$30)),0),IF($D12="ACAD",(P12)*(1+'Salary Inflation'!$E$31),IF($D12="SUMR",(P12)*(1+'Salary Inflation'!$E$32),"NA"))) -> 0 | T12: =IF($D12="CAL",ROUND(S12*'RATES-Non Fed'!$K$38,0),IF($D12="ACAD",S12*'RATES-Non Fed'!$K$44,S12*'RATES-Non Fed'!$K$45)) -> 0 | U12: 0 | V12: 0
B13: Co | D13: ACAD | E13: 0 | F13: 0 | G13: 0 | J13: =IF($D13="CAL",ROUND(($G13*(1+'Salary Inflation'!$B$30))*$E13,0),IF($D13="ACAD",($G13/0.9965)*(1+'Salary Inflation'!$B$31)*$E13,IF($D13="SUMR",($G13)*(1+'Salary Inflation'!$B$32)*$E13,"NA"))) -> 0 | K13: =IF(D13="CAL",ROUND(J13*'RATES-Non Fed'!$E$38,0),IF(D13="ACAD",J13*'RATES-Non Fed'!$E$44,J13*'RATES-Non Fed'!$E$45)) -> 0 | L13: 0 | M13: =IF($D13="CAL",ROUND((J13*(1+'Salary Inflation'!$C$30)),0),IF($D13="ACAD",(J13)*(1+'Salary Inflation'!$C$31),IF($D13="SUMR",(J13)*(1+'Salary Inflation'!$C$32),"NA"))) -> 0 | N13: =IF($D13="CAL",ROUND(M13*'RATES-Non Fed'!$G$38,0),IF($D13="ACAD",M13*'RATES-Non Fed'!$G$44,M13*'RATES-Non Fed'!$G$45)) -> 0 | O13: 0 | P13: =IF($D13="CAL",ROUND((M13*(1+'Salary Inflation'!$D$30)),0),IF($D13="ACAD",(M13)*(1+'Salary Inflation'!$D$31),IF($D13="SUMR",(M13)*(1+'Salary Inflation'!$D$32),"NA"))) -> 0 | Q13: =IF($D13="CAL",ROUND(P13*'RATES-Non Fed'!$I$38,0),IF($D13="ACAD",P13*'RATES-Non Fed'!$I$44,P13*'RATES-Non Fed'!$I$45)) -> 0 | R13: 0 | S13: =IF($D13="CAL",ROUND((P13*(1+'Salary Inflation'!$E$30)),0),IF($D13="ACAD",(P13)*(1+'Salary Inflation'!$E$31),IF($D13="SUMR",(P13)*(1+'Salary Inflation'!$E$32),"NA"))) -> 0 | T13: =IF($D13="CAL",ROUND(S13*'RATES-Non Fed'!$K$38,0),IF($D13="ACAD",S13*'RATES-Non Fed'!$K$44,S13*'RATES-Non Fed'!$K$45)) -> 0 | U13: 0 | V13: 0
D14: =IF(D13="ACAD",("SUMR"),"") -> SUMR | E14: 0 | F14: 0 | G14: =IF(D13="ACAD",+G13*0.437,0) -> 0 | J14: =IF($D14="CAL",ROUND(($G14*(1+'Salary Inflation'!$B$30))*$E14,0),IF($D14="ACAD",($G14/0.9965)*(1+'Salary Inflation'!$B$31)*$E14,IF($D14="SUMR",($G14)*(1+'Salary Inflation'!$B$32)*$E14,"NA"))) -> 0 | K14: =IF(D14="CAL",ROUND(J14*'RATES-Non Fed'!$E$38,0),IF(D14="ACAD",J14*'RATES-Non Fed'!$E$44,J14*'RATES-Non Fed'!$E$45)) -> 0 | L14: 0 | M14: =IF($D14="CAL",ROUND((J14*(1+'Salary Inflation'!$C$30)),0),IF($D14="ACAD",(J14)*(1+'Salary Inflation'!$C$31),IF($D14="SUMR",(J14)*(1+'Salary Inflation'!$C$32),"NA"))) -> 0 | N14: =IF($D14="CAL",ROUND(M14*'RATES-Non Fed'!$G$38,0),IF($D14="ACAD",M14*'RATES-Non Fed'!$G$44,M14*'RATES-Non Fed'!$G$45)) -> 0 | O14: 0 | P14: =IF($D14="CAL",ROUND((M14*(1+'Salary Inflation'!$D$30)),0),IF($D14="ACAD",(M14)*(1+'Salary Inflation'!$D$31),IF($D14="SUMR",(M14)*(1+'Salary Inflation'!$D$32),"NA"))) -> 0 | Q14: =IF($D14="CAL",ROUND(P14*'RATES-Non Fed'!$I$38,0),IF($D14="ACAD",P14*'RATES-Non Fed'!$I$44,P14*'RATES-Non Fed'!$I$45)) -> 0 | R14: 0 | S14: =IF($D14="CAL",ROUND((P14*(1+'Salary Inflation'!$E$30)),0),IF($D14="ACAD",(P14)*(1+'Salary Inflation'!$E$31),IF($D14="SUMR",(P14)*(1+'Salary Inflation'!$E$32),"NA"))) -> 0 | T14: =IF($D14="CAL",ROUND(S14*'RATES-Non Fed'!$K$38,0),IF($D14="ACAD",S14*'RATES-Non Fed'!$K$44,S14*'RATES-Non Fed'!$K$45)) -> 0 | U14: 0 | V14: 0
B15: Co | D15: ACAD | E15: 0 | F15: 0 | G15: 0 | J15: =IF($D15="CAL",ROUND(($G15*(1+'Salary Inflation'!$B$30))*$E15,0),IF($D15="ACAD",($G15/0.9965)*(1+'Salary Inflation'!$B$31)*$E15,IF($D15="SUMR",($G15)*(1+'Salary Inflation'!$B$32)*$E15,"NA"))) -> 0 | K15: =IF(D15="CAL",ROUND(J15*'RATES-Non Fed'!$E$38,0),IF(D15="ACAD",J15*'RATES-Non Fed'!$E$44,J15*'RATES-Non Fed'!$E$45)) -> 0 | L15: 0 | M15: =IF($D15="CAL",ROUND((J15*(1+'Salary Inflation'!$C$30)),0),IF($D15="ACAD",(J15)*(1+'Salary Inflation'!$C$31),IF($D15="SUMR",(J15)*(1+'Salary Inflation'!$C$32),"NA"))) -> 0 | N15: =IF($D15="CAL",ROUND(M15*'RATES-Non Fed'!$G$38,0),IF($D15="ACAD",M15*'RATES-Non Fed'!$G$44,M15*'RATES-Non Fed'!$G$45)) -> 0 | O15: 0 | P15: =IF($D15="CAL",ROUND((M15*(1+'Salary Inflation'!$D$30)),0),IF($D15="ACAD",(M15)*(1+'Salary Inflation'!$D$31),IF($D15="SUMR",(M15)*(1+'Salary Inflation'!$D$32),"NA"))) -> 0 | Q15: =IF($D15="CAL",ROUND(P15*'RATES-Non Fed'!$I$38,0),IF($D15="ACAD",P15*'RATES-Non Fed'!$I$44,P15*'RATES-Non Fed'!$I$45)) -> 0 | R15: 0 | S15: =IF($D15="CAL",ROUND((P15*(1+'Salary Inflation'!$E$30)),0),IF($D15="ACAD",(P15)*(1+'Salary Inflation'!$E$31),IF($D15="SUMR",(P15)*(1+'Salary Inflation'!$E$32),"NA"))) -> 0 | T15: =IF($D15="CAL",ROUND(S15*'RATES-Non Fed'!$K$38,0),IF($D15="ACAD",S15*'RATES-Non Fed'!$K$44,S15*'RATES-Non Fed'!$K$45)) -> 0 | U15: 0 | V15: 0
D16: =IF(D15="ACAD",("SUMR"),"") -> SUMR | E16: 0 | F16: 0 | G16: =IF(D15="ACAD",+G15*0.428,0) -> 0 | J16: =IF($D16="CAL",ROUND(($G16*(1+'Salary Inflation'!$B$30))*$E16,0),IF($D16="ACAD",($G16/0.9965)*(1+'Salary Inflation'!$B$31)*$E16,IF($D16="SUMR",($G16)*(1+'Salary Inflation'!$B$32)*$E16,"NA"))) -> 0 | K16: =IF(D16="CAL",ROUND(J16*'RATES-Non Fed'!$E$38,0),IF(D16="ACAD",J16*'RATES-Non Fed'!$E$44,J16*'RATES-Non Fed'!$E$45)) -> 0 | L16: 0 | M16: =IF($D16="CAL",ROUND((J16*(1+'Salary Inflation'!$C$30)),0),IF($D16="ACAD",(J16)*(1+'Salary Inflation'!$C$31),IF($D16="SUMR",(J16)*(1+'Salary Inflation'!$C$32),"NA"))) -> 0 | N16: =IF($D16="CAL",ROUND(M16*'RATES-Non Fed'!$G$38,0),IF($D16="ACAD",M16*'RATES-Non Fed'!$G$44,M16*'RATES-Non Fed'!$G$45)) -> 0 | O16: 0 | P16: =IF($D16="CAL",ROUND((M16*(1+'Salary Inflation'!$D$30)),0),IF($D16="ACAD",(M16)*(1+'Salary Inflation'!$D$31),IF($D16="SUMR",(M16)*(1+'Salary Inflation'!$D$32),"NA"))) -> 0 | Q16: =IF($D16="CAL",ROUND(P16*'RATES-Non Fed'!$I$38,0),IF($D16="ACAD",P16*'RATES-Non Fed'!$I$44,P16*'RATES-Non Fed'!$I$45)) -> 0 | R16: 0 | S16: =IF($D16="CAL",ROUND((P16*(1+'Salary Inflation'!$E$30)),0),IF($D16="ACAD",(P16)*(1+'Salary Inflation'!$E$31),IF($D16="SUMR",(P16)*(1+'Salary Inflation'!$E$32),"NA"))) -> 0 | T16: =IF($D16="CAL",ROUND(S16*'RATES-Non Fed'!$K$38,0),IF($D16="ACAD",S16*'RATES-Non Fed'!$K$44,S16*'RATES-Non Fed'!$K$45)) -> 0 | U16: 0 | V16: 0
B17: Co | D17: CAL | E17: 0 | F17: 0 | G17: 0 | J17: =IF($D17="CAL",ROUND(($G17*(1+'Salary Inflation'!$B$30))*$E17,0),IF($D17="ACAD",($G17/0.9965)*(1+'Salary Inflation'!$B$31)*$E17,IF($D17="SUMR",($G17)*(1+'Salary Inflation'!$B$32)*$E17,"NA"))) -> 0 | K17: =IF(D17="CAL",ROUND(J17*'RATES-Non Fed'!$E$38,0),IF(D17="ACAD",J17*'RATES-Non Fed'!$E$44,J17*'RATES-Non Fed'!$E$45)) -> 0 | L17: 0 | M17: =IF($D17="CAL",ROUND((J17*(1+'Salary Inflation'!$C$30)),0),IF($D17="ACAD",(J17)*(1+'Salary Inflation'!$C$31),IF($D17="SUMR",(J17)*(1+'Salary Inflation'!$C$32),"NA"))) -> 0 | N17: =IF($D17="CAL",ROUND(M17*'RATES-Non Fed'!$G$38,0),IF($D17="ACAD",M17*'RATES-Non Fed'!$G$44,M17*'RATES-Non Fed'!$G$45)) -> 0 | O17: 0 | P17: =IF($D17="CAL",ROUND((M17*(1+'Salary Inflation'!$D$30)),0),IF($D17="ACAD",(M17)*(1+'Salary Inflation'!$D$31),IF($D17="SUMR",(M17)*(1+'Salary Inflation'!$D$32),"NA"))) -> 0 | Q17: =IF($D17="CAL",ROUND(P17*'RATES-Non Fed'!$I$38,0),IF($D17="ACAD",P17*'RATES-Non Fed'!$I$44,P17*'RATES-Non Fed'!$I$45)) -> 0 | R17: 0 | S17: =IF($D17="CAL",ROUND((P17*(1+'Salary Inflation'!$E$30)),0),IF($D17="ACAD",(P17)*(1+'Salary Inflation'!$E$31),IF($D17="SUMR",(P17)*(1+'Salary Inflation'!$E$32),"NA"))) -> 0 | T17: =IF($D17="CAL",ROUND(S17*'RATES-Non Fed'!$K$38,0),IF($D17="ACAD",S17*'RATES-Non Fed'!$K$44,S17*'RATES-Non Fed'!$K$45)) -> 0 | U17: 0 | V17: 0
B18: Co | D18: CAL | E18: 0 | F18: 0 | G18: 0 | J18: =IF($D18="CAL",ROUND(($G18*(1+'Salary Inflation'!$B$30))*$E18,0),IF($D18="ACAD",($G18/0.9965)*(1+'Salary Inflation'!$B$31)*$E18,IF($D18="SUMR",($G18)*(1+'Salary Inflation'!$B$32)*$E18,"NA"))) -> 0 | K18: =IF(D18="CAL",ROUND(J18*'RATES-Non Fed'!$E$38,0),IF(D18="ACAD",J18*'RATES-Non Fed'!$E$44,J18*'RATES-Non Fed'!$E$45)) -> 0 | L18: 0 | M18: =IF($D18="CAL",ROUND((J18*(1+'Salary Inflation'!$C$30)),0),IF($D18="ACAD",(J18)*(1+'Salary Inflation'!$C$31),IF($D18="SUMR",(J18)*(1+'Salary Inflation'!$C$32),"NA"))) -> 0 | N18: =IF($D18="CAL",ROUND(M18*'RATES-Non Fed'!$G$38,0),IF($D18="ACAD",M18*'RATES-Non Fed'!$G$44,M18*'RATES-Non Fed'!$G$45)) -> 0 | O18: 0 | P18: =IF($D18="CAL",ROUND((M18*(1+'Salary Inflation'!$D$30)),0),IF($D18="ACAD",(M18)*(1+'Salary Inflation'!$D$31),IF($D18="SUMR",(M18)*(1+'Salary Inflation'!$D$32),"NA"))) -> 0 | Q18: =IF($D18="CAL",ROUND(P18*'RATES-Non Fed'!$I$38,0),IF($D18="ACAD",P18*'RATES-Non Fed'!$I$44,P18*'RATES-Non Fed'!$I$45)) -> 0 | R18: 0 | S18: =IF($D18="CAL",ROUND((P18*(1+'Salary Inflation'!$E$30)),0),IF($D18="ACAD",(P18)*(1+'Salary Inflation'!$E$31),IF($D18="SUMR",(P18)*(1+'Salary Inflation'!$E$32),"NA"))) -> 0 | T18: =IF($D18="CAL",ROUND(S18*'RATES-Non Fed'!$K$38,0),IF($D18="ACAD",S18*'RATES-Non Fed'!$K$44,S18*'RATES-Non Fed'!$K$45)) -> 0 | U18: 0 | V18: 0
D19: AAUP Faculty Subtotal : | J19: =SUM(J11:J18) -> 0 | K19: 0 | L19: 0 | M19: 0 | N19: 0 | O19: 0 | P19: 0 | Q19: 0 | R19: 0 | S19: 0 | T19: 0 | U19: 0 | V19: 0
A20: B | B20: Dual Compensation Faculty
B21: Co | D21: CAL | E21: 0 | F21: =IF(D21="CAL",(52*E21/4.3333),(IF(D21="ACAD",(32*E21/4.33333),IF(D21="SUMR",(14*E21/4.33333),IF(D21="PT",(0),0))))) -> 0 | G21: 0 | J21: =ROUND(($G21*(1+'Salary Inflation'!$B$34))*$E21,0) -> 0 | K21: =ROUND(J21*'RATES-Non Fed'!E40,0) -> 0 | L21: =ROUND(K21+J21,0) -> 0 | M21: =ROUND(J21*(1+'Salary Inflation'!$C$34),0) -> 0 | N21: =ROUND(M21*'RATES-Non Fed'!G40,0) -> 0 | O21: =ROUND(M21+N21,0) -> 0 | P21: =ROUND(M21*(1+'Salary Inflation'!$C$34),0) -> 0 | Q21: =ROUND(P21*'RATES-Non Fed'!I40,0) -> 0 | R21: =ROUND(P21+Q21,0) -> 0 | S21: =ROUND(P21*(1+'Salary Inflation'!$C$34),0) -> 0 | T21: =ROUND(S21*'RATES-Non Fed'!K40,0) -> 0 | U21: =SUM(S21:T21) -> 0 | V21: =SUM(L21+O21+R21+U21) -> 0
B22: Co | D22: CAL | E22: 0 | F22: =IF(D22="CAL",(52*E22/4.3333),(IF(D22="ACAD",(32*E22/4.33333),IF(D22="SUMR",(14*E22/4.33333),IF(D22="PT",(0),0))))) -> 0 | G22: 0 | J22: =ROUND(($G22*(1+'Salary Inflation'!$B$34))*$E22,0) -> 0 | K22: =ROUND(J22*'RATES-Non Fed'!E40,0) -> 0 | L22: =ROUND(K22+J22,0) -> 0 | M22: =ROUND(J22*(1+'Salary Inflation'!$C$34),0) -> 0 | N22: =ROUND(M22*'RATES-Non Fed'!G40,0) -> 0 | O22: =ROUND(M22+N22,0) -> 0 | P22: =ROUND(M22*(1+'Salary Inflation'!$C$34),0) -> 0 | Q22: =ROUND(P22*'RATES-Non Fed'!I40,0) -> 0 | R22: =ROUND(P22+Q22,0) -> 0 | S22: =ROUND(P22*(1+'Salary Inflation'!$C$34),0) -> 0 | T22: =ROUND(S22*'RATES-Non Fed'!K40,0) -> 0 | U22: =SUM(S22:T22) -> 0 | V22: =SUM(L22+O22+R22+U22) -> 0
B23: Co | D23: CAL | E23: 0 | F23: =IF(D23="CAL",(52*E23/4.3333),(IF(D23="ACAD",(32*E23/4.33333),IF(D23="SUMR",(14*E23/4.33333),IF(D23="PT",(0),0))))) -> 0 | G23: 0 | J23: =ROUND(($G23*(1+'Salary Inflation'!$B$34))*$E23,0) -> 0 | K23: =ROUND(J23*'RATES-Non Fed'!E40,0) -> 0 | L23: =ROUND(K23+J23,0) -> 0 | M23: =ROUND(J23*(1+'Salary Inflation'!$C$34),0) -> 0 | N23: =ROUND(M23*'RATES-Non Fed'!G40,0) -> 0 | O23: =ROUND(M23+N23,0) -> 0 | P23: =ROUND(M23*(1+'Salary Inflation'!$C$34),0) -> 0 | Q23: =ROUND(P23*'RATES-Non Fed'!I40,0) -> 0 | R23: =ROUND(P23+Q23,0) -> 0 | S23: =ROUND(P23*(1+'Salary Inflation'!$C$34),0) -> 0 | T23: =ROUND(S23*'RATES-Non Fed'!K40,0) -> 0 | U23: =SUM(S23:T23) -> 0 | V23: =SUM(L23+O23+R23+U23) -> 0
B24: Co | D24: CAL | E24: 0 | F24: =IF(D24="CAL",(52*E24/4.3333),(IF(D24="ACAD",(32*E24/4.33333),IF(D24="SUMR",(14*E24/4.33333),IF(D24="PT",(0),0))))) -> 0 | G24: 0 | J24: =ROUND(($G24*(1+'Salary Inflation'!$B$34))*$E24,0) -> 0 | K24: =ROUND(J24*'RATES-Non Fed'!E40,0) -> 0 | L24: =ROUND(K24+J24,0) -> 0 | M24: =ROUND(J24*(1+'Salary Inflation'!$C$34),0) -> 0 | N24: =ROUND(M24*'RATES-Non Fed'!G40,0) -> 0 | O24: =ROUND(M24+N24,0) -> 0 | P24: =ROUND(M24*(1+'Salary Inflation'!$C$34),0) -> 0 | Q24: =ROUND(P24*'RATES-Non Fed'!I40,0) -> 0 | R24: =ROUND(P24+Q24,0) -> 0 | S24: =ROUND(P24*(1+'Salary Inflation'!$C$34),0) -> 0 | T24: =ROUND(S24*'RATES-Non Fed'!K40,0) -> 0 | U24: =SUM(S24:T24) -> 0 | V24: =SUM(L24+O24+R24+U24) -> 0
D25: Dual Comp Faculty Subtotal : | J25: =SUM(J21:J24) -> 0 | K25: 0 | L25: 0 | M25: 0 | N25: 0 | O25: 0 | P25: 0 | Q25: 0 | R25: 0 | S25: 0 | T25: 0 | V25: =SUM(V21:V24) -> 0
A27: C. | B27: Other Personnel
C28: Exempt Staff (Monthly) | D28: Name
E29: 0 | F29: =SUM(52*E29/4.3333) -> 0 | G29: 0 | J29: =ROUND(($G29*(1+'Salary Inflation'!$B$33))*$E29,0) -> 0 | K29: =ROUND(J29*'RATES-Non Fed'!E39,0) -> 0 | L29: =SUM(J29:K29) -> 0 | M29: =ROUND(J29*(1+'Salary Inflation'!$C$33),0) -> 0 | N29: =ROUND(M29*'RATES-Non Fed'!G39,0) -> 0 | O29: =SUM(M29:N29) -> 0 | P29: =ROUND(M29*(1+'Salary Inflation'!$D$33),0) -> 0 | Q29: =ROUND(P29*'RATES-Non Fed'!I39,0) -> 0 | R29: =SUM(P29:Q29) -> 0 | S29: =ROUND(P29*(1+'Salary Inflation'!$E$33),0) -> 0 | T29: =ROUND(S29*'RATES-Non Fed'!K39,0) -> 0 | U29: =SUM(S29:T29) -> 0 | V29: =SUM(L29+O29+R29+U29) -> 0
E30: 0 | F30: =SUM(52*E30/4.3333) -> 0 | G30: 0 | J30: =ROUND(($G30*(1+'Salary Inflation'!$B$33))*$E30,0) -> 0 | K30: =ROUND(J30*'RATES-Non Fed'!E40,0) -> 0 | L30: =SUM(J30:K30) -> 0 | M30: =ROUND(J30*(1+'Salary Inflation'!$C$33),0) -> 0 | N30: =ROUND(M30*'RATES-Non Fed'!G40,0) -> 0 | O30: =SUM(M30:N30) -> 0 | P30: =ROUND(M30*(1+'Salary Inflation'!$D$33),0) -> 0 | Q30: =ROUND(P30*'RATES-Non Fed'!I40,0) -> 0 | R30: =SUM(P30:Q30) -> 0 | S30: =ROUND(P30*(1+'Salary Inflation'!$E$33),0) -> 0 | T30: =ROUND(S30*'RATES-Non Fed'!K40,0) -> 0 | U30: =SUM(S30:T30) -> 0 | V30: =SUM(L30+O30+R30+U30) -> 0
E31: 0 | F31: 0 | G31: 0 | J31: =ROUND(($G31*(1+'Salary Inflation'!$B$33))*$E31,0) -> 0 | K31: =ROUND(J31*'RATES-Non Fed'!E41,0) -> 0 | L31: 0 | M31: =ROUND(J31*(1+'Salary Inflation'!$C$33),0) -> 0 | N31: =ROUND(M31*'RATES-Non Fed'!G41,0) -> 0 | O31: 0 | P31: =ROUND(M31*(1+'Salary Inflation'!$D$33),0) -> 0 | Q31: =ROUND(P31*'RATES-Non Fed'!I41,0) -> 0 | R31: 0 | S31: =ROUND(P31*(1+'Salary Inflation'!$E$33),0) -> 0 | T31: =ROUND(S31*'RATES-Non Fed'!K41,0) -> 0 | U31: 0 | V31: 0
E32: 0 | F32: 0 | G32: 0 | J32: =ROUND(($G32*(1+'Salary Inflation'!$B$33))*$E32,0) -> 0 | K32: =ROUND(J32*'RATES-Non Fed'!E42,0) -> 0 | L32: 0 | M32: =ROUND(J32*(1+'Salary Inflation'!$C$33),0) -> 0 | N32: =ROUND(M32*'RATES-Non Fed'!G42,0) -> 0 | O32: 0 | P32: =ROUND(M32*(1+'Salary Inflation'!$D$33),0) -> 0 | Q32: =ROUND(P32*'RATES-Non Fed'!I42,0) -> 0 | R32: 0 | S32: =ROUND(P32*(1+'Salary Inflation'!$E$33),0) -> 0 | T32: =ROUND(S32*'RATES-Non Fed'!K42,0) -> 0 | U32: 0 | V32: 0
E33: 0 | F33: 0 | G33: 0 | J33: =ROUND(($G33*(1+'Salary Inflation'!$B$33))*$E33,0) -> 0 | K33: =ROUND(J33*'RATES-Non Fed'!E43,0) -> 0 | L33: 0 | M33: =ROUND(J33*(1+'Salary Inflation'!$C$33),0) -> 0 | N33: =ROUND(M33*'RATES-Non Fed'!G43,0) -> 0 | O33: 0 | P33: =ROUND(M33*(1+'Salary Inflation'!$D$33),0) -> 0 | Q33: =ROUND(P33*'RATES-Non Fed'!I43,0) -> 0 | R33: 0 | S33: =ROUND(P33*(1+'Salary Inflation'!$E$33),0) -> 0 | T33: =ROUND(S33*'RATES-Non Fed'!K43,0) -> 0 | U33: 0 | V33: 0
E34: 0 | F34: 0 | G34: 0 | J34: =ROUND(($G34*(1+'Salary Inflation'!$B$33))*$E34,0) -> 0 | K34: =ROUND(J34*'RATES-Non Fed'!E44,0) -> 0 | L34: 0 | M34: =ROUND(J34*(1+'Salary Inflation'!$C$33),0) -> 0 | N34: =ROUND(M34*'RATES-Non Fed'!G44,0) -> 0 | O34: 0 | P34: =ROUND(M34*(1+'Salary Inflation'!$D$33),0) -> 0 | Q34: =ROUND(P34*'RATES-Non Fed'!I44,0) -> 0 | R34: 0 | S34: =ROUND(P34*(1+'Salary Inflation'!$E$33),0) -> 0 | T34: =ROUND(S34*'RATES-Non Fed'!K44,0) -> 0 | U34: 0 | V34: 0
E35: 0 | F35: 0 | G35: 0 | J35: =ROUND(($G35*(1+'Salary Inflation'!$B$33))*$E35,0) -> 0 | K35: =ROUND(J35*'RATES-Non Fed'!E45,0) -> 0 | L35: 0 | M35: =ROUND(J35*(1+'Salary Inflation'!$C$33),0) -> 0 | N35: =ROUND(M35*'RATES-Non Fed'!G45,0) -> 0 | O35: 0 | P35: =ROUND(M35*(1+'Salary Inflation'!$D$33),0) -> 0 | Q35: =ROUND(P35*'RATES-Non Fed'!I45,0) -> 0 | R35: 0 | S35: =ROUND(P35*(1+'Salary Inflation'!$E$33),0) -> 0 | T35: =ROUND(S35*'RATES-Non Fed'!K45,0) -> 0 | U35: 0 | V35: 0
E36: 0 | F36: 0 | G36: 0 | J36: =ROUND(($G36*(1+'Salary Inflation'!$B$33))*$E36,0) -> 0 | K36: =ROUND(J36*'RATES-Non Fed'!E46,0) -> 0 | L36: 0 | M36: =ROUND(J36*(1+'Salary Inflation'!$C$33),0) -> 0 | N36: =ROUND(M36*'RATES-Non Fed'!G46,0) -> 0 | O36: 0 | P36: =ROUND(M36*(1+'Salary Inflation'!$D$33),0) -> 0 | Q36: =ROUND(P36*'RATES-Non Fed'!I46,0) -> 0 | R36: 0 | S36: =ROUND(P36*(1+'Salary Inflation'!$E$33),0) -> 0 | T36: =ROUND(S36*'RATES-Non Fed'!K46,0) -> 0 | U36: 0 | V36: 0
E37: 0 | F37: 0 | G37: 0 | J37: =ROUND(($G37*(1+'Salary Inflation'!$B$33))*$E37,0) -> 0 | K37: =ROUND(J37*'RATES-Non Fed'!E47,0) -> 0 | L37: 0 | M37: =ROUND(J37*(1+'Salary Inflation'!$C$33),0) -> 0 | N37: =ROUND(M37*'RATES-Non Fed'!G47,0) -> 0 | O37: 0 | P37: =ROUND(M37*(1+'Salary Inflation'!$D$33),0) -> 0 | Q37: =ROUND(P37*'RATES-Non Fed'!I47,0) -> 0 | R37: 0 | S37: =ROUND(P37*(1+'Salary Inflation'!$E$33),0) -> 0 | T37: =ROUND(S37*'RATES-Non Fed'!K47,0) -> 0 | U37: 0 | V37: 0
E38: 0 | F38: =SUM(52*E38/4.3333) -> 0 | G38: 0 | J38: =ROUND(($G38*(1+'Salary Inflation'!$B$33))*$E38,0) -> 0 | K38: =ROUND(J38*'RATES-Non Fed'!E39,0) -> 0 | L38: =SUM(J38:K38) -> 0 | M38: =ROUND(J38*(1+'Salary Inflation'!$C$33),0) -> 0 | N38: =ROUND(M38*'RATES-Non Fed'!G39,0) -> 0 | O38: =SUM(M38:N38) -> 0 | P38: =ROUND(M38*(1+'Salary Inflation'!$D$33),0) -> 0 | Q38: =ROUND(P38*'RATES-Non Fed'!I39,0) -> 0 | R38: =SUM(P38:Q38) -> 0 | S38: =ROUND(P38*(1+'Salary Inflation'!$E$33),0) -> 0 | T38: =ROUND(S38*'RATES-Non Fed'!K39,0) -> 0 | U38: =SUM(S38:T38) -> 0 | V38: =SUM(L38+O38+R38+U38) -> 0
E39: 0 | F39: =SUM(52*E39/4.3333) -> 0 | G39: 0 | J39: =ROUND(($G39*(1+'Salary Inflation'!$B$33))*$E39,0) -> 0 | K39: =ROUND(J39*'RATES-Non Fed'!E39,0) -> 0 | L39: =SUM(J39:K39) -> 0 | M39: =ROUND(J39*(1+'Salary Inflation'!$C$33),0) -> 0 | N39: =ROUND(M39*'RATES-Non Fed'!G39,0) -> 0 | O39: =SUM(M39:N39) -> 0 | P39: =ROUND(M39*(1+'Salary Inflation'!$D$33),0) -> 0 | Q39: =ROUND(P39*'RATES-Non Fed'!I39,0) -> 0 | R39: =SUM(P39:Q39) -> 0 | S39: =ROUND(P39*(1+'Salary Inflation'!$E$33),0) -> 0 | T39: =ROUND(S39*'RATES-Non Fed'!K39,0) -> 0 | U39: =SUM(S39:T39) -> 0 | V39: =SUM(L39+O39+R39+U39) -> 0
E40: 0 | F40: =SUM(52*E40/4.3333) -> 0 | G40: 0 | J40: =ROUND(($G40*(1+'Salary Inflation'!$B$33))*$E40,0) -> 0 | K40: =ROUND(J40*'RATES-Non Fed'!E39,0) -> 0 | L40: =SUM(J40:K40) -> 0 | M40: =ROUND(J40*(1+'Salary Inflation'!$C$33),0) -> 0 | N40: =ROUND(M40*'RATES-Non Fed'!G39,0) -> 0 | O40: =SUM(M40:N40) -> 0 | P40: =ROUND(M40*(1+'Salary Inflation'!$D$33),0) -> 0 | Q40: =ROUND(P40*'RATES-Non Fed'!I39,0) -> 0 | R40: =SUM(P40:Q40) -> 0 | S40: =ROUND(P40*(1+'Salary Inflation'!$E$33),0) -> 0 | T40: =ROUND(S40*'RATES-Non Fed'!K39,0) -> 0 | U40: =SUM(S40:T40) -> 0 | V40: =SUM(L40+O40+R40+U40) -> 0
D41: Total Exempt Staff | J41: =SUM(J29:J40) -> 0 | K41: 0 | L41: 0 | M41: 0 | N41: 0 | O41: 0 | P41: 0 | Q41: 0 | R41: 0 | S41: 0 | T41: 0 | U41: 0 | V41: 0
C43: Post Doctoral Support | E43: 0 | F43: =SUM(52*E43/4.3333) -> 0 | G43: 0 | J43: =ROUND(($G43*(1+'Salary Inflation'!$B$33))*$E43,0) -> 0 | K43: =ROUND(J43*'RATES-Non Fed'!E43,0) -> 0 | L43: =SUM(J43:K43) -> 0 | M43: =ROUND(J43*(1+'Salary Inflation'!$C$33),0) -> 0 | N43: =ROUND(M43*'RATES-Non Fed'!G43,0) -> 0 | O43: =SUM(M43:N43) -> 0 | P43: =ROUND(M43*(1+'Salary Inflation'!$D$33),0) -> 0 | Q43: =ROUND(P43*'RATES-Non Fed'!I43,0) -> 0 | R43: =SUM(P43:Q43) -> 0 | S43: =ROUND(P43*(1+'Salary Inflation'!$E$33),0) -> 0 | T43: =ROUND(S43*'RATES-Non Fed'!K43,0) -> 0 | U43: =SUM(S43:T43) -> 0 | V43: =SUM(L43+O43+R43+U43) -> 0
C44: Graduate Students | E44: 0 | F44: =SUM(52*E44/4.3333) -> 0 | G44: 0 | J44: =ROUND(($G44*(1+'Salary Inflation'!$B$33))*$E44,0) -> 0 | K44: =ROUND(J44*'RATES-Non Fed'!E42,0) -> 0 | L44: =SUM(J44:K44) -> 0 | M44: =ROUND(J44*(1+'Salary Inflation'!$C$33),0) -> 0 | N44: =ROUND(M44*'RATES-Non Fed'!G42,0) -> 0 | O44: =SUM(M44:N44) -> 0 | P44: =ROUND(M44*(1+'Salary Inflation'!$D$33),0) -> 0 | Q44: =ROUND(P44*'RATES-Non Fed'!I42,0) -> 0 | R44: =SUM(P44:Q44) -> 0 | S44: =ROUND(P44*(1+'Salary Inflation'!$E$33),0) -> 0 | T44: =ROUND(S44*'RATES-Non Fed'!K42,0) -> 0 | U44: =SUM(S44:T44) -> 0 | V44: =SUM(L44+O44+R44+U44) -> 0
C45: Undergrad Students | E45: 0 | F45: =SUM(52*E45/4.3333) -> 0 | G45: 0 | J45: =ROUND(($G45*(1+'Salary Inflation'!$B$33))*$E45,0) -> 0 | K45: =ROUND(J45*'RATES-Non Fed'!E42,0) -> 0 | L45: =SUM(J45:K45) -> 0 | M45: =ROUND(J45*(1+'Salary Inflation'!$C$33),0) -> 0 | N45: =ROUND(M45*'RATES-Non Fed'!G42,0) -> 0 | O45: =SUM(M45:N45) -> 0 | P45: =ROUND(M45*(1+'Salary Inflation'!$D$33),0) -> 0 | Q45: =ROUND(P45*'RATES-Non Fed'!I42,0) -> 0 | R45: =SUM(P45:Q45) -> 0 | S45: =ROUND(P45*(1+'Salary Inflation'!$E$33),0) -> 0 | T45: =ROUND(S45*'RATES-Non Fed'!K42,0) -> 0 | U45: =SUM(S45:T45) -> 0 | V45: =SUM(L45+O45+R45+U45) -> 0
C46: Part-time Faculty/Staff | E46: 0 | F46: =SUM(52*E46/4.3333) -> 0 | G46: 0 | J46: =ROUND(($G46*(1+'Salary Inflation'!$B$33))*$E46,0) -> 0 | K46: =ROUND(J46*'RATES-Non Fed'!E43,0) -> 0 | L46: =SUM(J46:K46) -> 0 | M46: =ROUND(J46*(1+'Salary Inflation'!$C$33),0) -> 0 | N46: =ROUND(M46*'RATES-Non Fed'!G43,0) -> 0 | O46: =SUM(M46:N46) -> 0 | P46: =ROUND(M46*(1+'Salary Inflation'!$D$33),0) -> 0 | Q46: =ROUND(P46*'RATES-Non Fed'!I43,0) -> 0 | R46: =SUM(P46:Q46) -> 0 | S46: =ROUND(P46*(1+'Salary Inflation'!$E$33),0) -> 0 | T46: =ROUND(S46*'RATES-Non Fed'!K43,0) -> 0 | U46: =SUM(S46:T46) -> 0 | V46: =SUM(L46+O46+R46+U46) -> 0
C47: Non-Exempt Staff (Bi-Weekly) | E47: 0 | F47: =SUM(52*E47/4.3333) -> 0 | G47: 0 | J47: =ROUND(($G47*(1+'Salary Inflation'!$B$33))*$E47,0) -> 0 | K47: =ROUND(J47*'RATES-Non Fed'!E41,0) -> 0 | L47: =SUM(J47:K47) -> 0 | M47: =ROUND(J47*(1+'Salary Inflation'!$C$33),0) -> 0 | N47: =ROUND(M47*'RATES-Non Fed'!G41,0) -> 0 | O47: =SUM(M47:N47) -> 0 | P47: =ROUND(M47*(1+'Salary Inflation'!$D$33),0) -> 0 | Q47: =ROUND(P47*'RATES-Non Fed'!I41,0) -> 0 | R47: =SUM(P47:Q47) -> 0 | S47: =ROUND(P47*(1+'Salary Inflation'!$E$33),0) -> 0 | T47: =ROUND(S47*'RATES-Non Fed'!K41,0) -> 0 | U47: =SUM(S47:T47) -> 0 | V47: =SUM(L47+O47+R47+U47) -> 0
D48: Sub Totals | J48: =SUM(J19+J25+J41+J43+J44+J45+J46+J47) -> 0 | K48: 0 | L48: 0 | M48: 0 | N48: 0 | O48: 0 | P48: 0 | Q48: 0 | R48: 0 | S48: 0 | T48: 0 | U48: 0 | V48: =SUM(V43:V47) -> 0
A50: Total Salaries and Fringe Benefits : | J50: =SUM(J48+K48) -> 0 | M50: =SUM(M48+N48) -> 0 | P50: =SUM(P48+Q48) -> 0 | S50: =SUM(S48+T48) -> 0 | V50: =SUM(J50+M50+P50+S50) -> 0
A52: D. | B52: Equipment
C53: (list) | J53: 0 | M53: 0 | P53: 0 | S53: 0 | V53: =SUM(J53:U53) -> 0
C54: (list) | J54: 0 | M54: 0 | P54: 0 | S54: 0 | V54: =SUM(J54:U54) -> 0
C55: Total Equipment : | J55: =SUM(J53:J54) -> 0 | M55: =SUM(M53:M54) -> 0 | P55: =SUM(P53:P54) -> 0 | S55: =SUM(S53:S54) -> 0 | V55: =SUM(J55:U55) -> 0
A57: E. | B57: Travel
C58: Domestic | D58: (list) | J58: 0 | M58: =ROUND((J58*1.02),0) -> 0 | P58: =ROUND((M58*1.02),0) -> 0 | S58: =ROUND((P58*1.02),0) -> 0 | V58: =SUM(J58:U58) -> 0
C59: International | D59: (list) | J59: 0 | M59: =ROUND((J59*1.02),0) -> 0 | P59: =ROUND((M59*1.02),0) -> 0 | S59: =ROUND((P59*1.02),0) -> 0 | V59: =SUM(J59:U59) -> 0
C60: Total Travel : | J60: =SUM(J58:J59) -> 0 | M60: =SUM(M58:M59) -> 0 | P60: =SUM(P58:P59) -> 0 | S60: =SUM(S58:S59) -> 0 | V60: =SUM(J60:U60) -> 0
A62: G. | B62: Supplies and Other Direct Costs
C63: Materials & Supplies | J63: 0 | M63: =ROUND((J63*1.02),0) -> 0 | P63: =ROUND((M63*1.02),0) -> 0 | S63: =ROUND((P63*1.02),0) -> 0 | V63: =SUM(J63:U63) -> 0
C64: LAM | J64: 0 | M64: 0 | P64: 0 | S64: 0 | V64: 0
C65: Consultant Services | J65: 0 | M65: 0 | P65: 0 | S65: 0 | V65: 0
C66: Subject Incentives | J66: 0 | M66: 0 | P66: 0 | S66: 0 | V66: 0
C67: UC Tuition for Trainees/Fellows | J67: 0 | M67: 0 | P67: 0 | S67: 0 | V67: 0
C68: UC Tuition on Research Projects | J68: 0 | M68: 0 | P68: 0 | S68: 0 | V68: 0
C69: Lab Expenses | J69: 0 | M69: 0 | P69: 0 | S69: 0 | V69: 0
C70: Other (Analytical Services/Instrument Use) | J70: 0 | M70: 0 | P70: 0 | S70: 0 | V70: 0
C71: Subcontracts 1) | J71: 0 | M71: 0 | P71: 0 | S71: 0 | V71: 0
C72: 2) | J72: 0 | M72: 0 | P72: 0 | S72: 0 | V72: 0
C73: 3) | J73: 0 | M73: 0 | P73: 0 | S73: 0 | V73: 0
C74: 4) | J74: 0 | M74: 0 | P74: 0 | S74: 0 | V74: 0
A75: Total Supplies and Other Direct Costs : | J75: =SUM(J63:J74) -> 0 | M75: =SUM(M63:M74) -> 0 | P75: =SUM(P63:P74) -> 0 | S75: =SUM(S63:S74) -> 0 | V75: 0
E77: TOTAL DIRECT COSTS: | J77: =ROUND(+J75+J60+J55+J50,0) -> 0 | M77: =ROUND(+M75+M60+M55+M50,0) -> 0 | P77: =ROUND(+P75+P60+P55+P50,0) -> 0 | S77: =ROUND(+S75+S60+S55+S50,0) -> 0 | V77: =SUM(J77:U77) -> 0
H79: Facilities and Administrative Cost Base: | J79: =J77 -> 0 | M79: =M77 -> 0 | P79: =P77 -> 0 | S79: =S77 -> 0 | V79: =SUM(J79:U79) -> 0
A80: Facilities and Administrative Costs Calculation:
A81: F&A Cost (on MTDC): | D81: =IF(AND(($E$88)="R",($E$90)="C"),('RATES-Non Fed'!E48),IF(AND(($E$88)="R",($E$90)="O"),('RATES-Non Fed'!E53),IF(AND(($E$88)="I",($E$90)="C"),('RATES-Non Fed'!E49),IF(AND(($E$88)="I",($E$90)="O"),('RATES-Non Fed'!E54),IF(AND(($E$88)="P",($E$90)="C"),('RATES-Non Fed'!E50),IF(AND(($E$88)="P",($E$90)="O"),('RATES-Non Fed'!E55),($E$89))))))) -> 0.62 | E81: =IF(AND(($E$88)="R",($E$90)="C"),('RATES-Non Fed'!G48),IF(AND(($E$88)="R",($E$90)="O"),('RATES-Non Fed'!G53),IF(AND(($E$88)="I",($E$90)="C"),('RATES-Non Fed'!G49),IF(AND(($E$88)="I",($E$90)="O"),('RATES-Non Fed'!G54),IF(AND(($E$88)="P",($E$90)="C"),('RATES-Non Fed'!G50),IF(AND(($E$88)="P",($E$90)="O"),('RATES-Non Fed'!G55),($E$89))))))) -> 0.62 | F81: =IF(AND(($E$88)="R",($E$90)="C"),('RATES-Non Fed'!I48),IF(AND(($E$88)="R",($E$90)="O"),('RATES-Non Fed'!I53),IF(AND(($E$88)="I",($E$90)="C"),('RATES-Non Fed'!I49),IF(AND(($E$88)="I",($E$90)="O"),('RATES-Non Fed'!I54),IF(AND(($E$88)="P",($E$90)="C"),('RATES-Non Fed'!I50),IF(AND(($E$88)="P",($E$90)="O"),('RATES-Non Fed'!I55),($E$89))))))) -> 0.62 | G81: =IF(AND(($E$88)="R",($E$90)="C"),('RATES-Non Fed'!K48),IF(AND(($E$88)="R",($E$90)="O"),('RATES-Non Fed'!K53),IF(AND(($E$88)="I",($E$90)="C"),('RATES-Non Fed'!K49),IF(AND(($E$88)="I",($E$90)="O"),('RATES-Non Fed'!K54),IF(AND(($E$88)="P",($E$90)="C"),('RATES-Non Fed'!K50),IF(AND(($E$88)="P",($E$90)="O"),('RATES-Non Fed'!K55),($E$89))))))) -> 0.62 | J81: =+J79*D81 -> 0 | M81: =+M79*E81 -> 0 | P81: =+P79*F81 -> 0 | S81: =+S79*G81 -> 0 | V81: =SUM(J81:U81) -> 0
A82: Total F&A Cost : | J82: =SUM(J81:J81) -> 0 | M82: =SUM(M81:M81) -> 0 | P82: =SUM(P81:P81) -> 0 | S82: =SUM(S81:S81) -> 0 | V82: =SUM(J82:U82) -> 0
C84: Total Cost | J84: =J82+J77 -> 0 | M84: =M82+M77 -> 0 | P84: =P82+P77 -> 0 | S84: =S82+S77 -> 0 | V84: =SUM(J84:U84) -> 0
C87: Facilities and Administrative Data
C88: Purpose of Grant / Contract : | E88: R | G88: (R = Research, I = Instruction, P = Public Service, S = Special Rate on Total Costs)
C89: Special F&A Rate : | E89: 0.1
C90: Campus Status : | E90: C | G90: (C = On Campus, O = Off Campus)
D92: Detailed F&A figures for prorated rates | H92: =IF(E88 = "R", 'RATES-Non Fed'!E31,IF(E88 = "I", 'RATES-Non Fed'!E32, IF(E88 = "P", 'RATES-Non Fed'!E33, ""))) -> 0.62 | J92: =J82/365*'RATES-Non Fed'!$C$48 -> 0 | L92: =IF(E88 = "R", 'RATES-Non Fed'!G31,IF(E88 = "I", 'RATES-Non Fed'!G32, IF(E88 = "P", 'RATES-Non Fed'!G33, ""))) -> 0.62 | M92: =M82/365*'RATES-Non Fed'!$C$48 -> 0 | O92: =IF(E88 = "R", 'RATES-Non Fed'!I31,IF(E88 = "I", 'RATES-Non Fed'!I32, IF(E88 = "P", 'RATES-Non Fed'!I33, ""))) -> 0.62 | P92: =P82/365*'RATES-Non Fed'!$C$48 -> 0 | R92: =IF(E88 = "R", 'RATES-Non Fed'!K31,IF(E88 = "I", 'RATES-Non Fed'!K32, IF(E88 = "P", 'RATES-Non Fed'!K33, ""))) -> 0.62 | S92: =S82/365*'RATES-Non Fed'!$C$48 -> 0
D93: *If both lines have the same rate, then just list as one line on forms. | H93: =IF(E88 = "R", 'RATES-Non Fed'!G31,IF(E88 = "I", 'RATES-Non Fed'!G32, IF(E88 = "P", 'RATES-Non Fed'!G33, ""))) -> 0.62 | J93: =J82/365*'RATES-Non Fed'!$D$48 -> 0 | L93: =IF(E88 = "R", 'RATES-Non Fed'!I31,IF(E88 = "I", 'RATES-Non Fed'!I32, IF(E88 = "P", 'RATES-Non Fed'!I33, ""))) -> 0.62 | M93: =M82/365*'RATES-Non Fed'!$D$48 -> 0 | O93: =IF(E88 = "R", 'RATES-Non Fed'!K31,IF(E88 = "I", 'RATES-Non Fed'!K32, IF(E88 = "P", 'RATES-Non Fed'!K33, ""))) -> 0.62 | P93: =P82/365*'RATES-Non Fed'!$D$48 -> 0 | R93: =IF(E88 = "R", 'RATES-Non Fed'!M31,IF(E88 = "I", 'RATES-Non Fed'!M32, IF(E88 = "P", 'RATES-Non Fed'!M33, ""))) -> 0.62 | S93: =S82/365*'RATES-Non Fed'!$D$48 -> 0
J94: =SUM(J92:J93) -> 0 | M94: =SUM(M92:M93) -> 0 | P94: =SUM(P92:P93) -> 0 | S94: =SUM(S92:S93) -> 0 | U94: ='RATES-Non Fed'!Q69 -> 0
B95: UCRI CONSULTANT COSTS
B96: If any faculty or staff will be working directly for UCRI as Consultants, please add those costs to the section below, rather than as UC Personnel above
J97: Year 1 | M97: Year 2 | P97: Year 3 | S97: Year 4 | V97: Cumulative
B98: Consultant Name | C98: Rate ($) | D98: Basis (hourly, daily, etc) | J98: Units | K98: Cost | M98: Units | N98: Cost | P98: Units | Q98: Cost | S98: Units | T98: Cost
D99: hourly | J99: 0 | K99: =$C99*J99 -> 0 | M99: 0 | N99: =$C99*M99 -> 0 | P99: 0 | Q99: =$C99*P99 -> 0 | S99: 0 | T99: =$C99*S99 -> 0 | V99: =K99+N99+Q99+T99 -> 0
J100: 0 | K100: 0 | M100: 0 | N100: 0 | P100: 0 | Q100: 0 | S100: 0 | T100: 0 | V100: =K100+N100+Q100+T100 -> 0
J101: 0 | K101: 0 | M101: 0 | N101: 0 | P101: 0 | Q101: 0 | S101: 0 | T101: 0 | V101: 0
J102: 0 | K102: 0 | M102: 0 | N102: 0 | P102: 0 | Q102: 0 | S102: 0 | T102: 0 | V102: 0
J103: 0 | K103: 0 | M103: 0 | N103: 0 | P103: 0 | Q103: 0 | S103: 0 | T103: 0 | V103: 0
J104: 0 | K104: 0 | M104: 0 | N104: 0 | P104: 0 | Q104: 0 | S104: 0 | T104: 0 | V104: 0
B105: Total Consultant Cost (Remains with UCRI) | K105: =SUM(K99:K104) -> 0 | N105: =SUM(N99:N104) -> 0 | Q105: =SUM(Q99:Q104) -> 0 | T105: =SUM(T99:T104) -> 0 | V105: 0
B106: F&A on Consultant Costs | K106: =K105*H92 -> 0 | N106: =N105*K92 -> 0 | Q106: =Q105*N92 -> 0 | T106: =T105*Q92 -> 0 | V106: 0
B107: Total Costs Retained by UCRI | K107: =K105+K106 -> 0 | N107: =N105+N106 -> 0 | Q107: =Q105+Q106 -> 0 | T107: =T105+T106 -> 0 | V107: 0
B108: All Direct Costs | J108: =K105+J77 -> 0 | M108: =N105+M77 -> 0 | P108: =Q105+P77 -> 0 | S108: =T105+S77 -> 0 | V108: =J108+M108+P108+S108 -> 0
B109: All F&A Costs | J109: =K106+J81 -> 0 | M109: =N106+M81 -> 0 | P109: =Q106+P81 -> 0 | S109: =T106+S81 -> 0 | V109: =J109+M109+P109+S109 -> 0
B110: Grand Total of All Costs - UC & UCRI | J110: =J108+J109 -> 0 | M110: =M108+M109 -> 0 | P110: =P108+P109 -> 0 | S110: =S108+S109 -> 0 | V110: =J110+M110+P110+S110 -> 0

Sheet 5 Year
A1: Grants / Contracts
A2: 5 Year Budget
A4: Sponsoring Agency : | D4: name | J4: Titled : | K4: name
A5: Principal Investigator : | D5: name
B6: Period : | D6: ='RATES-Non Fed'!E2 -> 2022-07-01 | E6: thru | G6: ='RATES-Non Fed'!G2 -> 2026-06-30
B8: Salaries (Use these sections for UC personnel, UNLESS they are working directly for UCRI as Consultants. If working as consultants, use the blue section below for their costs | J8: Year 1 | M8: Year 2 | P8: Year 3 | S8: Year 4 | V8: Year 5 | Y8: CUMULATIVE
A9: A. | B9: Salaries | C9: AAUP Faculty | J9: Sal | K9: FB | L9: Total | M9: Sal | N9: FB | O9: Total | P9: Sal | Q9: FB | R9: Total | S9: Sal | T9: FB | U9: Total | V9: Sal | W9: FB | X9: Total
B10: Senior Personnel | D10: App't Type | E10: % Effort | F10: PM | G10: Salary | Y10: =IF(SUM(J10:N10)=0,"",SUM(J10:N10)) -> 
B11: PI | D11: ACAD | E11: 0 | F11: =IF(D11="CAL",(52*E11/4.3333),(IF(D11="ACAD",(36.35*E11/4.33333),IF(D11="SUMR",(15.65*E11/4.33333),IF(D11="PT",(0),0))))) -> 0 | G11: 0 | J11: =IF($D11="CAL",ROUND(($G11*(1+'Salary Inflation'!$B$30))*$E11,0),IF($D11="ACAD",($G11/0.9965)*(1+'Salary Inflation'!$B$31)*$E11,IF($D11="SUMR",($G11)*(1+'Salary Inflation'!$B$32)*$E11,"NA"))) -> 0 | K11: =IF(D11="CAL",ROUND(J11*'RATES-Non Fed'!$E$38,0),IF(D11="ACAD",J11*'RATES-Non Fed'!$E$44,J11*'RATES-Non Fed'!$E$45)) -> 0 | L11: =ROUND(K11+J11,0) -> 0 | M11: =IF($D11="CAL",ROUND((J11*(1+'Salary Inflation'!$C$30)),0),IF($D11="ACAD",(J11)*(1+'Salary Inflation'!$C$31),IF($D11="SUMR",(J11)*(1+'Salary Inflation'!$C$32),"NA"))) -> 0 | N11: =IF($D11="CAL",ROUND(M11*'RATES-Non Fed'!$G$38,0),IF($D11="ACAD",M11*'RATES-Non Fed'!$G$44,M11*'RATES-Non Fed'!$G$45)) -> 0 | O11: =ROUND(M11+N11,0) -> 0 | P11: =IF($D11="CAL",ROUND((M11*(1+'Salary Inflation'!$D$30)),0),IF($D11="ACAD",(M11)*(1+'Salary Inflation'!$D$31),IF($D11="SUMR",(M11)*(1+'Salary Inflation'!$D$32),"NA"))) -> 0 | Q11: =IF($D11="CAL",ROUND(P11*'RATES-Non Fed'!$I$38,0),IF($D11="ACAD",P11*'RATES-Non Fed'!$I$44,P11*'RATES-Non Fed'!$I$45)) -> 0 | R11: =SUM(P11:Q11) -> 0 | S11: =IF($D11="CAL",ROUND((P11*(1+'Salary Inflation'!$E$30)),0),IF($D11="ACAD",(P11)*(1+'Salary Inflation'!$E$31),IF($D11="SUMR",(P11)*(1+'Salary Inflation'!$E$32),"NA"))) -> 0 | T11: =IF($D11="CAL",ROUND(S11*'RATES-Non Fed'!$K$38,0),IF($D11="ACAD",S11*'RATES-Non Fed'!$K$44,S11*'RATES-Non Fed'!$K$45)) -> 0 | U11: =SUM(S11:T11) -> 0 | V11: =IF($D11="CAL",ROUND((S11*(1+'Salary Inflation'!$F$30)),0),IF($D11="ACAD",(S11)*(1+'Salary Inflation'!$F$31),IF($D11="SUMR",(S11)*(1+'Salary Inflation'!$F$32),"NA"))) -> 0 | W11: =IF($D11="CAL",ROUND(V11*'RATES-Non Fed'!$M$38,0),IF($D11="ACAD",V11*'RATES-Non Fed'!$M$44,V11*'RATES-Non Fed'!$M$45)) -> 0 | X11: =SUM(V11:W11) -> 0 | Y11: =SUM(L11+O11+R11+U11+X11) -> 0
B12: PI | D12: SUMR | E12: 0 | F12: 0 | G12: =IF(D11="ACAD",+G11*0.437,0) -> 0 | J12: =IF($D12="CAL",ROUND(($G12*(1+'Salary Inflation'!$B$30))*$E12,0),IF($D12="ACAD",($G12/0.9965)*(1+'Salary Inflation'!$B$31)*$E12,IF($D12="SUMR",($G12)*(1+'Salary Inflation'!$B$32)*$E12,"NA"))) -> 0 | K12: =IF(D12="CAL",ROUND(J12*'RATES-Non Fed'!$E$38,0),IF(D12="ACAD",J12*'RATES-Non Fed'!$E$44,J12*'RATES-Non Fed'!$E$45)) -> 0 | L12: 0 | M12: =IF($D12="CAL",ROUND((J12*(1+'Salary Inflation'!$C$30)),0),IF($D12="ACAD",(J12)*(1+'Salary Inflation'!$C$31),IF($D12="SUMR",(J12)*(1+'Salary Inflation'!$C$32),"NA"))) -> 0 | N12: =IF($D12="CAL",ROUND(M12*'RATES-Non Fed'!$G$38,0),IF($D12="ACAD",M12*'RATES-Non Fed'!$G$44,M12*'RATES-Non Fed'!$G$45)) -> 0 | O12: 0 | P12: =IF($D12="CAL",ROUND((M12*(1+'Salary Inflation'!$D$30)),0),IF($D12="ACAD",(M12)*(1+'Salary Inflation'!$D$31),IF($D12="SUMR",(M12)*(1+'Salary Inflation'!$D$32),"NA"))) -> 0 | Q12: =IF($D12="CAL",ROUND(P12*'RATES-Non Fed'!$I$38,0),IF($D12="ACAD",P12*'RATES-Non Fed'!$I$44,P12*'RATES-Non Fed'!$I$45)) -> 0 | R12: 0 | S12: =IF($D12="CAL",ROUND((P12*(1+'Salary Inflation'!$E$30)),0),IF($D12="ACAD",(P12)*(1+'Salary Inflation'!$E$31),IF($D12="SUMR",(P12)*(1+'Salary Inflation'!$E$32),"NA"))) -> 0 | T12: =IF($D12="CAL",ROUND(S12*'RATES-Non Fed'!$K$38,0),IF($D12="ACAD",S12*'RATES-Non Fed'!$K$44,S12*'RATES-Non Fed'!$K$45)) -> 0 | U12: 0 | V12: =IF($D12="CAL",ROUND((S12*(1+'Salary Inflation'!$F$30)),0),IF($D12="ACAD",(S12)*(1+'Salary Inflation'!$F$31),IF($D12="SUMR",(S12)*(1+'Salary Inflation'!$F$32),"NA"))) -> 0 | W12: =IF($D12="CAL",ROUND(V12*'RATES-Non Fed'!$M$38,0),IF($D12="ACAD",V12*'RATES-Non Fed'!$M$44,V12*'RATES-Non Fed'!$M$45)) -> 0 | X12: 0 | Y12: 0
B13: Co | D13: ACAD | E13: 0 | F13: 0 | G13: 0 | J13: =IF($D13="CAL",ROUND(($G13*(1+'Salary Inflation'!$B$30))*$E13,0),IF($D13="ACAD",($G13/0.9965)*(1+'Salary Inflation'!$B$31)*$E13,IF($D13="SUMR",($G13)*(1+'Salary Inflation'!$B$32)*$E13,"NA"))) -> 0 | K13: =IF(D13="CAL",ROUND(J13*'RATES-Non Fed'!$E$38,0),IF(D13="ACAD",J13*'RATES-Non Fed'!$E$44,J13*'RATES-Non Fed'!$E$45)) -> 0 | L13: 0 | M13: =IF($D13="CAL",ROUND((J13*(1+'Salary Inflation'!$C$30)),0),IF($D13="ACAD",(J13)*(1+'Salary Inflation'!$C$31),IF($D13="SUMR",(J13)*(1+'Salary Inflation'!$C$32),"NA"))) -> 0 | N13: =IF($D13="CAL",ROUND(M13*'RATES-Non Fed'!$G$38,0),IF($D13="ACAD",M13*'RATES-Non Fed'!$G$44,M13*'RATES-Non Fed'!$G$45)) -> 0 | O13: 0 | P13: =IF($D13="CAL",ROUND((M13*(1+'Salary Inflation'!$D$30)),0),IF($D13="ACAD",(M13)*(1+'Salary Inflation'!$D$31),IF($D13="SUMR",(M13)*(1+'Salary Inflation'!$D$32),"NA"))) -> 0 | Q13: =IF($D13="CAL",ROUND(P13*'RATES-Non Fed'!$I$38,0),IF($D13="ACAD",P13*'RATES-Non Fed'!$I$44,P13*'RATES-Non Fed'!$I$45)) -> 0 | R13: 0 | S13: =IF($D13="CAL",ROUND((P13*(1+'Salary Inflation'!$E$30)),0),IF($D13="ACAD",(P13)*(1+'Salary Inflation'!$E$31),IF($D13="SUMR",(P13)*(1+'Salary Inflation'!$E$32),"NA"))) -> 0 | T13: =IF($D13="CAL",ROUND(S13*'RATES-Non Fed'!$K$38,0),IF($D13="ACAD",S13*'RATES-Non Fed'!$K$44,S13*'RATES-Non Fed'!$K$45)) -> 0 | U13: 0 | V13: =IF($D13="CAL",ROUND((S13*(1+'Salary Inflation'!$F$30)),0),IF($D13="ACAD",(S13)*(1+'Salary Inflation'!$F$31),IF($D13="SUMR",(S13)*(1+'Salary Inflation'!$F$32),"NA"))) -> 0 | W13: =IF($D13="CAL",ROUND(V13*'RATES-Non Fed'!$M$38,0),IF($D13="ACAD",V13*'RATES-Non Fed'!$M$44,V13*'RATES-Non Fed'!$M$45)) -> 0 | X13: 0 | Y13: 0
D14: =IF(D13="ACAD",("SUMR"),"") -> SUMR | E14: 0 | F14: 0 | G14: =IF(D13="ACAD",+G13*0.437,0) -> 0 | J14: =IF($D14="CAL",ROUND(($G14*(1+'Salary Inflation'!$B$30))*$E14,0),IF($D14="ACAD",($G14/0.9965)*(1+'Salary Inflation'!$B$31)*$E14,IF($D14="SUMR",($G14)*(1+'Salary Inflation'!$B$32)*$E14,"NA"))) -> 0 | K14: =IF(D14="CAL",ROUND(J14*'RATES-Non Fed'!$E$38,0),IF(D14="ACAD",J14*'RATES-Non Fed'!$E$44,J14*'RATES-Non Fed'!$E$45)) -> 0 | L14: 0 | M14: =IF($D14="CAL",ROUND((J14*(1+'Salary Inflation'!$C$30)),0),IF($D14="ACAD",(J14)*(1+'Salary Inflation'!$C$31),IF($D14="SUMR",(J14)*(1+'Salary Inflation'!$C$32),"NA"))) -> 0 | N14: =IF($D14="CAL",ROUND(M14*'RATES-Non Fed'!$G$38,0),IF($D14="ACAD",M14*'RATES-Non Fed'!$G$44,M14*'RATES-Non Fed'!$G$45)) -> 0 | O14: 0 | P14: =IF($D14="CAL",ROUND((M14*(1+'Salary Inflation'!$D$30)),0),IF($D14="ACAD",(M14)*(1+'Salary Inflation'!$D$31),IF($D14="SUMR",(M14)*(1+'Salary Inflation'!$D$32),"NA"))) -> 0 | Q14: =IF($D14="CAL",ROUND(P14*'RATES-Non Fed'!$I$38,0),IF($D14="ACAD",P14*'RATES-Non Fed'!$I$44,P14*'RATES-Non Fed'!$I$45)) -> 0 | R14: 0 | S14: =IF($D14="CAL",ROUND((P14*(1+'Salary Inflation'!$E$30)),0),IF($D14="ACAD",(P14)*(1+'Salary Inflation'!$E$31),IF($D14="SUMR",(P14)*(1+'Salary Inflation'!$E$32),"NA"))) -> 0 | T14: =IF($D14="CAL",ROUND(S14*'RATES-Non Fed'!$K$38,0),IF($D14="ACAD",S14*'RATES-Non Fed'!$K$44,S14*'RATES-Non Fed'!$K$45)) -> 0 | U14: 0 | V14: =IF($D14="CAL",ROUND((S14*(1+'Salary Inflation'!$F$30)),0),IF($D14="ACAD",(S14)*(1+'Salary Inflation'!$F$31),IF($D14="SUMR",(S14)*(1+'Salary Inflation'!$F$32),"NA"))) -> 0 | W14: =IF($D14="CAL",ROUND(V14*'RATES-Non Fed'!$M$38,0),IF($D14="ACAD",V14*'RATES-Non Fed'!$M$44,V14*'RATES-Non Fed'!$M$45)) -> 0 | X14: 0 | Y14: 0
B15: Co | D15: ACAD | E15: 0 | F15: 0 | G15: 0 | J15: =IF($D15="CAL",ROUND(($G15*(1+'Salary Inflation'!$B$30))*$E15,0),IF($D15="ACAD",($G15/0.9965)*(1+'Salary Inflation'!$B$31)*$E15,IF($D15="SUMR",($G15)*(1+'Salary Inflation'!$B$32)*$E15,"NA"))) -> 0 | K15: =IF(D15="CAL",ROUND(J15*'RATES-Non Fed'!$E$38,0),IF(D15="ACAD",J15*'RATES-Non Fed'!$E$44,J15*'RATES-Non Fed'!$E$45)) -> 0 | L15: 0 | M15: =IF($D15="CAL",ROUND((J15*(1+'Salary Inflation'!$C$30)),0),IF($D15="ACAD",(J15)*(1+'Salary Inflation'!$C$31),IF($D15="SUMR",(J15)*(1+'Salary Inflation'!$C$32),"NA"))) -> 0 | N15: =IF($D15="CAL",ROUND(M15*'RATES-Non Fed'!$G$38,0),IF($D15="ACAD",M15*'RATES-Non Fed'!$G$44,M15*'RATES-Non Fed'!$G$45)) -> 0 | O15: 0 | P15: =IF($D15="CAL",ROUND((M15*(1+'Salary Inflation'!$D$30)),0),IF($D15="ACAD",(M15)*(1+'Salary Inflation'!$D$31),IF($D15="SUMR",(M15)*(1+'Salary Inflation'!$D$32),"NA"))) -> 0 | Q15: =IF($D15="CAL",ROUND(P15*'RATES-Non Fed'!$I$38,0),IF($D15="ACAD",P15*'RATES-Non Fed'!$I$44,P15*'RATES-Non Fed'!$I$45)) -> 0 | R15: 0 | S15: =IF($D15="CAL",ROUND((P15*(1+'Salary Inflation'!$E$30)),0),IF($D15="ACAD",(P15)*(1+'Salary Inflation'!$E$31),IF($D15="SUMR",(P15)*(1+'Salary Inflation'!$E$32),"NA"))) -> 0 | T15: =IF($D15="CAL",ROUND(S15*'RATES-Non Fed'!$K$38,0),IF($D15="ACAD",S15*'RATES-Non Fed'!$K$44,S15*'RATES-Non Fed'!$K$45)) -> 0 | U15: 0 | V15: =IF($D15="CAL",ROUND((S15*(1+'Salary Inflation'!$F$30)),0),IF($D15="ACAD",(S15)*(1+'Salary Inflation'!$F$31),IF($D15="SUMR",(S15)*(1+'Salary Inflation'!$F$32),"NA"))) -> 0 | W15: =IF($D15="CAL",ROUND(V15*'RATES-Non Fed'!$M$38,0),IF($D15="ACAD",V15*'RATES-Non Fed'!$M$44,V15*'RATES-Non Fed'!$M$45)) -> 0 | X15: 0 | Y15: 0
D16: =IF(D15="ACAD",("SUMR"),"") -> SUMR | E16: 0 | F16: 0 | G16: =IF(D15="ACAD",+G15*0.428,0) -> 0 | J16: =IF($D16="CAL",ROUND(($G16*(1+'Salary Inflation'!$B$30))*$E16,0),IF($D16="ACAD",($G16/0.9965)*(1+'Salary Inflation'!$B$31)*$E16,IF($D16="SUMR",($G16)*(1+'Salary Inflation'!$B$32)*$E16,"NA"))) -> 0 | K16: =IF(D16="CAL",ROUND(J16*'RATES-Non Fed'!$E$38,0),IF(D16="ACAD",J16*'RATES-Non Fed'!$E$44,J16*'RATES-Non Fed'!$E$45)) -> 0 | L16: 0 | M16: =IF($D16="CAL",ROUND((J16*(1+'Salary Inflation'!$C$30)),0),IF($D16="ACAD",(J16)*(1+'Salary Inflation'!$C$31),IF($D16="SUMR",(J16)*(1+'Salary Inflation'!$C$32),"NA"))) -> 0 | N16: =IF($D16="CAL",ROUND(M16*'RATES-Non Fed'!$G$38,0),IF($D16="ACAD",M16*'RATES-Non Fed'!$G$44,M16*'RATES-Non Fed'!$G$45)) -> 0 | O16: 0 | P16: =IF($D16="CAL",ROUND((M16*(1+'Salary Inflation'!$D$30)),0),IF($D16="ACAD",(M16)*(1+'Salary Inflation'!$D$31),IF($D16="SUMR",(M16)*(1+'Salary Inflation'!$D$32),"NA"))) -> 0 | Q16: =IF($D16="CAL",ROUND(P16*'RATES-Non Fed'!$I$38,0),IF($D16="ACAD",P16*'RATES-Non Fed'!$I$44,P16*'RATES-Non Fed'!$I$45)) -> 0 | R16: 0 | S16: =IF($D16="CAL",ROUND((P16*(1+'Salary Inflation'!$E$30)),0),IF($D16="ACAD",(P16)*(1+'Salary Inflation'!$E$31),IF($D16="SUMR",(P16)*(1+'Salary Inflation'!$E$32),"NA"))) -> 0 | T16: =IF($D16="CAL",ROUND(S16*'RATES-Non Fed'!$K$38,0),IF($D16="ACAD",S16*'RATES-Non Fed'!$K$44,S16*'RATES-Non Fed'!$K$45)) -> 0 | U16: 0 | V16: =IF($D16="CAL",ROUND((S16*(1+'Salary Inflation'!$F$30)),0),IF($D16="ACAD",(S16)*(1+'Salary Inflation'!$F$31),IF($D16="SUMR",(S16)*(1+'Salary Inflation'!$F$32),"NA"))) -> 0 | W16: =IF($D16="CAL",ROUND(V16*'RATES-Non Fed'!$M$38,0),IF($D16="ACAD",V16*'RATES-Non Fed'!$M$44,V16*'RATES-Non Fed'!$M$45)) -> 0 | X16: 0 | Y16: 0
B17: Co | D17: CAL | E17: 0 | F17: 0 | G17: 0 | J17: =IF($D17="CAL",ROUND(($G17*(1+'Salary Inflation'!$B$30))*$E17,0),IF($D17="ACAD",($G17/0.9965)*(1+'Salary Inflation'!$B$31)*$E17,IF($D17="SUMR",($G17)*(1+'Salary Inflation'!$B$32)*$E17,"NA"))) -> 0 | K17: =IF(D17="CAL",ROUND(J17*'RATES-Non Fed'!$E$38,0),IF(D17="ACAD",J17*'RATES-Non Fed'!$E$44,J17*'RATES-Non Fed'!$E$45)) -> 0 | L17: 0 | M17: =IF($D17="CAL",ROUND((J17*(1+'Salary Inflation'!$C$30)),0),IF($D17="ACAD",(J17)*(1+'Salary Inflation'!$C$31),IF($D17="SUMR",(J17)*(1+'Salary Inflation'!$C$32),"NA"))) -> 0 | N17: =IF($D17="CAL",ROUND(M17*'RATES-Non Fed'!$G$38,0),IF($D17="ACAD",M17*'RATES-Non Fed'!$G$44,M17*'RATES-Non Fed'!$G$45)) -> 0 | O17: 0 | P17: =IF($D17="CAL",ROUND((M17*(1+'Salary Inflation'!$D$30)),0),IF($D17="ACAD",(M17)*(1+'Salary Inflation'!$D$31),IF($D17="SUMR",(M17)*(1+'Salary Inflation'!$D$32),"NA"))) -> 0 | Q17: =IF($D17="CAL",ROUND(P17*'RATES-Non Fed'!$I$38,0),IF($D17="ACAD",P17*'RATES-Non Fed'!$I$44,P17*'RATES-Non Fed'!$I$45)) -> 0 | R17: 0 | S17: =IF($D17="CAL",ROUND((P17*(1+'Salary Inflation'!$E$30)),0),IF($D17="ACAD",(P17)*(1+'Salary Inflation'!$E$31),IF($D17="SUMR",(P17)*(1+'Salary Inflation'!$E$32),"NA"))) -> 0 | T17: =IF($D17="CAL",ROUND(S17*'RATES-Non Fed'!$K$38,0),IF($D17="ACAD",S17*'RATES-Non Fed'!$K$44,S17*'RATES-Non Fed'!$K$45)) -> 0 | U17: 0 | V17: =IF($D17="CAL",ROUND((S17*(1+'Salary Inflation'!$F$30)),0),IF($D17="ACAD",(S17)*(1+'Salary Inflation'!$F$31),IF($D17="SUMR",(S17)*(1+'Salary Inflation'!$F$32),"NA"))) -> 0 | W17: =IF($D17="CAL",ROUND(V17*'RATES-Non Fed'!$M$38,0),IF($D17="ACAD",V17*'RATES-Non Fed'!$M$44,V17*'RATES-Non Fed'!$M$45)) -> 0 | X17: 0 | Y17: 0
B18: Co | D18: CAL | E18: 0 | F18: 0 | G18: 0 | J18: =IF($D18="CAL",ROUND(($G18*(1+'Salary Inflation'!$B$30))*$E18,0),IF($D18="ACAD",($G18/0.9965)*(1+'Salary Inflation'!$B$31)*$E18,IF($D18="SUMR",($G18)*(1+'Salary Inflation'!$B$32)*$E18,"NA"))) -> 0 | K18: =IF(D18="CAL",ROUND(J18*'RATES-Non Fed'!$E$38,0),IF(D18="ACAD",J18*'RATES-Non Fed'!$E$44,J18*'RATES-Non Fed'!$E$45)) -> 0 | L18: 0 | M18: =IF($D18="CAL",ROUND((J18*(1+'Salary Inflation'!$C$30)),0),IF($D18="ACAD",(J18)*(1+'Salary Inflation'!$C$31),IF($D18="SUMR",(J18)*(1+'Salary Inflation'!$C$32),"NA"))) -> 0 | N18: =IF($D18="CAL",ROUND(M18*'RATES-Non Fed'!$G$38,0),IF($D18="ACAD",M18*'RATES-Non Fed'!$G$44,M18*'RATES-Non Fed'!$G$45)) -> 0 | O18: 0 | P18: =IF($D18="CAL",ROUND((M18*(1+'Salary Inflation'!$D$30)),0),IF($D18="ACAD",(M18)*(1+'Salary Inflation'!$D$31),IF($D18="SUMR",(M18)*(1+'Salary Inflation'!$D$32),"NA"))) -> 0 | Q18: =IF($D18="CAL",ROUND(P18*'RATES-Non Fed'!$I$38,0),IF($D18="ACAD",P18*'RATES-Non Fed'!$I$44,P18*'RATES-Non Fed'!$I$45)) -> 0 | R18: 0 | S18: =IF($D18="CAL",ROUND((P18*(1+'Salary Inflation'!$E$30)),0),IF($D18="ACAD",(P18)*(1+'Salary Inflation'!$E$31),IF($D18="SUMR",(P18)*(1+'Salary Inflation'!$E$32),"NA"))) -> 0 | T18: =IF($D18="CAL",ROUND(S18*'RATES-Non Fed'!$K$38,0),IF($D18="ACAD",S18*'RATES-Non Fed'!$K$44,S18*'RATES-Non Fed'!$K$45)) -> 0 | U18: 0 | V18: =IF($D18="CAL",ROUND((S18*(1+'Salary Inflation'!$F$30)),0),IF($D18="ACAD",(S18)*(1+'Salary Inflation'!$F$31),IF($D18="SUMR",(S18)*(1+'Salary Inflation'!$F$32),"NA"))) -> 0 | W18: =IF($D18="CAL",ROUND(V18*'RATES-Non Fed'!$M$38,0),IF($D18="ACAD",V18*'RATES-Non Fed'!$M$44,V18*'RATES-Non Fed'!$M$45)) -> 0 | X18: 0 | Y18: 0
D19: AAUP Faculty Subtotal : | J19: =SUM(J11:J18) -> 0 | K19: 0 | L19: 0 | M19: 0 | N19: 0 | O19: 0 | P19: 0 | Q19: 0 | R19: 0 | S19: 0 | T19: 0 | U19: 0 | V19: 0 | W19: 0 | X19: 0 | Y19: 0
A20: B | B20: Dual Compensation Faculty
B21: Co | D21: CAL | E21: 0 | F21: =IF(D21="CAL",(52*E21/4.3333),(IF(D21="ACAD",(32*E21/4.33333),IF(D21="SUMR",(14*E21/4.33333),IF(D21="PT",(0),0))))) -> 0 | G21: 0 | J21: =ROUND(($G21*(1+'Salary Inflation'!$B$34))*$E21,0) -> 0 | K21: =ROUND(J21*'RATES-Non Fed'!E40,0) -> 0 | L21: =ROUND(K21+J21,0) -> 0 | M21: =ROUND(J21*(1+'Salary Inflation'!$C$34),0) -> 0 | N21: =ROUND(M21*'RATES-Non Fed'!G40,0) -> 0 | O21: =ROUND(M21+N21,0) -> 0 | P21: =ROUND((M21*1.02),0) -> 0 | Q21: =ROUND(P21*'RATES-Non Fed'!I40,0) -> 0 | R21: =ROUND(P21+Q21,0) -> 0 | S21: =ROUND(P21*(1+'Salary Inflation'!$C$34),0) -> 0 | T21: =ROUND(S21*'RATES-Non Fed'!K40,0) -> 0 | U21: =SUM(S21:T21) -> 0 | V21: =ROUND(S21*(1+'Salary Inflation'!$C$34),0) -> 0 | W21: =ROUND(V21*'RATES-Non Fed'!M40,0) -> 0 | X21: =SUM(V21:W21) -> 0 | Y21: =SUM(L21+O21+R21+U21+X21) -> 0
B22: Co | D22: CAL | E22: 0 | F22: =IF(D22="CAL",(52*E22/4.3333),(IF(D22="ACAD",(32*E22/4.33333),IF(D22="SUMR",(14*E22/4.33333),IF(D22="PT",(0),0))))) -> 0 | G22: 0 | J22: =ROUND(($G22*(1+'Salary Inflation'!$B$34))*$E22,0) -> 0 | K22: =ROUND(J22*'RATES-Non Fed'!E40,0) -> 0 | L22: =ROUND(K22+J22,0) -> 0 | M22: =ROUND(J22*(1+'Salary Inflation'!$C$34),0) -> 0 | N22: =ROUND(M22*'RATES-Non Fed'!G40,0) -> 0 | O22: =ROUND(M22+N22,0) -> 0 | P22: =ROUND((M22*1.02),0) -> 0 | Q22: =ROUND(P22*'RATES-Non Fed'!I40,0) -> 0 | R22: =ROUND(P22+Q22,0) -> 0 | S22: =ROUND(P22*(1+'Salary Inflation'!$C$34),0) -> 0 | T22: =ROUND(S22*'RATES-Non Fed'!K40,0) -> 0 | U22: =SUM(S22:T22) -> 0 | V22: =ROUND(S22*(1+'Salary Inflation'!$C$34),0) -> 0 | W22: =ROUND(V22*'RATES-Non Fed'!M40,0) -> 0 | X22: =SUM(V22:W22) -> 0 | Y22: =SUM(L22+O22+R22+U22+X22) -> 0
B23: Co | D23: CAL | E23: 0 | F23: =IF(D23="CAL",(52*E23/4.3333),(IF(D23="ACAD",(32*E23/4.33333),IF(D23="SUMR",(14*E23/4.33333),IF(D23="PT",(0),0))))) -> 0 | G23: 0 | J23: =ROUND(($G23*(1+'Salary Inflation'!$B$34))*$E23,0) -> 0 | K23: =ROUND(J23*'RATES-Non Fed'!E40,0) -> 0 | L23: =ROUND(K23+J23,0) -> 0 | M23: =ROUND(J23*(1+'Salary Inflation'!$C$34),0) -> 0 | N23: =ROUND(M23*'RATES-Non Fed'!G40,0) -> 0 | O23: =ROUND(M23+N23,0) -> 0 | P23: =ROUND((M23*1.02),0) -> 0 | Q23: =ROUND(P23*'RATES-Non Fed'!I40,0) -> 0 | R23: =ROUND(P23+Q23,0) -> 0 | S23: =ROUND(P23*(1+'Salary Inflation'!$C$34),0) -> 0 | T23: =ROUND(S23*'RATES-Non Fed'!K40,0) -> 0 | U23: =SUM(S23:T23) -> 0 | V23: =ROUND(S23*(1+'Salary Inflation'!$C$34),0) -> 0 | W23: =ROUND(V23*'RATES-Non Fed'!M40,0) -> 0 | X23: =SUM(V23:W23) -> 0 | Y23: =SUM(L23+O23+R23+U23+X23) -> 0
B24: Co | D24: CAL | E24: 0 | F24: =IF(D24="CAL",(52*E24/4.3333),(IF(D24="ACAD",(32*E24/4.33333),IF(D24="SUMR",(14*E24/4.33333),IF(D24="PT",(0),0))))) -> 0 | G24: 0 | J24: =ROUND(($G24*(1+'Salary Inflation'!$B$34))*$E24,0) -> 0 | K24: =ROUND(J24*'RATES-Non Fed'!E40,0) -> 0 | L24: =ROUND(K24+J24,0) -> 0 | M24: =ROUND(J24*(1+'Salary Inflation'!$C$34),0) -> 0 | N24: =ROUND(M24*'RATES-Non Fed'!G40,0) -> 0 | O24: =ROUND(M24+N24,0) -> 0 | P24: =ROUND((M24*1.02),0) -> 0 | Q24: =ROUND(P24*'RATES-Non Fed'!I40,0) -> 0 | R24: =ROUND(P24+Q24,0) -> 0 | S24: =ROUND(P24*(1+'Salary Inflation'!$C$34),0) -> 0 | T24: =ROUND(S24*'RATES-Non Fed'!K40,0) -> 0 | U24: =SUM(S24:T24) -> 0 | V24: =ROUND(S24*(1+'Salary Inflation'!$C$34),0) -> 0 | W24: =ROUND(V24*'RATES-Non Fed'!M40,0) -> 0 | X24: =SUM(V24:W24) -> 0 | Y24: =SUM(L24+O24+R24+U24+X24) -> 0
D25: Dual Comp Faculty Subtotal : | J25: =SUM(J21:J24) -> 0 | K25: 0 | L25: 0 | M25: 0 | N25: 0 | O25: 0 | P25: 0 | Q25: 0 | R25: 0 | S25: 0 | T25: 0 | U25: 0 | V25: 0 | W25: 0 | X25: 0 | Y25: 0
A27: C. | B27: Other Personnel
C28: Exempt Staff (Monthly) | D28: Name
E29: 0 | F29: =SUM(52*E29/4.3333) -> 0 | G29: 0 | J29: =ROUND(($G29*(1+'Salary Inflation'!$B$33))*$E29,0) -> 0 | K29: =ROUND(J29*'RATES-Non Fed'!E39,0) -> 0 | L29: =SUM(J29:K29) -> 0 | M29: =ROUND(J29*(1+'Salary Inflation'!$C$33),0) -> 0 | N29: =ROUND(M29*'RATES-Non Fed'!G39,0) -> 0 | O29: =SUM(M29:N29) -> 0 | P29: =ROUND(M29*(1+'Salary Inflation'!$D$33),0) -> 0 | Q29: =ROUND(P29*'RATES-Non Fed'!I39,0) -> 0 | R29: =SUM(P29:Q29) -> 0 | S29: =ROUND(P29*(1+'Salary Inflation'!$E$33),0) -> 0 | T29: =ROUND(S29*'RATES-Non Fed'!K39,0) -> 0 | U29: =SUM(S29:T29) -> 0 | V29: =ROUND(S29*(1+'Salary Inflation'!$F$33),0) -> 0 | W29: =ROUND(V29*'RATES-Non Fed'!M39,0) -> 0 | X29: =SUM(V29:W29) -> 0 | Y29: =SUM(L29+O29+R29+U29+X29) -> 0
E30: 0 | F30: =SUM(52*E30/4.3333) -> 0 | G30: 0 | J30: =ROUND(($G30*(1+'Salary Inflation'!$B$33))*$E30,0) -> 0 | K30: =ROUND(J30*'RATES-Non Fed'!E40,0) -> 0 | L30: =SUM(J30:K30) -> 0 | M30: =ROUND(J30*(1+'Salary Inflation'!$C$33),0) -> 0 | N30: =ROUND(M30*'RATES-Non Fed'!G40,0) -> 0 | O30: =SUM(M30:N30) -> 0 | P30: =ROUND(M30*(1+'Salary Inflation'!$D$33),0) -> 0 | Q30: =ROUND(P30*'RATES-Non Fed'!I40,0) -> 0 | R30: =SUM(P30:Q30) -> 0 | S30: =ROUND(P30*(1+'Salary Inflation'!$E$33),0) -> 0 | T30: =ROUND(S30*'RATES-Non Fed'!K40,0) -> 0 | U30: =SUM(S30:T30) -> 0 | V30: =ROUND(S30*(1+'Salary Inflation'!$F$33),0) -> 0 | W30: =ROUND(V30*'RATES-Non Fed'!M40,0) -> 0 | X30: =SUM(V30:W30) -> 0 | Y30: =SUM(L30+O30+R30+U30+X30) -> 0
E31: 0 | F31: 0 | G31: 0 | J31: =ROUND(($G31*(1+'Salary Inflation'!$B$33))*$E31,0) -> 0 | K31: =ROUND(J31*'RATES-Non Fed'!E41,0) -> 0 | L31: 0 | M31: =ROUND(J31*(1+'Salary Inflation'!$C$33),0) -> 0 | N31: =ROUND(M31*'RATES-Non Fed'!G41,0) -> 0 | O31: 0 | P31: =ROUND(M31*(1+'Salary Inflation'!$D$33),0) -> 0 | Q31: =ROUND(P31*'RATES-Non Fed'!I41,0) -> 0 | R31: 0 | S31: =ROUND(P31*(1+'Salary Inflation'!$E$33),0) -> 0 | T31: =ROUND(S31*'RATES-Non Fed'!K41,0) -> 0 | U31: 0 | V31: =ROUND(S31*(1+'Salary Inflation'!$F$33),0) -> 0 | W31: =ROUND(V31*'RATES-Non Fed'!M41,0) -> 0 | X31: 0 | Y31: 0
E32: 0 | F32: 0 | G32: 0 | J32: =ROUND(($G32*(1+'Salary Inflation'!$B$33))*$E32,0) -> 0 | K32: =ROUND(J32*'RATES-Non Fed'!E42,0) -> 0 | L32: 0 | M32: =ROUND(J32*(1+'Salary Inflation'!$C$33),0) -> 0 | N32: =ROUND(M32*'RATES-Non Fed'!G42,0) -> 0 | O32: 0 | P32: =ROUND(M32*(1+'Salary Inflation'!$D$33),0) -> 0 | Q32: =ROUND(P32*'RATES-Non Fed'!I42,0) -> 0 | R32: 0 | S32: =ROUND(P32*(1+'Salary Inflation'!$E$33),0) -> 0 | T32: =ROUND(S32*'RATES-Non Fed'!K42,0) -> 0 | U32: 0 | V32: =ROUND(S32*(1+'Salary Inflation'!$F$33),0) -> 0 | W32: =ROUND(V32*'RATES-Non Fed'!M42,0) -> 0 | X32: 0 | Y32: 0
E33: 0 | F33: 0 | G33: 0 | J33: =ROUND(($G33*(1+'Salary Inflation'!$B$33))*$E33,0) -> 0 | K33: =ROUND(J33*'RATES-Non Fed'!E43,0) -> 0 | L33: 0 | M33: =ROUND(J33*(1+'Salary Inflation'!$C$33),0) -> 0 | N33: =ROUND(M33*'RATES-Non Fed'!G43,0) -> 0 | O33: 0 | P33: =ROUND(M33*(1+'Salary Inflation'!$D$33),0) -> 0 | Q33: =ROUND(P33*'RATES-Non Fed'!I43,0) -> 0 | R33: 0 | S33: =ROUND(P33*(1+'Salary Inflation'!$E$33),0) -> 0 | T33: =ROUND(S33*'RATES-Non Fed'!K43,0) -> 0 | U33: 0 | V33: =ROUND(S33*(1+'Salary Inflation'!$F$33),0) -> 0 | W33: =ROUND(V33*'RATES-Non Fed'!M43,0) -> 0 | X33: 0 | Y33: 0
E34: 0 | F34: 0 | G34: 0 | J34: =ROUND(($G34*(1+'Salary Inflation'!$B$33))*$E34,0) -> 0 | K34: =ROUND(J34*'RATES-Non Fed'!E44,0) -> 0 | L34: 0 | M34: =ROUND(J34*(1+'Salary Inflation'!$C$33),0) -> 0 | N34: =ROUND(M34*'RATES-Non Fed'!G44,0) -> 0 | O34: 0 | P34: =ROUND(M34*(1+'Salary Inflation'!$D$33),0) -> 0 | Q34: =ROUND(P34*'RATES-Non Fed'!I44,0) -> 0 | R34: 0 | S34: =ROUND(P34*(1+'Salary Inflation'!$E$33),0) -> 0 | T34: =ROUND(S34*'RATES-Non Fed'!K44,0) -> 0 | U34: 0 | V34: =ROUND(S34*(1+'Salary Inflation'!$F$33),0) -> 0 | W34: =ROUND(V34*'RATES-Non Fed'!M44,0) -> 0 | X34: 0 | Y34: 0
E35: 0 | F35: 0 | G35: 0 | J35: =ROUND(($G35*(1+'Salary Inflation'!$B$33))*$E35,0) -> 0 | K35: =ROUND(J35*'RATES-Non Fed'!E45,0) -> 0 | L35: 0 | M35: =ROUND(J35*(1+'Salary Inflation'!$C$33),0) -> 0 | N35: =ROUND(M35*'RATES-Non Fed'!G45,0) -> 0 | O35: 0 | P35: =ROUND(M35*(1+'Salary Inflation'!$D$33),0) -> 0 | Q35: =ROUND(P35*'RATES-Non Fed'!I45,0) -> 0 | R35: 0 | S35: =ROUND(P35*(1+'Salary Inflation'!$E$33),0) -> 0 | T35: =ROUND(S35*'RATES-Non Fed'!K45,0) -> 0 | U35: 0 | V35: =ROUND(S35*(1+'Salary Inflation'!$F$33),0) -> 0 | W35: =ROUND(V35*'RATES-Non Fed'!M45,0) -> 0 | X35: 0 | Y35: 0
E36: 0 | F36: 0 | G36: 0 | J36: =ROUND(($G36*(1+'Salary Inflation'!$B$33))*$E36,0) -> 0 | K36: =ROUND(J36*'RATES-Non Fed'!E46,0) -> 0 | L36: 0 | M36: =ROUND(J36*(1+'Salary Inflation'!$C$33),0) -> 0 | N36: =ROUND(M36*'RATES-Non Fed'!G46,0) -> 0 | O36: 0 | P36: =ROUND(M36*(1+'Salary Inflation'!$D$33),0) -> 0 | Q36: =ROUND(P36*'RATES-Non Fed'!I46,0) -> 0 | R36: 0 | S36: =ROUND(P36*(1+'Salary Inflation'!$E$33),0) -> 0 | T36: =ROUND(S36*'RATES-Non Fed'!K46,0) -> 0 | U36: 0 | V36: =ROUND(S36*(1+'Salary Inflation'!$F$33),0) -> 0 | W36: =ROUND(V36*'RATES-Non Fed'!M46,0) -> 0 | X36: 0 | Y36: 0
E37: 0 | F37: 0 | G37: 0 | J37: =ROUND(($G37*(1+'Salary Inflation'!$B$33))*$E37,0) -> 0 | K37: =ROUND(J37*'RATES-Non Fed'!E47,0) -> 0 | L37: 0 | M37: =ROUND(J37*(1+'Salary Inflation'!$C$33),0) -> 0 | N37: =ROUND(M37*'RATES-Non Fed'!G47,0) -> 0 | O37: 0 | P37: =ROUND(M37*(1+'Salary Inflation'!$D$33),0) -> 0 | Q37: =ROUND(P37*'RATES-Non Fed'!I47,0) -> 0 | R37: 0 | S37: =ROUND(P37*(1+'Salary Inflation'!$E$33),0) -> 0 | T37: =ROUND(S37*'RATES-Non Fed'!K47,0) -> 0 | U37: 0 | V37: =ROUND(S37*(1+'Salary Inflation'!$F$33),0) -> 0 | W37: =ROUND(V37*'RATES-Non Fed'!M47,0) -> 0 | X37: 0 | Y37: 0
E38: 0 | F38: =SUM(52*E38/4.3333) -> 0 | G38: 0 | J38: =ROUND(($G38*(1+'Salary Inflation'!$B$33))*$E38,0) -> 0 | K38: =ROUND(J38*'RATES-Non Fed'!E39,0) -> 0 | L38: =SUM(J38:K38) -> 0 | M38: =ROUND(J38*(1+'Salary Inflation'!$C$33),0) -> 0 | N38: =ROUND(M38*'RATES-Non Fed'!G39,0) -> 0 | O38: =SUM(M38:N38) -> 0 | P38: =ROUND(M38*(1+'Salary Inflation'!$D$33),0) -> 0 | Q38: =ROUND(P38*'RATES-Non Fed'!I39,0) -> 0 | R38: =SUM(P38:Q38) -> 0 | S38: =ROUND(P38*(1+'Salary Inflation'!$E$33),0) -> 0 | T38: =ROUND(S38*'RATES-Non Fed'!K39,0) -> 0 | U38: =SUM(S38:T38) -> 0 | V38: =ROUND(S38*(1+'Salary Inflation'!$F$33),0) -> 0 | W38: =ROUND(V38*'RATES-Non Fed'!M39,0) -> 0 | X38: =SUM(V38:W38) -> 0 | Y38: =SUM(L38+O38+R38+U38+X38) -> 0
E39: 0 | F39: =SUM(52*E39/4.3333) -> 0 | G39: 0 | J39: =ROUND(($G39*(1+'Salary Inflation'!$B$33))*$E39,0) -> 0 | K39: =ROUND(J39*'RATES-Non Fed'!E39,0) -> 0 | L39: =SUM(J39:K39) -> 0 | M39: =ROUND(J39*(1+'Salary Inflation'!$C$33),0) -> 0 | N39: =ROUND(M39*'RATES-Non Fed'!G39,0) -> 0 | O39: =SUM(M39:N39) -> 0 | P39: =ROUND(M39*(1+'Salary Inflation'!$D$33),0) -> 0 | Q39: =ROUND(P39*'RATES-Non Fed'!I39,0) -> 0 | R39: =SUM(P39:Q39) -> 0 | S39: =ROUND(P39*(1+'Salary Inflation'!$E$33),0) -> 0 | T39: =ROUND(S39*'RATES-Non Fed'!K39,0) -> 0 | U39: =SUM(S39:T39) -> 0 | V39: =ROUND(S39*(1+'Salary Inflation'!$F$33),0) -> 0 | W39: =ROUND(V39*'RATES-Non Fed'!M39,0) -> 0 | X39: =SUM(V39:W39) -> 0 | Y39: =SUM(L39+O39+R39+U39+X39) -> 0
E40: 0 | F40: =SUM(52*E40/4.3333) -> 0 | G40: 0 | J40: =ROUND(($G40*(1+'Salary Inflation'!$B$33))*$E40,0) -> 0 | K40: =ROUND(J40*'RATES-Non Fed'!E39,0) -> 0 | L40: =SUM(J40:K40) -> 0 | M40: =ROUND(J40*(1+'Salary Inflation'!$C$33),0) -> 0 | N40: =ROUND(M40*'RATES-Non Fed'!G39,0) -> 0 | O40: =SUM(M40:N40) -> 0 | P40: =ROUND(M40*(1+'Salary Inflation'!$D$33),0) -> 0 | Q40: =ROUND(P40*'RATES-Non Fed'!I39,0) -> 0 | R40: =SUM(P40:Q40) -> 0 | S40: =ROUND(P40*(1+'Salary Inflation'!$E$33),0) -> 0 | T40: =ROUND(S40*'RATES-Non Fed'!K39,0) -> 0 | U40: =SUM(S40:T40) -> 0 | V40: =ROUND(S40*(1+'Salary Inflation'!$F$33),0) -> 0 | W40: =ROUND(V40*'RATES-Non Fed'!M39,0) -> 0 | X40: =SUM(V40:W40) -> 0 | Y40: =SUM(L40+O40+R40+U40+X40) -> 0
D41: Total Exempt Staff | J41: =SUM(J29:J40) -> 0 | K41: 0 | L41: 0 | M41: 0 | N41: 0 | O41: 0 | P41: 0 | Q41: 0 | R41: 0 | S41: 0 | T41: 0 | U41: 0 | V41: 0 | W41: 0 | X41: 0 | Y41: 0
C43: Post Doctoral Support | E43: 0 | F43: =SUM(52*E43/4.3333) -> 0 | G43: 0 | J43: =ROUND(($G43*(1+'Salary Inflation'!$B$33))*$E43,0) -> 0 | K43: =ROUND(J43*'RATES-Non Fed'!E43,0) -> 0 | L43: =SUM(J43:K43) -> 0 | M43: =ROUND(J43*(1+'Salary Inflation'!$C$33),0) -> 0 | N43: =ROUND(M43*'RATES-Non Fed'!G43,0) -> 0 | O43: =SUM(M43:N43) -> 0 | P43: =ROUND(M43*(1+'Salary Inflation'!$D$33),0) -> 0 | Q43: =ROUND(P43*'RATES-Non Fed'!I43,0) -> 0 | R43: =SUM(P43:Q43) -> 0 | S43: =ROUND(P43*(1+'Salary Inflation'!$E$33),0) -> 0 | T43: =ROUND(S43*'RATES-Non Fed'!K43,0) -> 0 | U43: =SUM(S43:T43) -> 0 | V43: =ROUND(S43*(1+'Salary Inflation'!$F$33),0) -> 0 | W43: =ROUND(V43*'RATES-Non Fed'!M43,0) -> 0 | X43: =SUM(V43:W43) -> 0 | Y43: =SUM(L43+O43+R43+U43+X43) -> 0
C44: Graduate Students | E44: 0 | F44: =SUM(52*E44/4.3333) -> 0 | G44: 0 | J44: =ROUND(($G44*(1+'Salary Inflation'!$B$33))*$E44,0) -> 0 | K44: =ROUND(J44*'RATES-Non Fed'!E42,0) -> 0 | L44: =SUM(J44:K44) -> 0 | M44: =ROUND(J44*(1+'Salary Inflation'!$C$33),0) -> 0 | N44: =ROUND(M44*'RATES-Non Fed'!G42,0) -> 0 | O44: =SUM(M44:N44) -> 0 | P44: =ROUND(M44*(1+'Salary Inflation'!$D$33),0) -> 0 | Q44: =ROUND(P44*'RATES-Non Fed'!I42,0) -> 0 | R44: =SUM(P44:Q44) -> 0 | S44: =ROUND(P44*(1+'Salary Inflation'!$E$33),0) -> 0 | T44: =ROUND(S44*'RATES-Non Fed'!K42,0) -> 0 | U44: =SUM(S44:T44) -> 0 | V44: =ROUND((S44*1.02),0) -> 0 | W44: =ROUND(V44*'RATES-Non Fed'!M42,0) -> 0 | X44: =SUM(V44:W44) -> 0 | Y44: =SUM(L44+O44+R44+U44+X44) -> 0
C45: Undergrad Students | E45: 0 | F45: =SUM(52*E45/4.3333) -> 0 | G45: 0 | J45: =ROUND(($G45*(1+'Salary Inflation'!$B$33))*$E45,0) -> 0 | K45: =ROUND(J45*'RATES-Non Fed'!E42,0) -> 0 | L45: =SUM(J45:K45) -> 0 | M45: =ROUND(J45*(1+'Salary Inflation'!$C$33),0) -> 0 | N45: =ROUND(M45*'RATES-Non Fed'!G42,0) -> 0 | O45: =SUM(M45:N45) -> 0 | P45: =ROUND(M45*(1+'Salary Inflation'!$D$33),0) -> 0 | Q45: =ROUND(P45*'RATES-Non Fed'!I42,0) -> 0 | R45: =SUM(P45:Q45) -> 0 | S45: =ROUND(P45*(1+'Salary Inflation'!$E$33),0) -> 0 | T45: =ROUND(S45*'RATES-Non Fed'!K42,0) -> 0 | U45: =SUM(S45:T45) -> 0 | V45: =ROUND(S45*(1+'Salary Inflation'!$F$33),0) -> 0 | W45: =ROUND(V45*'RATES-Non Fed'!M42,0) -> 0 | X45: =SUM(V45:W45) -> 0 | Y45: =SUM(L45+O45+R45+U45+X45) -> 0
C46: Part-time Faculty/Staff | E46: 0 | F46: =SUM(52*E46/4.3333) -> 0 | G46: 0 | J46: =ROUND(($G46*(1+'Salary Inflation'!$B$33))*$E46,0) -> 0 | K46: =ROUND(J46*'RATES-Non Fed'!E43,0) -> 0 | L46: =SUM(J46:K46) -> 0 | M46: =ROUND(J46*(1+'Salary Inflation'!$C$33),0) -> 0 | N46: =ROUND(M46*'RATES-Non Fed'!G43,0) -> 0 | O46: =SUM(M46:N46) -> 0 | P46: =ROUND(M46*(1+'Salary Inflation'!$D$33),0) -> 0 | Q46: =ROUND(P46*'RATES-Non Fed'!I43,0) -> 0 | R46: =SUM(P46:Q46) -> 0 | S46: =ROUND(P46*(1+'Salary Inflation'!$E$33),0) -> 0 | T46: =ROUND(S46*'RATES-Non Fed'!K43,0) -> 0 | U46: =SUM(S46:T46) -> 0 | V46: =ROUND(S46*(1+'Salary Inflation'!$F$33),0) -> 0 | W46: =ROUND(V46*'RATES-Non Fed'!M43,0) -> 0 | X46: =SUM(V46:W46) -> 0 | Y46: =SUM(L46+O46+R46+U46+X46) -> 0
C47: Non-Exempt Staff (Bi-Weekly) | E47: 0 | F47: =SUM(52*E47/4.3333) -> 0 | G47: 0 | J47: =ROUND(($G47*(1+'Salary Inflation'!$B$33))*$E47,0) -> 0 | K47: =ROUND(J47*'RATES-Non Fed'!E41,0) -> 0 | L47: =SUM(J47:K47) -> 0 | M47: =ROUND(J47*(1+'Salary Inflation'!$C$33),0) -> 0 | N47: =ROUND(M47*'RATES-Non Fed'!G41,0) -> 0 | O47: =SUM(M47:N47) -> 0 | P47: =ROUND(M47*(1+'Salary Inflation'!$D$33),0) -> 0 | Q47: =ROUND(P47*'RATES-Non Fed'!I41,0) -> 0 | R47: =SUM(P47:Q47) -> 0 | S47: =ROUND(P47*(1+'Salary Inflation'!$E$33),0) -> 0 | T47: =ROUND(S47*'RATES-Non Fed'!K41,0) -> 0 | U47: =SUM(S47:T47) -> 0 | V47: =ROUND(S47*(1+'Salary Inflation'!$F$33),0) -> 0 | W47: =ROUND(V47*'RATES-Non Fed'!M41,0) -> 0 | X47: =SUM(V47:W47) -> 0 | Y47: =SUM(L47+O47+R47+U47+X47) -> 0
D48: Sub Totals | J48: =SUM(J19+J25+J41+J43+J44+J45+J46+J47) -> 0 | K48: 0 | L48: 0 | M48: 0 | N48: 0 | O48: 0 | P48: 0 | Q48: 0 | R48: 0 | S48: 0 | T48: 0 | U48: 0 | V48: 0 | W48: 0 | X48: 0 | Y48: =SUM(Y43:Y47) -> 0
A50: Total Salaries and Fringe Benefits : | J50: =SUM(J48+K48) -> 0 | M50: =SUM(M48+N48) -> 0 | P50: =SUM(P48+Q48) -> 0 | S50: =SUM(S48+T48) -> 0 | V50: =SUM(V48+W48) -> 0 | Y50: =SUM(J50+M50+P50+S50+V50) -> 0
A52: D. | B52: Equipment
C53: (list) | J53: 0 | M53: 0 | P53: 0 | S53: 0 | V53: 0 | Y53: =+J53+M53+P53+S53+V53 -> 0
C54: (list) | J54: 0 | M54: 0 | P54: 0 | S54: 0 | V54: 0 | Y54: =+J54+M54+P54+S54+V54 -> 0
C55: Total Equipment : | J55: =SUM(J53:J54) -> 0 | M55: =SUM(M53:M54) -> 0 | P55: =SUM(P53:P54) -> 0 | S55: =SUM(S53:S54) -> 0 | V55: =SUM(V53:V54) -> 0 | Y55: =SUM(Y53:Y54) -> 0
A57: E. | B57: Travel
C58: Domestic | D58: (list) | M58: =ROUND((J58*1.02),0) -> 0 | P58: =ROUND((M58*1.02),0) -> 0 | S58: =ROUND((P58*1.02),0) -> 0 | V58: =ROUND((S58*1.02),0) -> 0 | Y58: =+J58+M58+P58+S58+V58 -> 0
C59: International | D59: (list) | J59: 0 | M59: =ROUND((J59*1.02),0) -> 0 | P59: =ROUND((M59*1.02),0) -> 0 | S59: =ROUND((P59*1.02),0) -> 0 | V59: =ROUND((S59*1.02),0) -> 0 | Y59: =+J59+M59+P59+S59+V59 -> 0
C60: Total Travel : | J60: =SUM(J58:J59) -> 0 | M60: =SUM(M58:M59) -> 0 | P60: =SUM(P58:P59) -> 0 | S60: =SUM(S58:S59) -> 0 | V60: =SUM(V58:V59) -> 0 | Y60: =SUM(Y58:Y59) -> 0
A62: G. | B62: Supplies and Other Direct Costs
C63: Materials & Supplies | J63: 0 | M63: =ROUND((J63*1.02),0) -> 0 | P63: =ROUND((M63*1.02),0) -> 0 | S63: =ROUND((P63*1.02),0) -> 0 | V63: =ROUND((S63*1.02),0) -> 0 | Y63: =+J63+M63+P63+S63+V63 -> 0
C64: LAM | J64: 0 | M64: 0 | P64: 0 | S64: 0 | V64: 0 | Y64: 0
C65: Consultant Services | J65: 0 | M65: 0 | P65: 0 | S65: 0 | V65: 0 | Y65: 0
C66: Subject Incentives | J66: 0 | M66: 0 | P66: 0 | S66: 0 | V66: 0 | Y66: 0
C67: UC Tuition for Trainees/Fellows | J67: 0 | M67: 0 | P67: 0 | S67: 0 | V67: 0 | Y67: 0
C68: UC Tuition on Research Projects | J68: 0 | M68: 0 | P68: 0 | S68: 0 | V68: 0 | Y68: 0
C69: Lab Expenses | J69: 0 | M69: 0 | P69: 0 | S69: 0 | V69: 0 | Y69: 0
C70: Other (Analytical Services/Instrument Use) | J70: 0 | M70: 0 | P70: 0 | S70: 0 | V70: 0 | Y70: 0
C71: Subcontracts 1) | J71: 0 | M71: 0 | P71: 0 | S71: 0 | V71: 0 | Y71: 0
C72: 2) | J72: 0 | M72: 0 | P72: 0 | S72: 0 | V72: 0 | Y72: 0
C73: 3) | J73: 0 | M73: 0 | P73: 0 | S73: 0 | V73: 0 | Y73: 0
C74: 4) | J74: 0 | M74: 0 | P74: 0 | S74: 0 | V74: 0 | Y74: 0
A75: Total Supplies and Other Direct Costs : | J75: =SUM(J63:J74) -> 0 | M75: =SUM(M63:M74) -> 0 | P75: =SUM(P63:P74) -> 0 | S75: =SUM(S63:S74) -> 0 | V75: =SUM(V63:V74) -> 0 | Y75: =SUM(Y63:Y74) -> 0
E77: TOTAL DIRECT COSTS: | J77: =ROUND(+J75+J60+J55+J50,0) -> 0 | M77: =ROUND(+M75+M60+M55+M50,0) -> 0 | P77: =ROUND(+P75+P60+P55+P50,0) -> 0 | S77: =ROUND(+S75+S60+S55+S50,0) -> 0 | V77: =ROUND(+V75+V60+V55+V50,0) -> 0 | Y77: =+J77+M77+P77+S77+V77 -> 0
H79: Facilities and Administrative Cost Base: | J79: =J77 -> 0 | M79: =M77 -> 0 | P79: =P77 -> 0 | S79: =S77 -> 0 | V79: =V77 -> 0 | Y79: =+J79+M79+P79+S79+V79 -> 0
A80: Facilities and Administrative Costs Calculation:
A81: F&A Cost (on MTDC): | D81: =IF(AND(($E$88)="R",($E$90)="C"),('RATES-Non Fed'!E48),IF(AND(($E$88)="R",($E$90)="O"),('RATES-Non Fed'!E53),IF(AND(($E$88)="I",($E$90)="C"),('RATES-Non Fed'!E49),IF(AND(($E$88)="I",($E$90)="O"),('RATES-Non Fed'!E54),IF(AND(($E$88)="P",($E$90)="C"),('RATES-Non Fed'!E50),IF(AND(($E$88)="P",($E$90)="O"),('RATES-Non Fed'!E55),($E$89))))))) -> 0.62 | E81: =IF(AND(($E$88)="R",($E$90)="C"),('RATES-Non Fed'!G48),IF(AND(($E$88)="R",($E$90)="O"),('RATES-Non Fed'!G53),IF(AND(($E$88)="I",($E$90)="C"),('RATES-Non Fed'!G49),IF(AND(($E$88)="I",($E$90)="O"),('RATES-Non Fed'!G54),IF(AND(($E$88)="P",($E$90)="C"),('RATES-Non Fed'!G50),IF(AND(($E$88)="P",($E$90)="O"),('RATES-Non Fed'!G55),($E$89))))))) -> 0.62 | F81: =IF(AND(($E$88)="R",($E$90)="C"),('RATES-Non Fed'!I48),IF(AND(($E$88)="R",($E$90)="O"),('RATES-Non Fed'!I53),IF(AND(($E$88)="I",($E$90)="C"),('RATES-Non Fed'!I49),IF(AND(($E$88)="I",($E$90)="O"),('RATES-Non Fed'!I54),IF(AND(($E$88)="P",($E$90)="C"),('RATES-Non Fed'!I50),IF(AND(($E$88)="P",($E$90)="O"),('RATES-Non Fed'!I55),($E$89))))))) -> 0.62 | G81: =IF(AND(($E$88)="R",($E$90)="C"),('RATES-Non Fed'!K48),IF(AND(($E$88)="R",($E$90)="O"),('RATES-Non Fed'!K53),IF(AND(($E$88)="I",($E$90)="C"),('RATES-Non Fed'!K49),IF(AND(($E$88)="I",($E$90)="O"),('RATES-Non Fed'!K54),IF(AND(($E$88)="P",($E$90)="C"),('RATES-Non Fed'!K50),IF(AND(($E$88)="P",($E$90)="O"),('RATES-Non Fed'!K55),($E$89))))))) -> 0.62 | H81: =IF(AND(($E$88)="R",($E$90)="C"),('RATES-Non Fed'!I48),IF(AND(($E$88)="R",($E$90)="O"),('RATES-Non Fed'!I53),IF(AND(($E$88)="I",($E$90)="C"),('RATES-Non Fed'!I49),IF(AND(($E$88)="I",($E$90)="O"),('RATES-Non Fed'!I54),IF(AND(($E$88)="P",($E$90)="C"),('RATES-Non Fed'!I50),IF(AND(($E$88)="P",($E$90)="O"),('RATES-Non Fed'!I55),($E$89))))))) -> 0.62 | J81: =+J79*D81 -> 0 | M81: =+M79*E81 -> 0 | P81: =+P79*F81 -> 0 | S81: =+S79*G81 -> 0 | V81: =+V79*H81 -> 0 | Y81: =+J81+M81+P81+S81+V81 -> 0
A82: Total F&A Cost : | J82: =SUM(J81:J81) -> 0 | M82: =SUM(M81:M81) -> 0 | P82: =SUM(P81:P81) -> 0 | S82: =SUM(S81:S81) -> 0 | V82: =SUM(V81:V81) -> 0 | Y82: =SUM(Y81:Y81) -> 0
C84: Total Cost | J84: =J82+J77 -> 0 | M84: =M82+M77 -> 0 | P84: =P82+P77 -> 0 | S84: =S82+S77 -> 0 | V84: =V82+V77 -> 0 | Y84: =+J84+M84+P84+S84+V84 -> 0
C87: Facilities and Administrative Data
C88: Purpose of Grant / Contract : | E88: R | G88: (R = Research, I = Instruction, P = Public Service, S = Special Rate on Total Costs)
C89: Special F&A Rate : | E89: 0.1
C90: Campus Status : | E90: C | G90: (C = On Campus, O = Off Campus)
D92: Detailed F&A figures for prorated rates | H92: =IF(E88 = "R", 'RATES-Non Fed'!E31,IF(E88 = "I", 'RATES-Non Fed'!E32, IF(E88 = "P", 'RATES-Non Fed'!E33, ""))) -> 0.62 | J92: =J82/365*'RATES-Non Fed'!$C$48 -> 0 | L92: =IF(E88 = "R", 'RATES-Non Fed'!G31,IF(E88 = "I", 'RATES-Non Fed'!G32, IF(E88 = "P", 'RATES-Non Fed'!G33, ""))) -> 0.62 | M92: =M82/365*'RATES-Non Fed'!$C$48 -> 0 | O92: =IF(E88 = "R", 'RATES-Non Fed'!I31,IF(E88 = "I", 'RATES-Non Fed'!I32, IF(E88 = "P", 'RATES-Non Fed'!I33, ""))) -> 0.62 | P92: =P82/365*'RATES-Non Fed'!$C$48 -> 0 | R92: =IF(E88 = "R", 'RATES-Non Fed'!K31,IF(E88 = "I", 'RATES-Non Fed'!K32, IF(E88 = "P", 'RATES-Non Fed'!K33, ""))) -> 0.62 | S92: =S82/365*'RATES-Non Fed'!$C$48 -> 0 | T92: =IF(E88 = "R", 'RATES-Non Fed'!M31,IF(E88 = "I", 'RATES-Non Fed'!M32, IF(E88 = "P", 'RATES-Non Fed'!M33, ""))) -> 0.62 | U92: =U82/365*'RATES-Non Fed'!$C$48 -> 0
D93: *If both lines have the same rate, then just list as one line on forms. | H93: =IF(E88 = "R", 'RATES-Non Fed'!G31,IF(E88 = "I", 'RATES-Non Fed'!G32, IF(E88 = "P", 'RATES-Non Fed'!G33, ""))) -> 0.62 | J93: =J82/365*'RATES-Non Fed'!$D$48 -> 0 | L93: =IF(E88 = "R", 'RATES-Non Fed'!I31,IF(E88 = "I", 'RATES-Non Fed'!I32, IF(E88 = "P", 'RATES-Non Fed'!I33, ""))) -> 0.62 | M93: =M82/365*'RATES-Non Fed'!$D$48 -> 0 | O93: =IF(E88 = "R", 'RATES-Non Fed'!K31,IF(E88 = "I", 'RATES-Non Fed'!K32, IF(E88 = "P", 'RATES-Non Fed'!K33, ""))) -> 0.62 | P93: =P82/365*'RATES-Non Fed'!$D$48 -> 0 | R93: =IF(E88 = "R", 'RATES-Non Fed'!M31,IF(E88 = "I", 'RATES-Non Fed'!M32, IF(E88 = "P", 'RATES-Non Fed'!M33, ""))) -> 0.62 | S93: =S82/365*'RATES-Non Fed'!$D$48 -> 0 | T93: =IF(E88 = "R", 'RATES-Non Fed'!O31,IF(E88 = "I", 'RATES-Non Fed'!O32, IF(E88 = "P", 'RATES-Non Fed'!O33, ""))) -> 0.62 | U93: =U82/365*'RATES-Non Fed'!$D$48 -> 0
J94: =SUM(J92:J93) -> 0 | M94: =SUM(M92:M93) -> 0 | P94: =SUM(P92:P93) -> 0 | S94: =SUM(S92:S93) -> 0 | U94: =SUM(U92:U93) -> 0
B95: UCRI CONSULTANT COSTS
B96: If any faculty or staff will be working directly for UCRI as Consultants, please add those costs to the section below, rather than as UC Personnel above
J97: Year 1 | M97: Year 2 | P97: Year 3 | S97: Year 4 | V97: Year 5 | Y97: Cumulative
B98: Consultant Name | C98: Rate ($) | D98: Basis (hourly, daily, etc) | J98: Units | K98: Cost | M98: Units | N98: Cost | P98: Units | Q98: Cost | S98: Units | T98: Cost | V98: Units | W98: Cost
D99: hourly | J99: 0 | K99: =$C99*J99 -> 0 | M99: 0 | N99: =$C99*M99 -> 0 | P99: 0 | Q99: =$C99*P99 -> 0 | S99: 0 | T99: =$C99*S99 -> 0 | V99: 0 | W99: =$C99*V99 -> 0 | Y99: =K99+N99+Q99+T99+W99 -> 0
J100: 0 | K100: 0 | M100: 0 | N100: 0 | P100: 0 | Q100: 0 | S100: 0 | T100: 0 | V100: 0 | W100: 0 | Y100: =K100+N100+Q100+T100+W100 -> 0
J101: 0 | K101: 0 | M101: 0 | N101: 0 | P101: 0 | Q101: 0 | S101: 0 | T101: 0 | V101: 0 | W101: 0 | Y101: 0
J102: 0 | K102: 0 | M102: 0 | N102: 0 | P102: 0 | Q102: 0 | S102: 0 | T102: 0 | V102: 0 | W102: 0 | Y102: 0
J103: 0 | K103: 0 | M103: 0 | N103: 0 | P103: 0 | Q103: 0 | S103: 0 | T103: 0 | V103: 0 | W103: 0 | Y103: 0
J104: 0 | K104: 0 | M104: 0 | N104: 0 | P104: 0 | Q104: 0 | S104: 0 | T104: 0 | V104: 0 | W104: 0 | Y104: 0
B105: Total Consultant Cost (Remains with UCRI) | K105: =SUM(K99:K104) -> 0 | N105: =SUM(N99:N104) -> 0 | Q105: =SUM(Q99:Q104) -> 0 | T105: =SUM(T99:T104) -> 0 | W105: =SUM(W99:W104) -> 0 | Y105: 0
B106: F&A on Consultant Costs | K106: =K105*H92 -> 0 | N106: =N105*K92 -> 0 | Q106: =Q105*N92 -> 0 | T106: =T105*Q92 -> 0 | W106: =W105*T92 -> 0 | Y106: 0
B107: Total Costs Retained by UCRI | K107: =K105+K106 -> 0 | N107: =N105+N106 -> 0 | Q107: =Q105+Q106 -> 0 | T107: =T105+T106 -> 0 | W107: =W105+W106 -> 0 | Y107: 0
B108: All Direct Costs | J108: =K105+J77 -> 0 | M108: =N105+M77 -> 0 | P108: =Q105+P77 -> 0 | S108: =T105+S77 -> 0 | V108: =W105+V77 -> 0 | Y108: =J108+M108+P108+S108+V108 -> 0
B109: All F&A Costs | J109: =K106+J81 -> 0 | M109: =N106+M81 -> 0 | P109: =Q106+P81 -> 0 | S109: =T106+S81 -> 0 | V109: =W106+V81 -> 0 | Y109: =J109+M109+P109+S109+V109 -> 0
B110: Grand Total of All Costs - UC & UCRI | J110: =J108+J109 -> 0 | M110: =M108+M109 -> 0 | P110: =P108+P109 -> 0 | S110: =S108+S109 -> 0 | V110: =V108+V109 -> 0 | Y110: =J110+M110+P110+S110+V110 -> 0

Sheet RATES-Non Fed
B2: Budget Period : | E2: 2022-07-01 | G2: 2026-06-30
B3: Budget Initiation Date (TODAY'S DATE): | E3: 2022-04-06
E5: =X16 -> FY23 | G5: =Z16 -> FY24 | I5: =AB16 -> FY25 | K5: =AD16 -> FY26 | M5: =AF16 -> FY27 | O5: =AH16 -> FY28 | Q5: =AJ16 -> FY29
B6: Fringe Benefit Rates | E6: ="7/"&RIGHT(TEXT(W15,"0"),2)&"-6/"&RIGHT(E5,2) -> 7/22-6/23 | G6: ="7/"&RIGHT(E5,2)&"-6/"&RIGHT(G5,2) -> 7/23-6/24 | I6: ="7/"&RIGHT(G5,2)&"-6/"&RIGHT(I5,2) -> 7/24-6/25 | K6: ="7/"&RIGHT(I5,2)&"-6/"&RIGHT(K5,2) -> 7/25-6/26 | M6: ="7/"&RIGHT(K5,2)&"-6/"&RIGHT(M5,2) -> 7/26-6/27 | O6: ="7/"&RIGHT(M5,2)&"-6/"&RIGHT(O5,2) -> 7/27-6/28 | Q6: ="7/"&RIGHT(O5,2)&"-6/"&RIGHT(Q5,2) -> 7/28-6/29
B7: Faculty (AAUP) | E7: =HLOOKUP(E$5,$AM$13:$AW$19,2,FALSE) -> 0.278 | G7: =HLOOKUP(G$5,$AM$13:$AW$19,2,FALSE) -> 0.307 | I7: =HLOOKUP(I$5,$AM$13:$AW$19,2,FALSE) -> 0.302 | K7: =HLOOKUP(K$5,$AM$13:$AW$19,2,FALSE) -> 0.305 | M7: =HLOOKUP(M$5,$AM$13:$AW$19,2,FALSE) -> 0.308 | O7: =HLOOKUP(O$5,$AM$13:$AW$19,2,FALSE) -> 0.311 | Q7: =HLOOKUP(Q$5,$AM$13:$AW$19,2,FALSE) -> 0.314
B8: Exmpt Staff (Mnthly)/ | E8: =HLOOKUP(E$5,$AM$13:$AW$19,3,FALSE) -> 0.375 | G8: =HLOOKUP(G$5,$AM$13:$AW$19,3,FALSE) -> 0.405 | I8: =HLOOKUP(I$5,$AM$13:$AW$19,3,FALSE) -> 0.361 | K8: =HLOOKUP(K$5,$AM$13:$AW$19,3,FALSE) -> 0.364 | M8: =HLOOKUP(M$5,$AM$13:$AW$19,3,FALSE) -> 0.367 | O8: =HLOOKUP(O$5,$AM$13:$AW$19,3,FALSE) -> 0.37 | Q8: =HLOOKUP(Q$5,$AM$13:$AW$19,3,FALSE) -> 0.373
B9: Dual Comp Faculty | E9: =HLOOKUP(E$5,$AM$13:$AW$19,4,FALSE) -> 0.444 | G9: =HLOOKUP(G$5,$AM$13:$AW$19,4,FALSE) -> 0.457 | I9: =HLOOKUP(I$5,$AM$13:$AW$19,4,FALSE) -> 0.414 | K9: =HLOOKUP(K$5,$AM$13:$AW$19,4,FALSE) -> 0.417 | M9: =HLOOKUP(M$5,$AM$13:$AW$19,4,FALSE) -> 0.42 | O9: =HLOOKUP(O$5,$AM$13:$AW$19,4,FALSE) -> 0.423 | Q9: =HLOOKUP(Q$5,$AM$13:$AW$19,4,FALSE) -> 0.426
B10: NonExempt Staff (Bi-Weekly) | E10: =HLOOKUP(E$5,$AM$13:$AW$19,5,FALSE) -> 0.399 | G10: =HLOOKUP(G$5,$AM$13:$AW$19,5,FALSE) -> 0.437 | I10: =HLOOKUP(I$5,$AM$13:$AW$19,5,FALSE) -> 0.423 | K10: =HLOOKUP(K$5,$AM$13:$AW$19,5,FALSE) -> 0.426 | M10: =HLOOKUP(M$5,$AM$13:$AW$19,5,FALSE) -> 0.429 | O10: =HLOOKUP(O$5,$AM$13:$AW$19,5,FALSE) -> 0.432 | Q10: =HLOOKUP(Q$5,$AM$13:$AW$19,5,FALSE) -> 0.435
B11: Students (Grad and Undergrad) | E11: =HLOOKUP(E$5,$AM$13:$AW$19,6,FALSE) -> 0.092 | G11: =HLOOKUP(G$5,$AM$13:$AW$19,6,FALSE) -> 0.11 | I11: =HLOOKUP(I$5,$AM$13:$AW$19,6,FALSE) -> 0.087 | K11: =HLOOKUP(K$5,$AM$13:$AW$19,6,FALSE) -> 0.087 | M11: =HLOOKUP(M$5,$AM$13:$AW$19,6,FALSE) -> 0.087 | O11: =HLOOKUP(O$5,$AM$13:$AW$19,6,FALSE) -> 0.087 | Q11: =HLOOKUP(Q$5,$AM$13:$AW$19,6,FALSE) -> 0.087
B12: Part-Time Faculty (<65%)/Staff (<80%)/Post Doc | E12: =HLOOKUP(E$5,$AM$13:$AW$19,7,FALSE) -> 0.179 | G12: =HLOOKUP(G$5,$AM$13:$AW$19,7,FALSE) -> 0.2 | I12: =HLOOKUP(I$5,$AM$13:$AW$19,7,FALSE) -> 0.199 | K12: =HLOOKUP(K$5,$AM$13:$AW$19,7,FALSE) -> 0.202 | M12: =HLOOKUP(M$5,$AM$13:$AW$19,7,FALSE) -> 0.205 | O12: =HLOOKUP(O$5,$AM$13:$AW$19,7,FALSE) -> 0.208 | Q12: =HLOOKUP(Q$5,$AM$13:$AW$19,7,FALSE) -> 0.211 | AM12: Blue = Actual Red = Estimates
J13: ` | AL13: Rate Chart | AM13: FY23 | AN13: FY24 | AO13: FY25 | AP13: FY26 | AQ13: FY27 | AR13: FY28 | AS13: FY29 | AT13: FY30 | AU13: FY31 | AV13: FY32 | AW13: FY33
B14: Indirect Cost Rates (on Campus) | T14: =VALUE(U14)+2000 -> 2023 | U14: =RIGHT(E5,2) -> 23 | X14: Starting Year Calculation | AL14: Faculty (AAUP) | AM14: 0.278 | AN14: 0.307 | AO14: 0.302 | AP14: 0.305 | AQ14: 0.308 | AR14: 0.311 | AS14: 0.314 | AT14: 0.317 | AU14: 0.32 | AV14: 0.323 | AW14: 0.323
B15: Research Indirect Costs | E15: =HLOOKUP(E$5,$AM$13:$AW$23,9,FALSE) -> 0.62 | G15: =HLOOKUP(G$5,$AM$13:$AW$23,9,FALSE) -> 0.62 | I15: =HLOOKUP(I$5,$AM$13:$AW$23,9,FALSE) -> 0.62 | K15: =HLOOKUP(K$5,$AM$13:$AW$23,9,FALSE) -> 0.62 | M15: =HLOOKUP(M$5,$AM$13:$AW$23,9,FALSE) -> 0.62 | O15: =HLOOKUP(O$5,$AM$13:$AW$23,9,FALSE) -> 0.62 | Q15: =HLOOKUP(Q$5,$AM$13:$AW$23,9,FALSE) -> 0.62 | T15: =T14+1 -> 2024 | W15: =X15-1 -> 2022 | X15: =IF(MONTH(E2)>6,YEAR(E2)+1,YEAR(E2)) -> 2023 | Z15: =X15+1 -> 2024 | AB15: =Z15+1 -> 2025 | AD15: =AB15+1 -> 2026 | AF15: =AD15+1 -> 2027 | AH15: =AF15+1 -> 2028 | AJ15: =AH15+1 -> 2029 | AL15: Exmpt Staff (Mnthly)/ | AM15: 0.375 | AN15: 0.405 | AO15: 0.361 | AP15: 0.364 | AQ15: 0.367 | AR15: 0.37 | AS15: 0.373 | AT15: 0.376 | AU15: 0.379 | AV15: 0.382 | AW15: 0.382
B16: Instruction Indirect Costs | E16: =HLOOKUP(E$5,$AM$13:$AW$23,10,FALSE) -> 0.57 | G16: =HLOOKUP(G$5,$AM$13:$AW$23,10,FALSE) -> 0.57 | I16: =HLOOKUP(I$5,$AM$13:$AW$23,10,FALSE) -> 0.57 | K16: =HLOOKUP(K$5,$AM$13:$AW$23,10,FALSE) -> 0.57 | M16: =HLOOKUP(M$5,$AM$13:$AW$23,10,FALSE) -> 0.57 | O16: =HLOOKUP(O$5,$AM$13:$AW$23,10,FALSE) -> 0.57 | Q16: =HLOOKUP(Q$5,$AM$13:$AW$23,10,FALSE) -> 0.57 | T16: 2025 | X16: ="FY" & RIGHT(TEXT(X15,"0"),2) -> FY23 | Z16: ="FY" & RIGHT(TEXT(Z15,"0"),2) -> FY24 | AB16: ="FY" & RIGHT(TEXT(AB15,"0"),2) -> FY25 | AD16: ="FY" & RIGHT(TEXT(AD15,"0"),2) -> FY26 | AF16: ="FY" & RIGHT(TEXT(AF15,"0"),2) -> FY27 | AH16: ="FY" & RIGHT(TEXT(AH15,"0"),2) -> FY28 | AJ16: ="FY" & RIGHT(TEXT(AJ15,"0"),2) -> FY29 | AL16: Dual Comp Faculty | AM16: 0.444 | AN16: 0.457 | AO16: 0.414 | AP16: 0.417 | AQ16: 0.42 | AR16: 0.423 | AS16: 0.426 | AT16: 0.429 | AU16: 0.432 | AV16: 0.435 | AW16: 0.435
B17: Public Service Indirect Costs | E17: =HLOOKUP(E$5,$AM$13:$AW$23,11,FALSE) -> 0.31 | G17: =HLOOKUP(G$5,$AM$13:$AW$23,11,FALSE) -> 0.31 | I17: =HLOOKUP(I$5,$AM$13:$AW$23,11,FALSE) -> 0.31 | K17: =HLOOKUP(K$5,$AM$13:$AW$23,11,FALSE) -> 0.31 | M17: =HLOOKUP(M$5,$AM$13:$AW$23,11,FALSE) -> 0.31 | O17: =HLOOKUP(O$5,$AM$13:$AW$23,11,FALSE) -> 0.31 | Q17: =HLOOKUP(Q$5,$AM$13:$AW$23,11,FALSE) -> 0.31 | T17: 2026 | AL17: NonExempt Staff (Bi-Weekly) | AM17: 0.399 | AN17: 0.437 | AO17: 0.423 | AP17: 0.426 | AQ17: 0.429 | AR17: 0.432 | AS17: 0.435 | AT17: 0.438 | AU17: 0.441 | AV17: 0.444 | AW17: 0.444
T18: 2027 | AD18: Initiation Date FY | AL18: Students (Grad and Undergrad) | AM18: 0.092 | AN18: 0.11 | AO18: 0.087 | AP18: 0.087 | AQ18: 0.087 | AR18: 0.087 | AS18: 0.087 | AT18: 0.087 | AU18: 0.087 | AV18: 0.087 | AW18: 0.087
B19: Indirect Cost Rates (off Campus & for Sub-Contracts $25,000 or less) | T19: 2028 | AD19: =IF(MONTH(E3)>6,YEAR(E3)+1,YEAR(E3)) -> 2022 | AL19: Part-Time Faculty (<65%)/Staff (<80%)/Post Doc | AM19: 0.179 | AN19: 0.2 | AO19: 0.199 | AP19: 0.202 | AQ19: 0.205 | AR19: 0.208 | AS19: 0.211 | AT19: 0.214 | AU19: 0.217 | AV19: 0.22 | AW19: 0.22
B20: Research Indirect Costs | E20: 0.26 | G20: 0.26 | I20: 0.26 | K20: 0.26 | M20: 0.26 | O20: 0.26 | Q20: 0.26 | T20: 2029
B21: Instruction Indirect Costs | E21: 0.26 | G21: 0.26 | I21: 0.26 | K21: 0.26 | M21: 0.26 | O21: 0.26 | Q21: 0.26 | AL21: Research Indirect Costs | AM21: 0.62 | AN21: 0.62 | AO21: 0.62 | AP21: 0.62 | AQ21: 0.62 | AR21: 0.62 | AS21: 0.62 | AT21: 0.62 | AU21: 0.62 | AV21: 0.62 | AW21: 0.62
B22: Public Service Indirect Costs | E22: 0.26 | G22: 0.26 | I22: 0.26 | K22: 0.26 | M22: 0.26 | O22: 0.26 | Q22: 0.26 | AL22: Instruction Indirect Costs | AM22: 0.57 | AN22: 0.57 | AO22: 0.57 | AP22: 0.57 | AQ22: 0.57 | AR22: 0.57 | AS22: 0.57 | AT22: 0.57 | AU22: 0.57 | AV22: 0.57 | AW22: 0.57
AL23: Public Service Indirect Costs | AM23: 0.31 | AN23: 0.31 | AO23: 0.31 | AP23: 0.31 | AQ23: 0.31 | AR23: 0.31 | AS23: 0.31 | AT23: 0.31 | AU23: 0.31 | AV23: 0.31 | AW23: 0.31
B24: Fringe Benefit Base for Project Period | E24: Year 1 | G24: Year 2 | I24: Year 3 | K24: Year 4 | M24: Year 5 | O24: Year 6 | Q24: Year 7 | W24: Row Value
B25: Faculty (AAUP) | E25: =IF(X$15 < $T$20, HLOOKUP(X$16,$E$5:$Q$17,$W25,FALSE),$Q7+(0.005 * (X$15 - $T$20))) -> 0.278 | G25: =IF(Z$15 < $T$20, HLOOKUP(Z$16,$E$5:$Q$17,$W25,FALSE),$Q7+(0.005 * (Z$15 - $T$20))) -> 0.307 | I25: =IF(AB$15 < $T$20, HLOOKUP(AB$16,$E$5:$Q$17,$W25,FALSE),$Q7+(0.005 * (AB$15 - $T$20))) -> 0.302 | K25: =IF(AD$15 < $T$20, HLOOKUP(AD$16,$E$5:$Q$17,$W25,FALSE),$Q7+(0.005 * (AD$15 - $T$20))) -> 0.305 | M25: =IF(AF$15 < $T$20, HLOOKUP(AF$16,$E$5:$Q$17,$W25,FALSE),$Q7+(0.005 * (AF$15 - $T$20))) -> 0.308 | O25: =IF(AH$15 < $T$20, HLOOKUP(AH$16,$E$5:$Q$17,$W25,FALSE),$Q7+(0.005 * (AH$15 - $T$20))) -> 0.311 | Q25: =IF(AJ$15 < $T$20, HLOOKUP(AJ$16,$E$5:$Q$17,$W25,FALSE),$Q7+(0.005 * (AJ$15 - $T$20))) -> 0.314 | W25: 3
B26: Exmpt Staff (Mnthly)/Non-AAUP Faculty | E26: 0.375 | G26: 0.405 | I26: 0.361 | K26: 0.364 | M26: 0.367 | O26: 0.37 | Q26: 0.373 | W26: 4
B27: Dual Comp Faculty | E27: 0.444 | G27: 0.457 | I27: 0.414 | K27: 0.417 | M27: 0.42 | O27: 0.423 | Q27: 0.426 | W27: 5
B28: NonExempt Staff (Bi-Weekly) | E28: 0.399 | G28: 0.437 | I28: 0.423 | K28: 0.426 | M28: 0.429 | O28: 0.432 | Q28: 0.435 | W28: 6
B29: Students (Grad and Undergrad) | E29: 0.092 | G29: 0.11 | I29: 0.087 | K29: 0.087 | M29: 0.087 | O29: 0.087 | Q29: 0.087 | W29: 7
B30: Part-Time Faculty (<65%)/Staff (<80%)/Post Doc | E30: 0.179 | G30: 0.2 | I30: 0.199 | K30: 0.202 | M30: 0.205 | O30: 0.208 | Q30: 0.211 | W30: 8
B31: Research F&A | E31: =IF(X$15 < $T$20, HLOOKUP(X$16,$E$5:$Q$17,$W31,FALSE),$Q15) -> 0.62 | G31: =IF(Z$15 < $T$20, HLOOKUP(Z$16,$E$5:$Q$17,$W31,FALSE),$Q15) -> 0.62 | I31: =IF(AB$15 < $T$20, HLOOKUP(AB$16,$E$5:$Q$17,$W31,FALSE),$Q15) -> 0.62 | K31: =IF(AD$15 < $T$20, HLOOKUP(AD$16,$E$5:$Q$17,$W31,FALSE),$Q15) -> 0.62 | M31: =IF(AF$15 < $T$20, HLOOKUP(AF$16,$E$5:$Q$17,$W31,FALSE),$Q15) -> 0.62 | O31: =IF(AH$15 < $T$20, HLOOKUP(AH$16,$E$5:$Q$17,$W31,FALSE),$Q15) -> 0.62 | Q31: =IF(AJ$15 < $T$20, HLOOKUP(AJ$16,$E$5:$Q$17,$W31,FALSE),$Q15) -> 0.62 | W31: 11
B32: Instruction F&A | E32: =IF(X$15 < $T$20, HLOOKUP(X$16,$E$5:$Q$17,$W32,FALSE),$Q16) -> 0.57 | G32: =IF(Z$15 < $T$20, HLOOKUP(Z$16,$E$5:$Q$17,$W32,FALSE),$Q16) -> 0.57 | I32: =IF(AB$15 < $T$20, HLOOKUP(AB$16,$E$5:$Q$17,$W32,FALSE),$Q16) -> 0.57 | K32: =IF(AD$15 < $T$20, HLOOKUP(AD$16,$E$5:$Q$17,$W32,FALSE),$Q16) -> 0.57 | M32: =IF(AF$15 < $T$20, HLOOKUP(AF$16,$E$5:$Q$17,$W32,FALSE),$Q16) -> 0.57 | O32: =IF(AH$15 < $T$20, HLOOKUP(AH$16,$E$5:$Q$17,$W32,FALSE),$Q16) -> 0.57 | Q32: =IF(AJ$15 < $T$20, HLOOKUP(AJ$16,$E$5:$Q$17,$W32,FALSE),$Q16) -> 0.57 | W32: 12
B33: PS F&A | E33: =IF(X$15 < $T$20, HLOOKUP(X$16,$E$5:$Q$17,$W33,FALSE),$Q17) -> 0.31 | G33: =IF(Z$15 < $T$20, HLOOKUP(Z$16,$E$5:$Q$17,$W33,FALSE),$Q17) -> 0.31 | I33: =IF(AB$15 < $T$20, HLOOKUP(AB$16,$E$5:$Q$17,$W33,FALSE),$Q17) -> 0.31 | K33: =IF(AD$15 < $T$20, HLOOKUP(AD$16,$E$5:$Q$17,$W33,FALSE),$Q17) -> 0.31 | M33: =IF(AF$15 < $T$20, HLOOKUP(AF$16,$E$5:$Q$17,$W33,FALSE),$Q17) -> 0.31 | O33: =IF(AH$15 < $T$20, HLOOKUP(AH$16,$E$5:$Q$17,$W33,FALSE),$Q17) -> 0.31 | Q33: =IF(AJ$15 < $T$20, HLOOKUP(AJ$16,$E$5:$Q$17,$W33,FALSE),$Q17) -> 0.31 | W33: 13
B35: PRO-RATED RATES USED
B37: Fringe Benefit Rates | C37: weight | E37: YEAR 1 | G37: YEAR 2 | I37: YEAR 3 | K37: YEAR 4 | M37: YEAR 5 | O37: YEAR 6 | Q37: YEAR 7
B38: Faculty | C38: =IF(MONTH($E$2)<7,182-($E$2-DATE(YEAR($E$2),1,1)+1),365-($E$2-DATE(YEAR($E$2),7,1))) -> 365 | D38: =365-C38 -> 0 | E38: =((E25*$C38)+(G25*$D38))/365 -> 0.278 | G38: =((G25*$C38)+(I25*$D38))/365 -> 0.307 | I38: =((I25*$C38)+(K25*$D38))/365 -> 0.302 | K38: =((K25*$C38)+(M25*$D38))/365 -> 0.305 | M38: =((M25*$C38)+(O25*$D38))/365 -> 0.308 | O38: =((O25*$C38)+(Q25*$D38))/365 -> 0.311 | Q38: =((Q25*$C38)+((Q25+0.005)*$D38))/365 -> 0.314
B39: Exempt Staff (Monthly) | C39: =$C$38 -> 365 | D39: 0 | E39: =((E26*C39)+(G26*D39))/365 -> 0.375 | G39: 0.405 | I39: 0.361 | K39: 0.364 | M39: 0.367 | O39: 0.37 | Q39: 0.373
B40: Dual Comp Faculty | C40: =$C$38 -> 365 | D40: 0 | E40: =((E27*C40)+(G27*D40))/365 -> 0.444 | G40: 0.457 | I40: 0.414 | K40: 0.417 | M40: 0.42 | O40: 0.423 | Q40: 0.426
B41: NonExempt Staff (Bi-Weekly) | C41: =$C$38 -> 365 | D41: 0 | E41: =((E28*C41)+(G28*D41))/365 -> 0.399 | G41: 0.437 | I41: 0.423 | K41: 0.426 | M41: 0.429 | O41: 0.432 | Q41: 0.435
B42: Students (Grad and Undergrad) | C42: =$C$38 -> 365 | D42: 0 | E42: =((E29*C42)+(G29*D42))/365 -> 0.092 | G42: 0.11 | I42: 0.087 | K42: 0.087 | M42: 0.087 | O42: 0.087 | Q42: 0.087
B43: P-T Fac(<65%)/Staff(<80%)&Post Doc | C43: =$C$38 -> 365 | D43: 0 | E43: =((E30*C43)+(G30*D43))/365 -> 0.179 | G43: 0.2 | I43: 0.199 | K43: 0.202 | M43: 0.205 | O43: 0.208 | Q43: 0.211
B44: Faculty (ACAD) | C44: =IF($E$2-DATE(YEAR($E$2),1,1)+1 > 243, 499-($E$2-DATE(YEAR($E$2),1,1)+1),IF($E$2-DATE(YEAR($E$2),1,1)+1 > 181,255,IF($E$2-DATE(YEAR($E$2),1,1)+1 > 133, 0,134-($E$2-DATE(YEAR($E$2),1,1)+1)))) -> 255 | D44: =255-C44 -> 0 | E44: =((E25*$C44)+(G25*$D44))/255 -> 0.278 | G44: =((G25*$C44)+(I25*$D44))/255 -> 0.307 | I44: =((I25*$C44)+(K25*$D44))/255 -> 0.302 | K44: =((K25*$C44)+(M25*$D44))/255 -> 0.305 | M44: =((M25*$C44)+(O25*$D44))/255 -> 0.308 | O44: =((O25*$C44)+(Q25*$D44))/255 -> 0.311 | Q44: =((Q25*$C44)+((Q25+0.005)*$D44))/255 -> 0.314
B45: Faculty (SUMR) | C45: =IF($E$2-DATE(YEAR($E$2),1,1)+1 > 243,48,IF($E$2-DATE(YEAR($E$2),1,1)+1 > 181,292-($E$2-DATE(YEAR($E$2),1,1)+1),IF($E$2-DATE(YEAR($E$2),1,1)+1 > 133, 182-($E$2-DATE(YEAR($E$2),1,1)+1),48))) -> 110 | D45: =110-C45 -> 0 | E45: =((E25*$C45)+(G25*$D45))/110 -> 0.278 | G45: =((G25*$C45)+(I25*$D45))/110 -> 0.307 | I45: =((I25*$C45)+(K25*$D45))/110 -> 0.302 | K45: =((K25*$C45)+(M25*$D45))/110 -> 0.305 | M45: =((M25*$C45)+(O25*$D45))/110 -> 0.308 | O45: =((O25*$C45)+(Q25*$D45))/110 -> 0.311 | Q45: =((Q25*$C45)+((Q25+0.005)*$D45))/110 -> 0.314
B47: Indirect Cost Rates (on Campus)
B48: Research Indirect Costs | C48: =$C$38 -> 365 | D48: =365-C48 -> 0 | E48: =((E31*$C48)+(G31*$D48))/365 -> 0.62 | G48: =((G31*$C48)+(I31*$D48))/365 -> 0.62 | I48: =((I31*$C48)+(K31*$D48))/365 -> 0.62 | K48: =((K31*$C48)+(M31*$D48))/365 -> 0.62 | M48: =((M31*$C48)+(O31*$D48))/365 -> 0.62 | O48: =((O31*$C48)+(Q31*$D48))/365 -> 0.62 | Q48: =+O48 -> 0.62
B49: Instruction Indirect Costs | C49: =$C$38 -> 365 | D49: =365-C49 -> 0 | E49: =((E32*$C49)+(G32*$D49))/365 -> 0.57 | G49: =((G32*$C49)+(I32*$D49))/365 -> 0.57 | I49: =((I32*$C49)+(K32*$D49))/365 -> 0.57 | K49: =((K32*$C49)+(M32*$D49))/365 -> 0.57 | M49: =((M32*$C49)+(O32*$D49))/365 -> 0.57 | O49: =((O32*$C49)+(Q32*$D49))/365 -> 0.57 | Q49: =+O49 -> 0.57
B50: Public Service Indirect Costs | C50: =$C$38 -> 365 | D50: =365-C50 -> 0 | E50: =((E33*$C50)+(G33*$D50))/365 -> 0.31 | G50: =((G33*$C50)+(I33*$D50))/365 -> 0.31 | I50: =((I33*$C50)+(K33*$D50))/365 -> 0.31 | K50: =((K33*$C50)+(M33*$D50))/365 -> 0.31 | M50: =((M33*$C50)+(O33*$D50))/365 -> 0.31 | O50: =((O33*$C50)+(Q33*$D50))/365 -> 0.31 | Q50: =+O50 -> 0.31
B52: Indirect Cost Rates (off Campus)
B53: Research Indirect Costs | C53: =$C$38 -> 365 | D53: =365-C53 -> 0 | E53: 0.26 | G53: 0.26 | I53: 0.26 | K53: 0.26 | M53: 0.26 | O53: 0.26 | Q53: 0.26
B54: Instruction Indirect Costs | C54: =$C$38 -> 365 | D54: =365-C54 -> 0 | E54: 0.26 | G54: 0.26 | I54: 0.26 | K54: 0.26 | M54: 0.26 | O54: 0.26 | Q54: 0.26
B55: Public Service Indirect Costs | C55: =$C$38 -> 365 | D55: =365-C55 -> 0 | E55: 0.26 | G55: 0.26 | I55: 0.26 | K55: 0.26 | M55: 0.26 | O55: 0.26 | Q55: 0.26
N65: Last Revised:8/23/22

Sheet Salary Inflation
A1: Inflation Factors
A2: Employee Type | B2: Start Date | C2: FY | D2: Increase | F2: Year 1 Fiscal Year days | K2: ACAD/SUMR Days Per Month
A3: AAUP Faculty | B3: 2020-09-01 | C3: =IF(MONTH(B3)<7,YEAR(B3),YEAR(B3)+1) -> 2021 | D3: =IF('RATES-Non Fed'!$E$3>=B3,0,0.03) -> 0
A4: AAUP Faculty | B4: 2021-09-01 | C4: 2022 | D4: =IF('RATES-Non Fed'!$E$3>=B4,0,0.03) -> 0 | F4: Type | G4: FY | H4: Days | K4: Month | L4: ACAD | M4: SUMR | N4: Total
A5: AAUP Faculty | B5: 2022-09-01 | C5: 2023 | D5: 0.04 | F5: CAL | G5: =RIGHT('RATES-Non Fed'!E5,2)*1+2000 -> 2023 | H5: ='RATES-Non Fed'!C38 -> 365 | K5: 1 | L5: 31 | M5: 0 | N5: =L5+M5 -> 31
A6: AAUP Faculty | B6: 2023-09-01 | C6: 2024 | D6: =IF('RATES-Non Fed'!$E$3>=B6,0,0.03) -> 0.03 | F6: CAL | G6: =RIGHT('RATES-Non Fed'!G5,2)*1+2000 -> 2024 | H6: ='RATES-Non Fed'!D38 -> 0 | K6: 2 | L6: 28 | M6: 0 | N6: 28
A7: AAUP Faculty | B7: 2024-09-01 | C7: 2025 | D7: 0.0275 | F7: ACAD | G7: =RIGHT('RATES-Non Fed'!E5,2)*1+2000 -> 2023 | H7: ='RATES-Non Fed'!C44 -> 255 | K7: 3 | L7: 31 | M7: 0 | N7: 31
A8: AAUP Faculty | B8: 2025-09-01 | C8: 2026 | D8: =IF('RATES-Non Fed'!$E$3>=B8,0,0.03) -> 0.03 | F8: ACAD | G8: =RIGHT('RATES-Non Fed'!G5,2)*1+2000 -> 2024 | H8: ='RATES-Non Fed'!D44 -> 0 | K8: 4 | L8: 30 | M8: 0 | N8: 30
A9: AAUP Faculty | B9: 2026-09-01 | C9: 2027 | D9: =IF('RATES-Non Fed'!$E$3>=B9,0,0.03) -> 0.03 | F9: SUMR | G9: =RIGHT('RATES-Non Fed'!E5,2)*1+2000 -> 2023 | H9: ='RATES-Non Fed'!C45 -> 110 | K9: 5 | L9: 13 | M9: 18 | N9: 31
A10: AAUP Faculty | B10: 2027-09-01 | C10: 2028 | D10: =IF('RATES-Non Fed'!$E$3>=B10,0,0.03) -> 0.03 | F10: SUMR | G10: =RIGHT('RATES-Non Fed'!G5,2)*1+2000 -> 2024 | H10: ='RATES-Non Fed'!D45 -> 0 | K10: 6 | L10: 0 | M10: 30 | N10: 30
A11: Staff/Students | B11: 2021-07-01 | C11: 2022 | D11: =IF('RATES-Non Fed'!$E$3>=B11,0,0.02) -> 0 | F11: Ex Staff | G11: =RIGHT('RATES-Non Fed'!E5,2)*1+2000 -> 2023 | H11: ='RATES-Non Fed'!C39 -> 365 | K11: 7 | L11: 0 | M11: 31 | N11: 31
A12: Staff/Students | B12: 2022-07-01 | C12: 2023 | D12: 0.03 | F12: Ex Staff | G12: =RIGHT('RATES-Non Fed'!G5,2)*1+2000 -> 2024 | H12: ='RATES-Non Fed'!D39 -> 0 | K12: 8 | L12: 0 | M12: 31 | N12: 31
A13: Staff/Students | B13: 2023-07-01 | C13: 2024 | D13: 0.03 | F13: Dual Comp | G13: =RIGHT('RATES-Non Fed'!E5,2)*1+2000 -> 2023 | H13: ='RATES-Non Fed'!C40 -> 365 | K13: 9 | L13: 30 | M13: 0 | N13: 30
A14: Staff/Students | B14: 2024-07-01 | C14: 2025 | D14: 0.02 | F14: Dual Comp | G14: =RIGHT('RATES-Non Fed'!G5,2)*1+2000 -> 2024 | H14: ='RATES-Non Fed'!D40 -> 0 | K14: 10 | L14: 31 | M14: 0 | N14: 31
A15: Staff/Students | B15: 2025-07-01 | C15: 2026 | D15: =IF('RATES-Non Fed'!$E$3>=B15,0,0.02) -> 0.02 | K15: 11 | L15: 30 | M15: 0 | N15: 30
A16: Staff/Students | B16: 2026-07-01 | C16: 2027 | D16: =IF('RATES-Non Fed'!$E$3>=B16,0,0.02) -> 0.02 | K16: 12 | L16: 31 | M16: 0 | N16: 31
A17: Staff/Students | B17: 2027-07-01 | C17: 2028 | D17: =IF('RATES-Non Fed'!$E$3>=B17,0,0.02) -> 0.02 | K17: Total | L17: =SUM(L5:L16) -> 255 | M17: =SUM(M5:M16) -> 110 | N17: =SUM(N5:N16) -> 365
A18: Dual Comp Faculty | B18: 2021-07-01 | C18: 2022 | D18: =IF('RATES-Non Fed'!$E$3>=B18,0,0.02) -> 0
A19: Dual Comp Faculty | B19: 2022-07-01 | C19: 2023 | D19: 0.03
A20: Dual Comp Faculty | B20: 2023-07-01 | C20: 2024 | D20: 0.03
A21: Dual Comp Faculty | B21: 2024-07-01 | C21: 2025 | D21: =IF('RATES-Non Fed'!$E$3>=B21,0,0.02) -> 0.02
A22: Dual Comp Faculty | B22: 2025-07-01 | C22: 2026 | D22: =IF('RATES-Non Fed'!$E$3>=B22,0,0.02) -> 0.02
A23: Dual Comp Faculty | B23: 2026-07-01 | C23: 2027 | D23: =IF('RATES-Non Fed'!$E$3>=B23,0,0.02) -> 0.02
A24: Dual Comp Faculty | B24: 2027-07-01 | C24: 2028 | D24: =IF('RATES-Non Fed'!$E$3>=B24,0,0.02) -> 0.02
A29: EE Type | B29: Year 1 Inc | C29: Year 2 Inc | D29: Year 3 Inc | E29: Year 4 Inc | F29: Year 5 Inc
A30: CAL Faculty | B30: =IF('RATES-Non Fed'!$X$15-'RATES-Non Fed'!$AD$19>1,(1+N41+N42)*(1.03^('RATES-Non Fed'!$X$15-'RATES-Non Fed'!$AD$19-1))-1,N41+N42) -> 0.03333333333 | C30: =(VLOOKUP((G5+1),$C$4:$D$10,2,FALSE)*H11+VLOOKUP((G6+1),$C$4:$D$10,2,FALSE)*H12)/365 -> 0.03 | D30: =C30 -> 0.03 | E30: 0.03 | F30: 0.03
A31: ACAD Faculty | B31: =IF('RATES-Non Fed'!$X$15-'RATES-Non Fed'!$AD$19>1,(1+N41)*(1.03^('RATES-Non Fed'!$X$15-'RATES-Non Fed'!$AD$19-1))-1,O41) -> 0.04 | C31: =(VLOOKUP((G7+1),$C$4:$D$10,2,FALSE)*H12+VLOOKUP((G8+1),$C$4:$D$10,2,FALSE)*H13)/365 -> 0.0275 | D31: 0.0275 | E31: 0.0275 | F31: 0.0275
A32: SUMR Faculty | B32: =IF('RATES-Non Fed'!$X$15-'RATES-Non Fed'!$AD$19>1,(1+N42)*(1.03^('RATES-Non Fed'!$X$15-'RATES-Non Fed'!$AD$19-1))-1,O42) -> 0.0177 | C32: =(VLOOKUP((G9+1),$C$4:$D$10,2,FALSE)*H13+VLOOKUP((G10+1),$C$4:$D$10,2,FALSE)*H14)/365 -> 0.03 | D32: 0.03 | E32: 0.03 | F32: 0.03
A33: Staff/Students | B33: =IF('RATES-Non Fed'!$X$15-'RATES-Non Fed'!$AD$19>1,(1+$O$43)*(1.02^('RATES-Non Fed'!$X$15-'RATES-Non Fed'!$AD$19-1))-1,$O$43) -> 0.03 | C33: =(VLOOKUP((G11+1),$C$11:$D$17,2,FALSE)*H11+VLOOKUP((G12+1),$C$11:$D$17,2,FALSE)*H12)/365 -> 0.03 | D33: 0.03 | E33: 0.03 | F33: 0.03
A34: Dual Comp Fac | B34: =IF('RATES-Non Fed'!$X$15-'RATES-Non Fed'!$AD$19>1,(1+$O$44)*(1.02^('RATES-Non Fed'!$X$15-'RATES-Non Fed'!$AD$19-1))-1,$O$44) -> 0.03 | C34: =(VLOOKUP((G13+1),$C$11:$D$17,2,FALSE)*H11+VLOOKUP((G14+1),$C$11:$D$17,2,FALSE)*H12)/365 -> 0.03 | D34: 0.03 | E34: 0.03 | F34: 0.03
A38: ACAD/SUMR Increases
A39: Date - Y1 | B39: 2022-07-01 | C39: =IF(MONTH(B39)=12,DATE(YEAR(B39)+1,1,1),DATE(YEAR(B39),MONTH(B39)+1,1)) -> 2022-08-01 | D39: 2022-09-01 | E39: 2022-10-01 | F39: 2022-11-01 | G39: 2022-12-01 | H39: 2023-01-01 | I39: 2023-02-01 | J39: 2023-03-01 | K39: 2023-04-01 | L39: 2023-05-01 | M39: 2023-06-01
A40: FY | B40: =IF(MONTH(B39)>6,YEAR(B39)+1,YEAR(B39)) -> 2023 | C40: 2023 | D40: 2023 | E40: 2023 | F40: 2023 | G40: 2023 | H40: 2023 | I40: 2023 | J40: 2023 | K40: 2023 | L40: 2023 | M40: 2023 | N40: NAV of Inc | O40: Value
A41: ACAD Inc | B41: =IF(MONTH(B$39)<5,VLOOKUP(B$39,$B$3:$D$10,3,TRUE),IF(MONTH(B$39)=5,VLOOKUP(B$39,$B$3:$D$10,3,TRUE)*13/31,IF(MONTH(B$39)<9,0,VLOOKUP(B$39,$B$3:$D$10,3,TRUE))))+B47 -> 0 | C41: =IF(MONTH(C$39)<5,VLOOKUP(C$39,$B$3:$D$10,3,TRUE),IF(MONTH(C$39)=5,VLOOKUP(C$39,$B$3:$D$10,3,TRUE)*13/31,IF(MONTH(C$39)<9,0,VLOOKUP(C$39,$B$3:$D$10,3,TRUE))))+IF(MONTH(C$39)<5,C$47,IF(MONTH(C$39)=5,C$47*13/31,IF(MONTH(C$39)<9,0,C$47))) -> 0 | D41: 0.04 | E41: 0.04 | F41: 0.04 | G41: 0.04 | H41: 0.04 | I41: 0.04 | J41: 0.04 | K41: 0.04 | L41: 0.01677419355 | M41: 0 | N41: =SUM(B41:M41)/12 -> 0.02806451613 | O41: =ROUND((1/0.702)*N41,4) -> 0.04
A42: SUMR Inc | B42: =IF(MONTH(B$39)<5,0,IF(MONTH(B$39)=5,VLOOKUP(B$39,$B$3:$D$10,3,TRUE)*18/31,IF(MONTH(B$39)<9,VLOOKUP(B$39,$B$3:$D$10,3,TRUE),0))) -> 0 | C42: =IF(MONTH(C$39)<5,0,IF(MONTH(C$39)=5,VLOOKUP(C$39,$B$3:$D$10,3,TRUE)*18/31,IF(MONTH(C$39)<9,VLOOKUP(C$39,$B$3:$D$10,3,TRUE),0)))+IF(MONTH(C$39)<5,0,IF(MONTH(C$39)=5,C$47*18/31,IF(MONTH(C$39)<9,C$47,0))) -> 0 | D42: 0 | E42: 0 | F42: 0 | G42: 0 | H42: 0 | I42: 0 | J42: 0 | K42: 0 | L42: 0.02322580645 | M42: 0.04 | N42: =SUM(B42:M42)/12 -> 0.005268817204 | O42: =ROUND((1/0.298)*N42,4) -> 0.0177
A43: Staff/Stu Inc | B43: =VLOOKUP(B$39,$B$11:$D$17,3,TRUE)*VLOOKUP(MONTH(B$39),$K$5:$N$16,4,FALSE)/365 -> 0.002547945205 | C43: =(VLOOKUP(C$39,$B$11:$D$17,3,TRUE)*VLOOKUP(MONTH(C$39),$K$5:$N$16,4,FALSE)/365)+C48 -> 0.002547945205 | D43: 0.002465753425 | E43: 0.002547945205 | F43: 0.002465753425 | G43: 0.002547945205 | H43: 0.002547945205 | I43: 0.002301369863 | J43: 0.002547945205 | K43: 0.002465753425 | L43: 0.002547945205 | M43: 0.002465753425 | O43: =ROUND(SUM(B43:M43),4) -> 0.03
A44: Dual Comp Inc | B44: =VLOOKUP(B$39,$B$18:$D$24,3,TRUE)*VLOOKUP(MONTH(B$39),$K$5:$N$16,4,FALSE)/365 -> 0.002547945205 | C44: =(VLOOKUP(C$39,$B$11:$D$17,3,TRUE)*VLOOKUP(MONTH(C$39),$K$5:$N$16,4,FALSE)/365)+C49 -> 0.002547945205 | D44: 0.002465753425 | E44: 0.002547945205 | F44: 0.002465753425 | G44: 0.002547945205 | H44: 0.002547945205 | I44: 0.002301369863 | J44: 0.002547945205 | K44: 0.002465753425 | L44: 0.002547945205 | M44: 0.002465753425 | O44: =ROUND(SUM(B44:M44),4) -> 0.03
A47: Faculty Kicker | C47: =IF(MONTH(C$39)=9,B42,0)+B47 -> 0 | D47: 0 | E47: 0 | F47: 0 | G47: 0 | H47: 0 | I47: 0 | J47: 0 | K47: 0 | L47: 0 | M47: 0
A48: Staff Kicker | C48: =IF(MONTH(C$39)=7,B43,0)+B48 -> 0 | D48: 0 | E48: 0 | F48: 0 | G48: 0 | H48: 0 | I48: 0 | J48: 0 | K48: 0 | L48: 0 | M48: 0
A49: Dual Comp Kicker | C49: =IF(MONTH(C$39)=7,B44,0)+B49 -> 0 | D49: 0 | E49: 0 | F49: 0 | G49: 0 | H49: 0 | I49: 0 | J49: 0 | K49: 0 | L49: 0 | M49: 0

Sheet A323 Form
A1: UCRI Grant Set-up & Budget Form - Single Grant | E1: Revised 7/1/22
A3: Date Sent to SRS: | C3: SRS completes green fields and blue fields automatically populate
A4: Date Returned: | C4: Departments complete fields indicated in yellow as needed.
A5: Data Entry Date:
A7: Grant Number: | D7: UCRI F&A Rate: | E7: 0.186
A8: Grant Fund: | B8: G700013 | D8: UC F&A Rate: | E8: 0.124
A9: Grant Name: | B9: UCRI + Contract # | I9: Research FA 1 | J9: Service FA 2
A10: Grant Description: | B10: UCRI + Contract # + Description | I10: 0.62 | J10: 0.31
G11: Overall Split
A12: Start Date: | B12: 2022-07-01 | G12: UCRI | H12: 0.6 | I12: =+H12*I10 -> 0.372 | J12: =+H12*J10 -> 0.186
A13: End Date: | B13: 2026-06-30 | D13: UC Previous Budget: | G13: UC Dept | H13: 0.4 | I13: =+I10*H13 -> 0.248 | J13: =+H13*J10 -> 0.124
A14: PI M Number: | D14: UC Budget This Action: | I14: =SUM(I12:I13) -> 0.62 | J14: =SUM(J12:J13) -> 0.31
A15: Cost Center: | D15: UC Cumulative Budget: | E15: =E13+E14 -> 0
A16: College D Fund / Rate: | B16: D
A17: College D Fund / Rate: | B17: D
A18: College D Fund / Rate: | B18: D
A19: College D Fund / Rate:
A20: Sp.Prog/Func. Area: | B20: 2 | D20: UC Direct Budget: | E20: =D74 -> 0
A21: Rebudgeting Restrictions: | B21: No | D21: UC F&A Budget: | E21: =D75 -> 0
A23: UCRI budget will not be entered into SAP
A24: UCRI Budget | D24: US Dollar | E24: UCRI Budget will not be entered into SAP. This portion is to calculate the total award budget. If there are no direct expenses at UCRI, you will still enter UCRI F&A in D27 and D28 (UCRI F&A Exp and F&A Exp 2).
A25: Direct Budget
C26: UCRI Direct Expense Budget / F&A Base: | D26: =SUM(D25:D25) -> 0
C27: UCRI F&A Expense: | D27: =D26*(E7+E8)+D55*E7 -> 0
C28: UCRI F&A EXPENSE 2 (adjustments):
A30: UC budget will be entered into SAP
A31: Select Sponsored Classes from dropdown list.
A32: F&A Relevant Sponsored Classes | C32: Func Area | E32: Comments (Such as GLs for Other Direct Expense & Workshops or helpful notes) | G32: For SRS GA Budget Screen:
A33: Acad Full Time Sal | C33: =$B$20 -> 2 | D33: 0 | F33: =IF(A33="","",1) -> 1 | G33: Funds Center | H33: Func. Area | I33: Distribution Key
A34: Unrep Adm & Supp Sal | C34: 2 | D34: 0 | F34: 1 | G34: =B15 -> 0 | H34: =B20 -> 2 | I34: ="Z"&IF('For Equations'!A2>6, 'For Equations'!A2-6, 'For Equations'!A2+6) -> Z7
A35: Graduate Assistants | C35: 2 | D35: 0 | F35: 1 | G35: SRS-AD GA: Be sure to enter today's date in the 'Data Entry Date' field (cell B5) to get the Distribution Key above to the correct value","")
A36: Consultants | C36: 2 | D36: 0 | F36: 1
A37: Fringe Benefits | C37: 2 | D37: 0 | F37: 1
A38: Travel | C38: 2 | D38: 0 | F38: 1
A39: Educational Material | C39: 2 | F39: 1
A40: Postage & Delivery | C40: 2 | F40: 1
A41: Publications | C41: 2 | F41: 1
A42: Post Doctoral Fellow | C42: 2 | D42: 0 | F42: 1
A43: AAUP Other Comp | C43: 2 | D43: 0 | F43: 1
A44: [Enter Sponsored Class for Materials & Supplies] | C44: 2 | D44: 0 | F44: 1
A45: Lab Expenses | C45: 2 | D45: 0 | F45: 1
A46: [Enter Sponsored Class for Other (Analytical Services/Instrument Use)] | C46: 2 | D46: 0 | F46: 1
A47: [Enter SubCon-IDC Relevant or Subcon-Not IDC Rlvnt] | D47: 0
A48: Student Wages Hourly | C48: 2 | D48: 0 | F48: 1
A49: [Enter Sponsored Class for Part-time Faculty/Staff] | C49: 2 | D49: 0 | F49: 1
A50: [Enter Sponsored Class for Non-Exempt Staff] | C50: 2 | D50: 0 | F50: 1
A51: Travel-Foreign | C51: 2 | D51: 0 | F51: 1
A52: Lab Animal Medicine | C52: 2 | D52: 0 | F52: 1
A53: Subject Incentives | C53: 2 | D53: 0 | F53: 1
C54: 2
C55: Direct Expense Budget / F&A Base: | D55: =SUM(D33:D54) -> 0 | E55: Direct Expense should match UC Direct Exp Budget on PAF
C56: F&A Expense (enter amount for multiple F&A rates): | D56: =D55*E8 -> 0 | E56: Indirect Expense should match UC Indirect Exp Budget on PAF
C57: F&A EXPENSE 2 (rounding adjustment): | E57: Use D50 (F&A Exp 2) to adj UC F&A to match UC budget on PAF
A59: F&A Exempt Sponsored Classes *
A60: Equipment 5000+ | C60: =$B$20 -> 2 | D60: 0 | F60: =IF(A60="In State Tuit Frg","Select Catalyst Action from dropdown in Cell F"&ROW(),"") ->  | K60: =IF(A60="","",1) -> 1
A61: Tuition | C61: =$B$20 -> 2 | D61: 0 | F61: =IF(A61="In State Tuit Frg","Select Catalyst Action from dropdown in Cell F"&ROW(),"") ->  | K61: =IF(A61="","",1) -> 1
C62: =$B$20 -> 2 | F62: =IF(A62="In State Tuit Frg","Select Catalyst Action from dropdown in Cell F"&ROW(),"") ->  | K62: =IF(A62="","",1) -> 
C63: Expense/Rev. Budget (Non-Scholarship): | D63: =SUM(D55:D57,D60:D62) -> 0
A65: Tuition, Stipends, Academic Travel Trainee only. Enter In-State Tuition Fringe in the F&A Exempt section.
A66: Sponsored Program: Scholarship/Fellow
A67: Tuition | C67: 7 | F67: =IF(D67="","",1) -> 
A68: Resident/Trainee Stipends | C68: 7 | F68: =IF(D68="","",1) -> 
A69: Travel-Trainee (Academic) | C69: 7 | F69: =IF(D69="","",1) -> 
B70: F&A on Stipend/Travel (Rate or Amount): | C70: =E7 -> 0.186 | D70: =SUM(D68:D69)*C70 -> 0
C71: Expense/Rev. Budget (Scholarship): | D71: =SUM(D67:D70) -> 0
E73: Document Numbers
C74: UC TOTAL DIRECT EXPENSE BUDGET: | D74: =D55+SUM(D60:D62)+SUM(D67:D69) -> 0
C75: UC F&A (INDIRECT COST) BUDGET: | D75: =+D56+D57+D70 -> 0
C76: UC TOTAL GRANT EXPENSE BUDGET: | D76: =SUM(D74:D75) -> 0
C78: UCRI & UC TOTAL DIRECT EXPENSE BUDGET: | D78: =D26+D74 -> 0
C79: UCRI & UC F&A (INDIRECT COST) BUDGET: | D79: =D27+D28+D56+D57+D70 -> 0
C80: UCRI & UC TOTAL GRANT EXPENSE BUDGET: | D80: =D78+D79 -> 0
B82: Revenue budget equals expense budget for each Sponsored Program

Sheet NIH sal cap info
E1: Effective Dates | G1: NIH Annual Limitation | H1: Limitation Based on 9 Month Appt. | I1: Recess Cap
A2: DHHS Salary Caps
E3: o October 1, 1998 through December 31, 1999 | G3: 125900 | H3: 77476.92308 | I3: 33896.15385
A4: NIH1 | C4: 62.6 | E4: o January 1, 2000 and beyond | G4: 130200 | H4: 80123.07692 | I4: 35053.84615
E6: FY 2000 Awards (Executive Level II)
A7: NIH2 | C7: 65.72 | E7: o October 1, 1999 through December 31, 1999 | G7: 136700 | H7: 84123.07692 | I7: 36803.84615
A8: NIH3 | C8: 67.93 | E8: o January 1, 2000 and beyond | G8: 141300 | H8: 86953.84615 | I8: 38042.30769
A9: NIH4 | C9: 69.76
E10: FY 2001 Awards (Executive Level I)
A11: NIH5 | C11: 75.48 | E11: o October 1, 2000 through December 31, 2000 | G11: 157000 | H11: 96615.38462 | I11: 42269.23077
A12: NIH6 | C12: 77.5 | E12: o January 1, 2001 though December 31, 2001 | G12: 161200 | H12: 99200 | I12: 43400
A13: NIH7 | C13: 80.14 | E13: o January 1, 2002 through December 31, 2002 | G13: 166700 | H13: 102584.6154 | I13: 44880.76923
A14: NIH8 | C14: 82.64 | E14: o January 1, 2003 through December 31, 2003 | G14: 171900 | H14: 105784.6154 | I14: 46280.76923
A15: NIH9 | C15: 83.89 | E15: o January 1, 2004 - March 3, 2004 | G15: 174500 | H15: 107384.6154 | I15: 46980.76923
A16: NIH9 | C16: 84.47 | E16: o March 2, 2004 through December 31, 2004 | G16: 175700 | H16: 108123.0769 | I16: 47303.84615
A18: NIH10 | C18: 86.59 | E18: o January 1, 2005 and beyond | G18: 180100 | H18: 110830.7692 | I18: 48488.46154
A19: NIH11 | C19: 88.22 | E19: o January 1, 2006 and beyond | G19: 183500 | H19: 112923.0769 | I19: 49403.84615
A20: NIH12 | C20: 89.71 | E20: o January 1, 2007 and beyond | G20: 186600 | H20: 114830.7692 | I20: 50238.46154
C21: 91.97 | E21: o January 1, 2008 to December 31, 2008 | G21: 191300 | H21: =G21*0.615384615384615 -> 117723.0769 | I21: =+H21*0.4375 -> 51503.84615
C22: 94.57 | E22: o January 1, 2009 to December 31, 2009 | G22: 196700 | H22: 121046.1538 | I22: 52957.69231
C23: 96.01 | E23: o January 1, 2010 to December 23, 2011 | G23: 199700 | H23: 122892.3077 | I23: 53765.38462
C24: 86.39 | E24: o December 24, 2011 to January 11, 2014 | G24: 179700 | H24: 110584.6154 | I24: 48380.76923
C25: 87.26 | E25: o January 12, 2014 to January 10, 2015 | G25: 181500 | H25: 111692.3077 | I25: 48865.38462
C26: =SUM((G26/52)/40) -> 88.125 | E26: o January 11, 2015 to January 09, 2016 | G26: 183300 | H26: 112800 | I26: 49350
C27: 89.90384615 | E27: o January 8, 2017 to January 6, 2018 | G27: 187000 | H27: 115076.9231 | I27: 50346.15385
C28: 91.15384615 | E28: o January 7, 2018 and January 5, 2019 | G28: 189600 | H28: 116676.9231 | I28: 51046.15385
C29: 92.45192308 | E29: o January 6, 2019 to January 4, 2020 | G29: 192300 | H29: 118338.4615 | I29: 51773.07692
C30: 94.85576923 | E30: o January 5, 2020 to January 2, 2021 | G30: 197300 | H30: 121415.3846 | I30: 53119.23077
C31: 95.81730769 | E31: o January 3, 2021 and Beyond | G31: 199300 | H31: 122646.1538 | I31: 53657.69231
A33: The typical appointment for non-Medical College faculty is 32 weeks, usually referred to as "9 month" or "academic year". Per the AAUP agreement they may also earn an additional 14 weeks of salary during their recess period, typically the summer quarter. | G33: Academic and Recess cap together | I33: =H31+I31 -> 176303.8462
A37: Enter 32 week salary base here
C39: recess period base | D39: =D37/33*14 -> 0 | H39: Last Revised: 5/7/21

Sheet PM Conversion Chart
H1: Percent of Time & Effort to Person Months (PM)
H2: Interactive Conversion Table for the University of Cincinnati
A6: EXC | D6: 9 Month | G6: 12 Month
A7: Recess | D7: Academic Year | G7: Calendar Year
A9: % effort | B9: PM | D9: % effort | E9: PM | G9: % effort | H9: PM
A11: 1 | B11: =15.65*A11/4.3333 -> 3.611566243 | D11: =A11 -> 1 | E11: =36.35*D11/4.3333 -> 8.388526066 | G11: =A11 -> 1 | H11: =52*G11/4.3333 -> 12.00009231
A14: Instructions:
A16: To use the chart simply insert the percent effort that you want to convert into the -0- of the Recess % effort line and
A17: hit enter. The person month 9 and 12 will be displayed simultaneously.

Sheet Ref
B1: Please DO NOT change any information on this sheet.
C9: ACAD | D9: Academic | F9: hourly
C10: CAL | D10: Calendar | F10: daily
F11: other

Sheet Sheet2

Sheet Sheet1 (hidden)
A1: Yes
A2: No

Sheet Multi Budget Sheet (hidden)
A1: A323 Streamlined Budget Form Multiple Grants | K1: *Insert | M1: =+'A323 Form'!E1 -> Revised 7/1/22
A3: Date Sent: | C3: SRS completes green fields and blue fields automatically populate
A4: Date Returned: | C4: Departments complete fields indicated in yellow as needed.
A5: Data Entry Date:
A7: Primary Grant Number: | E7: UC F&A Rate: | H7: Departments:
A8: Grant Fund:
A9: Grant Name: | H9: Please remember to check for Salary caps!
A10: Grant Description: | H10: (DHHS, DOJ, etc.)
A12: Start Date:
A13: End Date: | E13: All Previous Budgets: | F13: =D60 -> 0
A14: PI M Number: | E14: This Action: | F14: =D61 -> 0
A15: Cost Center: | E15: Cumulative All Budgets: | F15: =F13+F14 -> 0
A16: College D Fund:
A17: Sp.Prog/Func. Area: | E17: Direct Budget: | F17: =D53 -> 0
E18: F&A Budget: | F18: =D54 -> 0
A19: Select Sponsored Classes from dropdown list.
D20: Grant Number | F20: 10xxxxx | G20: 10xxxxx | H20: 10xxxxx | I20: 10xxxxx | J20: 10xxxxx
D21: Carryover From | K21: Grant Number to reduce budget for carryover
D22: PI Last Name | F22: =IF(F20=$B7,$B14,"") ->  | G22: =IF(G20=$B7,$B14,"") ->  | H22: =IF(H20=$B7,$B14,"") ->  | I22: =IF(I20=$B7,$B14,"") ->  | J22: =IF(J20=$B7,$B14,"") -> 
A23: F&A Relevant Sponsored Classes | D23: Cost Center | F23: =IF(F20=$B7,$B15,"") ->  | G23: =IF(G20=$B7,$B15,"") ->  | H23: =IF(H20=$B7,$B15,"") ->  | I23: =IF(I20=$B7,$B15,"") ->  | J23: =IF(J20=$B7,$B15,"") -> 
C24: Func Area | D24: Total This Action | F24: Enter budgeted amounts by Sponsored Class and Grant number below | L24: Comments (Such as GLs for Other Direct Expense & Workshops or helpful notes) | O24: For SRS GA Budget Screen:
C25: =$B$17 -> 0 | D25: =SUM(F25:K25) -> 0 | N25: =IF(A24="","",1) ->  | O25: Funds Center | P25: Func. Area | Q25: Distribution Key
C26: 0 | D26: 0 | O26: =B15 -> 0 | P26: =B17 -> 0 | Q26: ="Z"&IF('For Equations'!A3>6, 'For Equations'!A3-6, 'For Equations'!A3+6) -> Z7
C27: 0 | D27: 0 | O27: =IF(AND(B5="",SUM(N22:N34,N40:N42,N47:N49)>0),"SRS-AD GA: Be sure to enter today's date in the 'Data Entry Date' field (cell B5) to get the Distribution Ney above to the correct value","") -> 
C28: 0 | D28: 0
C29: 0 | D29: 0
C30: 0 | D30: 0
C31: 0 | D31: 0
C32: 0 | D32: 0
C33: 0 | D33: 0
C34: 0 | D34: 0
C35: Direct Expense Budget / F&A Base: | D35: =SUM(D25:E34) -> 0 | F35: =SUM(F25:F34) -> 0 | G35: =SUM(G25:G34) -> 0 | H35: =SUM(H25:H34) -> 0 | I35: =SUM(I25:I34) -> 0 | J35: =SUM(J25:J34) -> 0
C36: F&A Expense (enter amount for multiple F&A rates): | D36: =D35*F7 -> 0 | F36: =F35*$F$7 -> 0 | G36: =G35*$F$7 -> 0 | H36: =H35*$F$7 -> 0 | I36: =I35*$F$7 -> 0 | J36: =J35*$F$7 -> 0
C37: F&A EXPENSE 2 (rounding adjustment): | D37: =SUM(F37:I37) -> 0 | L37: (Older Grants = F&A EXPENSE-CUFS)
A38: F&A Exempt Sponsored Classes *
D39: Select Catalyst Option from Drop Down
C40: =$B$17 -> 0 | D40: =SUM(F40:K40) -> 0 | N40: =IF(A39="","",1) -> 
C41: =$B$17 -> 0 | D41: =SUM(F41:K41) -> 0 | N41: =IF(A40="","",1) -> 
C42: =$B$17 -> 0 | D42: =SUM(F42:K42) -> 0 | N42: =IF(A41="","",1) -> 
C43: Expense/Rev. Budget (Non-Scholarship): | D43: =SUM(D35:D37,D40:D42) -> 0 | E43: 0 | F43: =SUM(F35:F37,F40:F42) -> 0 | G43: 0 | H43: 0 | I43: 0 | J43: =SUM(J35:J37,J40:J42) -> 0
A44: Tuition, Stipends, Academic Travel Trainee only. Enter In-State Tuition Fringe in the F&A Exempt section.
A45: Sponsored Program: Scholarship/Fellow
A46: Tuition | D46: Select Catalyst Option from Drop Down
A47: Resident/Trainee Stipends | C47: 7 | D47: =SUM(F47:K47) -> 0 | N47: =IF(SUM(F47:K47)=0,"",1) -> 
A48: Travel-Trainee (Academic) | C48: 7 | D48: =SUM(F48:K48) -> 0 | N48: =IF(SUM(F48:K48)=0,"",1) -> 
B49: F&A on Stipend/Travel (Rate or Amount): | C49: 7 | D49: =SUM(F49:K49) -> 0
C50: =F7 -> 0 | D50: =SUM(F50:J50) -> 0 | F50: =IF($C$50<>0,($C$50*(F48+F49)),0) -> 0 | G50: =IF($C$50<>0,($C$50*(G48+G49)),0) -> 0 | H50: 0 | I50: 0 | J50: 0
C51: Expense/Rev. Budget (Scholarship): | D51: =SUM(D47:D50) -> 0 | F51: =SUM(F47:F50) -> 0 | G51: =SUM(G47:G50) -> 0 | H51: 0 | I51: 0 | J51: =SUM(J47:J50) -> 0
C53: TOTAL DIRECT EXPENSE BUDGET: | D53: =D35+SUM(D40:D42)+SUM(D47:D49) -> 0 | F53: =F35+SUM(F40:F42)+SUM(F47:F49) -> 0 | G53: =G35+SUM(G40:G42)+SUM(G47:G49) -> 0 | H53: 0 | I53: 0 | J53: 0
C54: F&A (INDIRECT COST) BUDGET: | D54: =D36+D37+D50 -> 0 | F54: =F36+F37+F50 -> 0 | G54: =G36+G37+G50 -> 0 | H54: =H36+H37+H50 -> 0 | I54: =I36+I37+I50 -> 0 | J54: =J36+J37+J50 -> 0
C55: TOTAL GRANT EXPENSE BUDGET: | D55: =D53+D54 -> 0 | F55: =F53+F54 -> 0 | G55: =G53+G54 -> 0 | H55: 0 | I55: 0 | J55: =J53+J54 -> 0
D56: Document Numbers:
B58: * Revenue budget equals expense budget for each Sponsored Program
A59: BUDGET CHECK | D59: Cumulative Award Amt | F59: =F20 -> 10xxxxx | G59: =G20 -> 10xxxxx | H59: =H20 -> 10xxxxx | I59: =I20 -> 10xxxxx | J59: =J20 -> 10xxxxx
C60: Previous Budget in Flex: | D60: =SUM(F60:K60) -> 0
C61: Additional Budget This Action: | D61: =SUM(F61:K61) -> 0 | F61: =F55 -> 0 | G61: =G55 -> 0 | H61: =H55 -> 0 | I61: =I55 -> 0 | J61: =J55 -> 0
C62: Cumulative Budget Should Be: | D62: =SUM(F62:K62) -> 0 | F62: =F60+F61 -> 0 | G62: =G60+G61 -> 0 | H62: 0 | I62: 0 | J62: =J60+J61 -> 0
D63: Cumulative Budget must match to GM Grant Value & Budgets in UC FLEX after your entry is posted.

Sheet Cost Share Budget (hidden)
A1: A323 Stream Lined Cost Share Budget Form | H1: =+'A323 Form'!E1 -> Revised 7/1/22
A3: Date Sent: | C3: SRS completes green fields and blue fields automatically populate
A4: Date Returned: | C4: Departments complete fields indicated in yellow as needed.
A5: Data Entry Date:
A7: Grant Number: | B7: =+'A323 Form'!B7 -> 0 | G7: Start Date: | H7: =+'A323 Form'!B12 -> 2022-07-01
A8: Grant Name: | B8: =+'A323 Form'!B8 -> G700013 | G8: End Date: | H8: =+'A323 Form'!B13 -> 2026-06-30
A9: Coeus Number: | B9: =+'A323 Form'!#REF! ->  | G9: Grant Fund: | H9: =+'A323 Form'!B16 -> D
A10: PI Last Name: | B10: =+'A323 Form'!B14 -> 0 | G10: F&A Rate: | H10: 0
A11: Grant Cost Center: | B11: =+'A323 Form'!B15 -> 0 | F11: Sp.Prog/Func. Area: | H11: =+'A323 Form'!B20 -> 2
B13: Previous Budget | C13: Additional Budget | D13: Cumulative Budget | F13: Complete sections below if you would like to
A14: C/S Mandatory: | D14: =+B14+C14 -> 0 | F14: budget cost share. Otherwise only the Cost
A15: C/S Non Reportable: | B15: 0 | D15: =+B15+C15 -> 0 | F15: Share Tab in Grant Master will be updated.
C17: Select Sponsored Classes from dropdown list.
A18: Fund | B18: Cost Center | C18: F&A Relevant Sponsored Classes | E18: Func Area | F18: C/S Budget | H18: Comments (Such as GLs for Other Direct Expense & Workshops or helpful notes) | J18: For GA Budget Screen:
E19: =+$H$11 -> 2 | I19: =IF(A19="","",1) ->  | J19: Funds Center | K19: Func. Area | L19: Distribution Key
E20: 2 | I20: =IF(A20="","",1) ->  | K20: ='A323 Form'!H34 -> 2 | L20: ="Z"&IF('For Equations'!A4>6, 'For Equations'!A4-6, 'For Equations'!A4+6) -> Z7
E21: 2 | K21: ='A323 Form'!H34 -> 2 | L21: ="Z"&IF('For Equations'!A4>6, 'For Equations'!A4-6, 'For Equations'!A4+6) -> Z7
E22: 2 | K22: ='A323 Form'!H34 -> 2 | L22: ="Z"&IF('For Equations'!A4>6, 'For Equations'!A4-6, 'For Equations'!A4+6) -> Z7
E23: 2 | K23: ='A323 Form'!H34 -> 2 | L23: ="Z"&IF('For Equations'!A4>6, 'For Equations'!A4-6, 'For Equations'!A4+6) -> Z7
E24: 2
E25: 2
E26: Total: | F26: =SUM(F19:G25) -> 0
A28: Fund | B28: Cost Center | C28: F&A Exempt Sponsored Classes | F28: Select Catalyst Option from Drop Down
E29: =+$H$11 -> 2 | I29: =IF(A29="","",1) -> 
E30: =+$H$11 -> 2
E31: =+$H$11 -> 2
E32: Total: | F32: =SUM(F25:G31) -> 0
A34: Tuition, Stipends, Academic Travel Trainee only. Enter In-State Tuition Fringe in the F&A Exempt section. | J34: Budget Cost Share for the following Sponsored Classes here:
A35: Fund | B35: Cost Center | C35: Sponsored Program: Scholarship/Fellow | F35: New Item Type(s) Needed - Please Send Item Type Catalyst Form | J35: 550110 Book Scholarship[p TUITION
C36: Tuition | E36: 7 | I36: =IF(A36="","",1) ->  | J36: 550100 Scholarships TUITION
C37: Resident/Trainee Stipends | E37: 7 | J37: 550110 Book Scholarship[p TUITION
C38: Travel-Trainee (Academic) | E38: 7 | J38: 550200 Scholarships University Dean (UGS) TUITION
E39: Total: | F39: =SUM(F30:G38) -> 0 | J39: 550201 Scholarships Grad Asst Out of State Credit TUITION
H40: Document Numbers
E41: Cost Share - Direct Expense Budget: | F41: =F26+SUM(F29:F31)+SUM(F36:G38) -> 0
E42: F&A on Direct C/S Budget (not entered in SAP): | F42: =(F26+F37+F38)*H10 -> 0
E43: Cost Share: Total Expense Budget: | F43: =F41+F42 -> 0
E44: Revenue-Cost Sharing Budget: | F44: =F41 -> 0

Sheet Sponsored Classes Index (hidden)
A1: F&A RELEVANT CLASSES
A3: [SALARY & FRINGE CLASSES] | B3: Salary and fringe classes are set up for the full range of grants, with the exception of 1199, AFSCME and ONA salaries which
A4: AAUP Other Comp | B4: require specific justification. Administrative or clerical salaries are only allowed on major projects such as clinical research
A5: Acad Full Time Sal | B5: centers or grants that require extensive data entry, making travel arrangements for a large number of participants, creating
A6: Acad Part Time Sal | B6: manuals or working in a location inaccessible to normal departmental administrative services. Refer to A-21 for more detailed
A7: Fringe Benefits | B7: information about administrative and/or clerical costs.
A8: Frng Bene Non Auto
A9: Graduate Assistants
A10: Intern Salaries
A11: Post Doctoral Fellow
A12: Student Wages Hourly
A13: Unrep Adm & Supp Sal
A14: Work Study Student
A16: [REQUIRE SPECIFIC JUSTIFICATION]
A17: 1199 Salaries
A18: AFSCME Salaries
A19: ONA Salaries
A21: [NON-SALARY CLASSES]
A22: Advertisg & Develpmt
A23: Consultants
A24: Educational Material
A25: Equipment < 5000
A26: Internal Recharges
A27: Lab Animal Medicine
A28: Lab Expense
A29: Non UC Assets < 5000
A30: Postage & Delivery
A31: Programming Services
A32: Publications
A33: Radiatn Sfty-Flm Bdg
A34: Radiatn Sfty-Wste
A35: Subcon-Idc Relevant
A36: Subject Incentives
A37: Travel
A38: Travel-Foreign
A39: Travel-Trainee (Non-Academic)
A41: [REQUIRE SPECIFIC JUSTIFICATION]
A42: Alteratn/Renovatn
A43: Computer Cons Svcs
A44: Honorarium
A45: Other Direct Expense
A46: Prescriptions
A47: Utilities
A48: Workshops
A50: [F&A EXEMPT CLASSES]
A51: Budgeted Reserve (For Budgeting Only)
A52: Communications
A53: Equipment 5000+
A54: Grnt-Restricted G100 (For Budgeting Only)
A55: In State Tuit Frg
A56: Non UC Assets 5000+
A57: Patient Care
A58: Subcon-Not IDC Rlvnt
A60: [REQUIRE SPECIFIC JUSTIFICATION-F&A Exempt]
A61: Offce & Classrm Rent
A62: UCIT UCNET Usage
A64: [CLASSES THAT USE FUNC. AREA 7 - SCHOLARSHIP/FELLOWSHIP]
A65: Resdnt/Trnee Stipend
A66: Tuition
A67: Travel-Trainee (Academic)

Sheet For Equations (hidden)
A1: For Equations:
A2: =MONTH('A323 Form'!B5) -> 1
A3: =MONTH('Multi Budget Sheet'!B5) -> 1
A4: =MONTH('Cost Share Budget'!B5) -> 1

Sheet Catalyst Selection (hidden)
A1: Select Catalyst Option from Drop Down
A2: Extension Only: SRS GA - e-mail D. Provine to request extension
A3: New Item Type(s) Needed - Please Send Item Type Catalyst Form

Sheet Catalyst Selection2 (hidden)
A1: Extension Only: SRS GA - e-mail D. Provine to request extension
A2: New Item Type(s) Needed - Please Send Item Type Catalyst Form
